SERVICE_CODE,ORGANISATION_UNIT,EXPENDITURE_CATEGORY,EXPENDITURE_DESCRIPTION,EXPENDITURE_CODE,NARRATIVE,DATE,TRANSATION_CODE,NET_AMOUNT,SUPPLIER_CODE,SUPPLIER_NAME,FROM_DATE,TO_DATE,FINANCIAL_PERIOD_YEAR
CEO,LEGAL SERVICES,EMPLOYEES,APPOINTMENT EXPENSES,1301,P123320-SERVICE-PROPERTY SOLICITOR ADVERT,24/9/2023 00:00:00,277768,1260,SA0133,SOWERBY ADVERTISING AND COMMUNICATIONS,28/8/2023 00:00:00,24/9/2023 00:00:00,P06-2024
P&V,MYDDELTON HOUSE GARDENS,EMPLOYEES,APPOINTMENT EXPENSES,1301,P123160-SERVICE-HEAD GARDENER RECRUITMENT FEES,09/05/2023 00:00,277191,1250,HA0052,HAYMARKET MEDIA LIMITED,28/8/2023 00:00:00,24/9/2023 00:00:00,P06-2024
R&B,CORPORATE TRAINING,EMPLOYEES,TRAINING EXPENSES,1305,P121246-SERVICE-C CARTER 1ST AID COURSE 18-20/04/23,09/06/2023 00:00,277070,419,BR0069,BRITISH RED CROSS,28/8/2023 00:00:00,24/9/2023 00:00:00,P06-2024
R&B,CORPORATE TRAINING,EMPLOYEES,TRAINING EXPENSES,1305,P123251-SERVICE- IOSH TRAINING 28/09/23 05/10/2023 12/10/23,19/9/2023 00:00:00,277476,2990,RI0053,RIGHT DIRECTIONS (MANAGEMENT) LTD,28/8/2023 00:00:00,24/9/2023 00:00:00,P06-2024
R&B,CORPORATE TRAINING,EMPLOYEES,TRAINING EXPENSES,1305,P123252-SERVICE-3 DAY FAW TRAINING 12-14/09/23,19/9/2023 00:00:00,277477,1590,RI0053,RIGHT DIRECTIONS (MANAGEMENT) LTD,28/8/2023 00:00:00,24/9/2023 00:00:00,P06-2024
R&B,CORPORATE TRAINING,EMPLOYEES,TRAINING EXPENSES,1305,P123395-SERVICE-C ASPIN FAW REQUAL 9/10 OCT 23,24/9/2023 00:00:00,277934,289,BR0069,BRITISH RED CROSS,28/8/2023 00:00:00,24/9/2023 00:00:00,P06-2024
,LEE VALLEY CAMPSITE,EMPLOYEES,CRB CHECKS,1330,DBS check,09/05/2023 00:00,277280,18,DD0119,DUE DILIGENCE CHECKING LIMITED,28/8/2023 00:00:00,24/9/2023 00:00:00,P06-2024
,LEE VALLEY CAMPSITE,EMPLOYEES,CRB CHECKS,1330,DBS check,09/05/2023 00:00,277280,18,DD0119,DUE DILIGENCE CHECKING LIMITED,28/8/2023 00:00:00,24/9/2023 00:00:00,P06-2024
P&V,MYDDELTON HOUSE GARDENS,EMPLOYEES,CRB CHECKS,1330,DBS check,09/05/2023 00:00,277280,36,DD0119,DUE DILIGENCE CHECKING LIMITED,28/8/2023 00:00:00,24/9/2023 00:00:00,P06-2024
P&V,MYDDELTON HOUSE GARDENS,EMPLOYEES,CRB CHECKS,1330,DBS check,09/05/2023 00:00,277280,36,DD0119,DUE DILIGENCE CHECKING LIMITED,28/8/2023 00:00:00,24/9/2023 00:00:00,P06-2024
P&V,SOUTH AREA RANGERS,EMPLOYEES,CRB CHECKS,1330,DBS check,09/05/2023 00:00,277280,18,DD0119,DUE DILIGENCE CHECKING LIMITED,28/8/2023 00:00:00,24/9/2023 00:00:00,P06-2024
P&V,SOUTH AREA RANGERS,EMPLOYEES,CRB CHECKS,1330,DBS check,09/05/2023 00:00,277280,36,DD0119,DUE DILIGENCE CHECKING LIMITED,28/8/2023 00:00:00,24/9/2023 00:00:00,P06-2024
P&V,OPERATIONAL MANAGEMENT (L&E),EMPLOYEES,CRB CHECKS,1330,DBS check,09/05/2023 00:00,277280,20,DD0119,DUE DILIGENCE CHECKING LIMITED,28/8/2023 00:00:00,24/9/2023 00:00:00,P06-2024
P&V,OPERATIONAL MANAGEMENT (L&E),EMPLOYEES,CRB CHECKS,1330,DBS check,09/05/2023 00:00,277280,18,DD0119,DUE DILIGENCE CHECKING LIMITED,28/8/2023 00:00:00,24/9/2023 00:00:00,P06-2024
,LV LEISURE CENTRE CAMPSITE,EMPLOYEES,CRB CHECKS,1330,DBS check,09/05/2023 00:00,277280,18,DD0119,DUE DILIGENCE CHECKING LIMITED,28/8/2023 00:00:00,24/9/2023 00:00:00,P06-2024
,LV LEISURE CENTRE CAMPSITE,EMPLOYEES,CRB CHECKS,1330,DBS check,09/05/2023 00:00,277280,18,DD0119,DUE DILIGENCE CHECKING LIMITED,28/8/2023 00:00:00,24/9/2023 00:00:00,P06-2024
R&B,CORPORATE TRAINING,EMPLOYEES,APPRENTICE LEVY,1390,Paye,13/9/2023 00:00:00,277403,881,HM0368,HMRC,28/8/2023 00:00:00,24/9/2023 00:00:00,P06-2024
CEO,LVLC SERVICE CHARGE,PREMISES RELATED EXPENDITURE,SCHEDULED GROUND MAINTENANCE,2111,Aug-23,24/9/2023 00:00:00,277273,3023.46,GL0214,GLENDALE GROUNDS MANAGEMENT LIMITED,28/8/2023 00:00:00,24/9/2023 00:00:00,P06-2024
CEO,LVLC SERVICE CHARGE,PREMISES RELATED EXPENDITURE,SCHEDULED GROUND MAINTENANCE,2111,Aug-23,24/9/2023 00:00:00,277273,110.27,GL0214,GLENDALE GROUNDS MANAGEMENT LIMITED,28/8/2023 00:00:00,24/9/2023 00:00:00,P06-2024
P&V,MYDDELTON HOUSE,PREMISES RELATED EXPENDITURE,CONTRACT CLEANING,2120,P121875-SERVICE-Myddelton House Cleaning,24/9/2023 00:00:00,277953,1681.68,BR0632,BRITANNIA SERVICES GROUP LTD,28/8/2023 00:00:00,24/9/2023 00:00:00,P06-2024
,LEE VALLEY CAMPSITE,PREMISES RELATED EXPENDITURE,CONTRACT CLEANING,2120,P122615-SERVICE-Sept - Oct 23,19/9/2023 00:00:00,277446,93.56,IN0012,INITIAL WASHROOM HYGIENE,28/8/2023 00:00:00,24/9/2023 00:00:00,P06-2024
,LEE VALLEY CARAVAN PARK,PREMISES RELATED EXPENDITURE,CONTRACT CLEANING,2120,P123169-SERVICE-Monthly cleaning of units,09/05/2023 00:00,277261,5184,LI0305,LIMPIAR CLEANING,28/8/2023 00:00:00,24/9/2023 00:00:00,P06-2024
,LEE VALLEY CARAVAN PARK,PREMISES RELATED EXPENDITURE,CONTRACT CLEANING,2120,P123422-SERVICE-Monthly hygiene,24/9/2023 00:00:00,277928,98.87,IN0012,INITIAL WASHROOM HYGIENE,28/8/2023 00:00:00,24/9/2023 00:00:00,P06-2024
P&V,GUNPOWDER PARK,PREMISES RELATED EXPENDITURE,CONTRACT CLEANING,2120,Aug-23,24/9/2023 00:00:00,277273,552.26,GL0214,GLENDALE GROUNDS MANAGEMENT LIMITED,28/8/2023 00:00:00,24/9/2023 00:00:00,P06-2024
P&V,RIVER LEE COUNTRY PARK,PREMISES RELATED EXPENDITURE,CONTRACT CLEANING,2120,Aug-23,24/9/2023 00:00:00,277273,1104.51,GL0214,GLENDALE GROUNDS MANAGEMENT LIMITED,28/8/2023 00:00:00,24/9/2023 00:00:00,P06-2024
P&V,MYDDLETON HSE HERITAGE CENTRE,PREMISES RELATED EXPENDITURE,CLEANING CONTRACT,2121,P121876-SERVICE-Tea Room Cleaning,24/9/2023 00:00:00,277951,840.84,BR0632,BRITANNIA SERVICES GROUP LTD,28/8/2023 00:00:00,24/9/2023 00:00:00,P06-2024
,LEE VALLEY MARINA STANSTEAD,PREMISES RELATED EXPENDITURE,GM MAIN CONTRACT SCHEDULED,2141,Aug-23,24/9/2023 00:00:00,277273,645.18,GL0214,GLENDALE GROUNDS MANAGEMENT LIMITED,28/8/2023 00:00:00,24/9/2023 00:00:00,P06-2024
,LEE VALLEY WATERWORKS CENTRE,PREMISES RELATED EXPENDITURE,GM MAIN CONTRACT SCHEDULED,2141,Aug-23,24/9/2023 00:00:00,277273,265.73,GL0214,GLENDALE GROUNDS MANAGEMENT LIMITED,28/8/2023 00:00:00,24/9/2023 00:00:00,P06-2024
,LEE VALLEY WATERWORKS CENTRE,PREMISES RELATED EXPENDITURE,GM MAIN CONTRACT SCHEDULED,2141,Aug-23,24/9/2023 00:00:00,277273,606.12,GL0214,GLENDALE GROUNDS MANAGEMENT LIMITED,28/8/2023 00:00:00,24/9/2023 00:00:00,P06-2024
P&V,LEE VALLEY FARM HOLYFIELDHALL,PREMISES RELATED EXPENDITURE,GM MAIN CONTRACT SCHEDULED,2141,Aug-23,24/9/2023 00:00:00,277273,149.68,GL0214,GLENDALE GROUNDS MANAGEMENT LIMITED,28/8/2023 00:00:00,24/9/2023 00:00:00,P06-2024
P&V,EAST INDIA DOCK AND BOW CREEK,PREMISES RELATED EXPENDITURE,GM MAIN CONTRACT SCHEDULED,2141,Aug-23,24/9/2023 00:00:00,277273,849.88,GL0214,GLENDALE GROUNDS MANAGEMENT LIMITED,28/8/2023 00:00:00,24/9/2023 00:00:00,P06-2024
P&V,EAST INDIA DOCK AND BOW CREEK,PREMISES RELATED EXPENDITURE,GM MAIN CONTRACT SCHEDULED,2141,Aug-23,24/9/2023 00:00:00,277273,949.09,GL0214,GLENDALE GROUNDS MANAGEMENT LIMITED,28/8/2023 00:00:00,24/9/2023 00:00:00,P06-2024
P&V,NORTH AREA RANGERS,PREMISES RELATED EXPENDITURE,GM MAIN CONTRACT SCHEDULED,2141,Aug-23,24/9/2023 00:00:00,277273,5667.65,GL0214,GLENDALE GROUNDS MANAGEMENT LIMITED,28/8/2023 00:00:00,24/9/2023 00:00:00,P06-2024
P&V,SOUTH AREA RANGERS,PREMISES RELATED EXPENDITURE,GM MAIN CONTRACT SCHEDULED,2141,Aug-23,24/9/2023 00:00:00,277273,6555.49,GL0214,GLENDALE GROUNDS MANAGEMENT LIMITED,28/8/2023 00:00:00,24/9/2023 00:00:00,P06-2024
P&V,SOUTH AREA RANGERS,PREMISES RELATED EXPENDITURE,GM MAIN CONTRACT SCHEDULED,2141,Aug-23,24/9/2023 00:00:00,277273,379.64,GL0214,GLENDALE GROUNDS MANAGEMENT LIMITED,28/8/2023 00:00:00,24/9/2023 00:00:00,P06-2024
P&V,ABBEY GARDENS,PREMISES RELATED EXPENDITURE,GM MAIN CONTRACT SCHEDULED,2141,Aug-23,24/9/2023 00:00:00,277273,2895.18,GL0214,GLENDALE GROUNDS MANAGEMENT LIMITED,28/8/2023 00:00:00,24/9/2023 00:00:00,P06-2024
P&V,GUNPOWDER PARK,PREMISES RELATED EXPENDITURE,GM MAIN CONTRACT SCHEDULED,2141,Aug-23,24/9/2023 00:00:00,277273,2850.51,GL0214,GLENDALE GROUNDS MANAGEMENT LIMITED,28/8/2023 00:00:00,24/9/2023 00:00:00,P06-2024
P&V,RIVER LEE COUNTRY PARK,PREMISES RELATED EXPENDITURE,GM MAIN CONTRACT SCHEDULED,2141,Aug-23,24/9/2023 00:00:00,277273,16669.47,GL0214,GLENDALE GROUNDS MANAGEMENT LIMITED,28/8/2023 00:00:00,24/9/2023 00:00:00,P06-2024
P&V,RIVER LEE COUNTRY PARK,PREMISES RELATED EXPENDITURE,GM MAIN CONTRACT SCHEDULED,2141,Aug-23,24/9/2023 00:00:00,277273,189.82,GL0214,GLENDALE GROUNDS MANAGEMENT LIMITED,28/8/2023 00:00:00,24/9/2023 00:00:00,P06-2024
,LEE VALLEY VELOPARK,PREMISES RELATED EXPENDITURE,GM MAIN CONTRACT SCHEDULED,2141,Aug-23,24/9/2023 00:00:00,277273,7243.95,GL0214,GLENDALE GROUNDS MANAGEMENT LIMITED,28/8/2023 00:00:00,24/9/2023 00:00:00,P06-2024
,LV HOCKEY AND TENNIS CENTRE,PREMISES RELATED EXPENDITURE,GM MAIN CONTRACT SCHEDULED,2141,Aug-23,24/9/2023 00:00:00,277273,4442.51,GL0214,GLENDALE GROUNDS MANAGEMENT LIMITED,28/8/2023 00:00:00,24/9/2023 00:00:00,P06-2024
P&V,THREE MILLS,PREMISES RELATED EXPENDITURE,GM MAIN CONTRACT SCHEDULED,2141,Aug-23,24/9/2023 00:00:00,277273,1623.64,GL0214,GLENDALE GROUNDS MANAGEMENT LIMITED,28/8/2023 00:00:00,24/9/2023 00:00:00,P06-2024
,LEE VALLEY RIDING CENTRE,PREMISES RELATED EXPENDITURE,GM MAIN CONTRACT SCHEDULED,2141,Aug-23,24/9/2023 00:00:00,277273,563.06,GL0214,GLENDALE GROUNDS MANAGEMENT LIMITED,28/8/2023 00:00:00,24/9/2023 00:00:00,P06-2024
,LEE VALLEY ICE CENTRE,PREMISES RELATED EXPENDITURE,GM MAIN CONTRACT SCHEDULED,2141,Aug-23,24/9/2023 00:00:00,277273,907.11,GL0214,GLENDALE GROUNDS MANAGEMENT LIMITED,28/8/2023 00:00:00,24/9/2023 00:00:00,P06-2024
P&V,FORMER LV LIDO SITE,PREMISES RELATED EXPENDITURE,GM MAIN CONTRACT SCHEDULED,2141,Aug-23,24/9/2023 00:00:00,277273,1112.21,GL0214,GLENDALE GROUNDS MANAGEMENT LIMITED,28/8/2023 00:00:00,24/9/2023 00:00:00,P06-2024
,LEE VALLEY ATHLETICS CENTRE,PREMISES RELATED EXPENDITURE,GM MAIN CONTRACT SCHEDULED,2141,Aug-23,24/9/2023 00:00:00,277273,672.8,GL0214,GLENDALE GROUNDS MANAGEMENT LIMITED,28/8/2023 00:00:00,24/9/2023 00:00:00,P06-2024
,LEE VALLEY WHITE WATER CENTRE,PREMISES RELATED EXPENDITURE,GM MAIN CONTRACT SCHEDULED,2141,Aug-23,24/9/2023 00:00:00,277273,3497.85,GL0214,GLENDALE GROUNDS MANAGEMENT LIMITED,28/8/2023 00:00:00,24/9/2023 00:00:00,P06-2024
P&V,NORTH AREA RANGERS,PREMISES RELATED EXPENDITURE,GM MAIN CONTRACT UNSCHEDULED,2142,Aug-23,24/9/2023 00:00:00,277273,619.85,GL0214,GLENDALE GROUNDS MANAGEMENT LIMITED,28/8/2023 00:00:00,24/9/2023 00:00:00,P06-2024
,LEE VALLEY WATERWORKS CENTRE,PREMISES RELATED EXPENDITURE,GM HORTICULTURE SCHEDULED,2143,Aug-23,24/9/2023 00:00:00,277273,169.95,GL0214,GLENDALE GROUNDS MANAGEMENT LIMITED,28/8/2023 00:00:00,24/9/2023 00:00:00,P06-2024
P&V,NORTH AREA RANGERS,PREMISES RELATED EXPENDITURE,GM HORTICULTURE SCHEDULED,2143,Aug-23,24/9/2023 00:00:00,277273,250.51,GL0214,GLENDALE GROUNDS MANAGEMENT LIMITED,28/8/2023 00:00:00,24/9/2023 00:00:00,P06-2024
P&V,SOUTH AREA RANGERS,PREMISES RELATED EXPENDITURE,GM HORTICULTURE SCHEDULED,2143,Aug-23,24/9/2023 00:00:00,277273,144.87,GL0214,GLENDALE GROUNDS MANAGEMENT LIMITED,28/8/2023 00:00:00,24/9/2023 00:00:00,P06-2024
P&V,ABBEY GARDENS,PREMISES RELATED EXPENDITURE,GM HORTICULTURE SCHEDULED,2143,Aug-23,24/9/2023 00:00:00,277273,1974.21,GL0214,GLENDALE GROUNDS MANAGEMENT LIMITED,28/8/2023 00:00:00,24/9/2023 00:00:00,P06-2024
P&V,GUNPOWDER PARK,PREMISES RELATED EXPENDITURE,GM HORTICULTURE SCHEDULED,2143,Aug-23,24/9/2023 00:00:00,277273,259.15,GL0214,GLENDALE GROUNDS MANAGEMENT LIMITED,28/8/2023 00:00:00,24/9/2023 00:00:00,P06-2024
P&V,RIVER LEE COUNTRY PARK,PREMISES RELATED EXPENDITURE,GM HORTICULTURE SCHEDULED,2143,Aug-23,24/9/2023 00:00:00,277273,134.48,GL0214,GLENDALE GROUNDS MANAGEMENT LIMITED,28/8/2023 00:00:00,24/9/2023 00:00:00,P06-2024
,LEE VALLEY VELOPARK,PREMISES RELATED EXPENDITURE,GM HORTICULTURE SCHEDULED,2143,Aug-23,24/9/2023 00:00:00,277273,1152.74,GL0214,GLENDALE GROUNDS MANAGEMENT LIMITED,28/8/2023 00:00:00,24/9/2023 00:00:00,P06-2024
,LV HOCKEY AND TENNIS CENTRE,PREMISES RELATED EXPENDITURE,GM HORTICULTURE SCHEDULED,2143,Aug-23,24/9/2023 00:00:00,277273,1660.02,GL0214,GLENDALE GROUNDS MANAGEMENT LIMITED,28/8/2023 00:00:00,24/9/2023 00:00:00,P06-2024
P&V,THREE MILLS,PREMISES RELATED EXPENDITURE,GM HORTICULTURE SCHEDULED,2143,Aug-23,24/9/2023 00:00:00,277273,53.88,GL0214,GLENDALE GROUNDS MANAGEMENT LIMITED,28/8/2023 00:00:00,24/9/2023 00:00:00,P06-2024
,LEE VALLEY RIDING CENTRE,PREMISES RELATED EXPENDITURE,GM HORTICULTURE SCHEDULED,2143,Aug-23,24/9/2023 00:00:00,277273,13.47,GL0214,GLENDALE GROUNDS MANAGEMENT LIMITED,28/8/2023 00:00:00,24/9/2023 00:00:00,P06-2024
P&V,FORMER LV LIDO SITE,PREMISES RELATED EXPENDITURE,GM HORTICULTURE SCHEDULED,2143,Aug-23,24/9/2023 00:00:00,277273,12.85,GL0214,GLENDALE GROUNDS MANAGEMENT LIMITED,28/8/2023 00:00:00,24/9/2023 00:00:00,P06-2024
,LEE VALLEY WHITE WATER CENTRE,PREMISES RELATED EXPENDITURE,GM HORTICULTURE SCHEDULED,2143,Aug-23,24/9/2023 00:00:00,277273,29.42,GL0214,GLENDALE GROUNDS MANAGEMENT LIMITED,28/8/2023 00:00:00,24/9/2023 00:00:00,P06-2024
P&V,GUNPOWDER PARK,PREMISES RELATED EXPENDITURE,GM ARBORICULTURE UNSCHEDULED,2146,P123324-SERVICE-Tree Works at Bridleway Gunpowder Park,24/9/2023 00:00:00,277922,450,PA0222,PARKIN & PARKER TREE SPECIALISTS,28/8/2023 00:00:00,24/9/2023 00:00:00,P06-2024
P&V,RIVER LEE COUNTRY PARK,PREMISES RELATED EXPENDITURE,GM ARBORICULTURE UNSCHEDULED,2146,P122672-SERVICE-Tree Works Cornmill Meadows Dragonfly Sanctua,24/9/2023 00:00:00,277910,300,MU0030,P J MUSK TREES,28/8/2023 00:00:00,24/9/2023 00:00:00,P06-2024
P&V,RIVER LEE COUNTRY PARK,PREMISES RELATED EXPENDITURE,GM NON MAIN CONT UNSCHEDULED,2147,P123213-SERVICE-To supply labour and equipment to flail,24/9/2023 00:00:00,277918,950,BU0090,BUSH WHEELER SERVICES LTD,28/8/2023 00:00:00,24/9/2023 00:00:00,P06-2024
P&V,EAST INDIA DOCK AND BOW CREEK,PREMISES RELATED EXPENDITURE,HABITAT MANAGEMENT WORKS,2149,P123032-SERVICE-Vegetation Removal - East India Dock Basin,19/9/2023 00:00:00,277515,400,JO0019,R G JOYCE,28/8/2023 00:00:00,24/9/2023 00:00:00,P06-2024
P&V,EAST INDIA DOCK AND BOW CREEK,PREMISES RELATED EXPENDITURE,HABITAT MANAGEMENT WORKS,2149,P123033-SERVICE-Vegetation Removal at Bow Creek,19/9/2023 00:00:00,277517,600,JO0019,R G JOYCE,28/8/2023 00:00:00,24/9/2023 00:00:00,P06-2024
P&V,SOUTH AREA RANGERS,PREMISES RELATED EXPENDITURE,HABITAT MANAGEMENT WORKS,2149,P122193-SERVICE-Giant Hogweed Treatment at Waterworks,19/9/2023 00:00:00,276577,874.5,GO0044,S.H.GOSS & CO LTD,28/8/2023 00:00:00,24/9/2023 00:00:00,P06-2024
P&V,SOUTH AREA RANGERS,PREMISES RELATED EXPENDITURE,HABITAT MANAGEMENT WORKS,2149,P122194-SERVICE-Japanese Knotweed Treament at Waterworks,19/9/2023 00:00:00,276577,291.5,GO0044,S.H.GOSS & CO LTD,28/8/2023 00:00:00,24/9/2023 00:00:00,P06-2024
P&V,SOUTH AREA RANGERS,PREMISES RELATED EXPENDITURE,HABITAT MANAGEMENT WORKS,2149,P122958-SERVICE-1x 20 Yard RORO Skip,19/9/2023 00:00:00,277027,150.15,GB0239,GBN SERVICES LTD,28/8/2023 00:00:00,24/9/2023 00:00:00,P06-2024
P&V,SOUTH AREA RANGERS,PREMISES RELATED EXPENDITURE,HABITAT MANAGEMENT WORKS,2149,P122194-SERVICE-Japanese Knotweed Treament at Waterworks,19/9/2023 00:00:00,277158,291.5,GO0044,S.H.GOSS & CO LTD,28/8/2023 00:00:00,24/9/2023 00:00:00,P06-2024
P&V,SOUTH AREA RANGERS,PREMISES RELATED EXPENDITURE,HABITAT MANAGEMENT WORKS,2149,P122195-SERVICE-Weeds Spot Treatment - Waterworks,24/9/2023 00:00:00,277434,467.5,GO0044,S.H.GOSS & CO LTD,28/8/2023 00:00:00,24/9/2023 00:00:00,P06-2024
P&V,SOUTH AREA RANGERS,PREMISES RELATED EXPENDITURE,HABITAT MANAGEMENT WORKS,2149,P123056-SERVICE-Japanese Knot Weed at Tottenham Marsh,19/9/2023 00:00:00,277435,357.5,GO0044,S.H.GOSS & CO LTD,28/8/2023 00:00:00,24/9/2023 00:00:00,P06-2024
P&V,SOUTH AREA RANGERS,PREMISES RELATED EXPENDITURE,HABITAT MANAGEMENT WORKS,2149,P122196-SERVICE-Japanese Knotweed at Aquaduct Pathway,24/9/2023 00:00:00,277671,132,GO0044,S.H.GOSS & CO LTD,28/8/2023 00:00:00,24/9/2023 00:00:00,P06-2024
P&V,GUNPOWDER PARK,PREMISES RELATED EXPENDITURE,HABITAT MANAGEMENT WORKS,2149,P121802-SERVICE-Invasive Species Spraying at Rammey Marsh,13/9/2023 00:00:00,277378,286,GO0044,S.H.GOSS & CO LTD,28/8/2023 00:00:00,24/9/2023 00:00:00,P06-2024
P&V,THREE MILLS,PREMISES RELATED EXPENDITURE,HABITAT MANAGEMENT WORKS,2149,P123034-SERVICE-Removal of Buddleias at Three Mills Green,19/9/2023 00:00:00,277516,200,JO0019,R G JOYCE,28/8/2023 00:00:00,24/9/2023 00:00:00,P06-2024
P&V,NORTH AREA RANGERS,PREMISES RELATED EXPENDITURE,MEADOW CUTS,2150,P122065-SERVICE-Meadow Cuts - Various Sites in North,13/9/2023 00:00:00,277256,10000,BU0090,BUSH WHEELER SERVICES LTD,28/8/2023 00:00:00,24/9/2023 00:00:00,P06-2024
P&V,SOUTH AREA RANGERS,PREMISES RELATED EXPENDITURE,MEADOW CUTS,2150,P122065-SERVICE-Meadow Cuts - Various Sites in South,13/9/2023 00:00:00,277256,10000,BU0090,BUSH WHEELER SERVICES LTD,28/8/2023 00:00:00,24/9/2023 00:00:00,P06-2024
,LEE VALLEY MARINA SPRINGFIELD,PREMISES RELATED EXPENDITURE,GENERAL WASTE,2211,P123012-SERVICE-General waste & recyling July to sept 23,09/06/2023 00:00,277272,1648.76,CL0037,VEOLIA ES (UK) LTD,28/8/2023 00:00:00,24/9/2023 00:00:00,P06-2024
,LEE VALLEY MARINA STANSTEAD,PREMISES RELATED EXPENDITURE,GENERAL WASTE,2211,P121961-SERVICE-annual bin pick ups for RH & SM,09/07/2023 00:00,277267,1216.67,CL0037,VEOLIA ES (UK) LTD,28/8/2023 00:00:00,24/9/2023 00:00:00,P06-2024
,LEE VALLEY MARINA STANSTEAD,PREMISES RELATED EXPENDITURE,GENERAL WASTE,2211,P121961-SERVICE-annual bin pick ups for RH & SM,09/07/2023 00:00,277284,291.12,CL0037,VEOLIA ES (UK) LTD,28/8/2023 00:00:00,24/9/2023 00:00:00,P06-2024
,LEE VALLEY CAMPSITE,PREMISES RELATED EXPENDITURE,GENERAL WASTE,2211,P122977-SERVICE-Skip Collections  Aug- Dec 23,09/07/2023 00:00,275562,747.16,CL0037,VEOLIA ES (UK) LTD,28/8/2023 00:00:00,24/9/2023 00:00:00,P06-2024
,LEE VALLEY CAMPSITE,PREMISES RELATED EXPENDITURE,GENERAL WASTE,2211,P122977-SERVICE-Skip Collections  Aug- Dec 23,13/9/2023 00:00:00,277266,747.16,CL0037,VEOLIA ES (UK) LTD,28/8/2023 00:00:00,24/9/2023 00:00:00,P06-2024
,LEE VALLEY CAMPSITE,PREMISES RELATED EXPENDITURE,GENERAL WASTE,2211,P122977-SERVICE-Skip Collections  Aug- Dec 23,09/07/2023 00:00,277275,-182.9,CL0037,VEOLIA ES (UK) LTD,28/8/2023 00:00:00,24/9/2023 00:00:00,P06-2024
,LEE VALLEY CARAVAN PARK,PREMISES RELATED EXPENDITURE,GENERAL WASTE,2211,P123192-SERVICE-General waste disposal,09/06/2023 00:00,277268,4198.82,CL0037,VEOLIA ES (UK) LTD,28/8/2023 00:00:00,24/9/2023 00:00:00,P06-2024
P&V,SOUTH AREA RANGERS,PREMISES RELATED EXPENDITURE,GENERAL WASTE,2211,P121714-SERVICE-Skip at WaterWorks Centre,13/9/2023 00:00:00,277218,323.4,GB0239,GBN SERVICES LTD,28/8/2023 00:00:00,24/9/2023 00:00:00,P06-2024
,LV LEISURE CENTRE CAMPSITE,PREMISES RELATED EXPENDITURE,GENERAL WASTE,2211,P123253-SERVICE-Recycling empty waste,19/9/2023 00:00:00,277448,453.73,BY0049,BYWATERS (LEYTON) LTD,28/8/2023 00:00:00,24/9/2023 00:00:00,P06-2024
P&V,MYDDELTON HOUSE,PREMISES RELATED EXPENDITURE,RECYCLING,2214,P121873-SERVICE-Recycling,13/9/2023 00:00:00,277447,249.74,CA0341,F & R CAWLEY LTD,28/8/2023 00:00:00,24/9/2023 00:00:00,P06-2024
P&V,MYDDELTON HOUSE,PREMISES RELATED EXPENDITURE,BUILDING SERVICE AGREEMENTS,2220,P123150-SERVICE-Work on Intruder Alarm 14/08/23,09/05/2023 00:00,276789,415,AD0015,ADT FIRE & SECURITY PLC,28/8/2023 00:00:00,24/9/2023 00:00:00,P06-2024
P&V,MYDDELTON HOUSE,PREMISES RELATED EXPENDITURE,BUILDING SERVICE AGREEMENTS,2220,P121870-SERVICE-Sanitary Services,09/05/2023 00:00,277048,204.44,PE0015,PHS GROUP PLC,28/8/2023 00:00:00,24/9/2023 00:00:00,P06-2024
P&V,MYDDELTON HOUSE,PREMISES RELATED EXPENDITURE,BUILDING SERVICE AGREEMENTS,2220,P121870-SERVICE-Sanitary Services,09/05/2023 00:00,277078,9.09,PE0015,PHS GROUP PLC,28/8/2023 00:00:00,24/9/2023 00:00:00,P06-2024
P&V,MYDDELTON HOUSE,PREMISES RELATED EXPENDITURE,BUILDING SERVICE AGREEMENTS,2220,P121870-SERVICE-Sanitary Services,09/05/2023 00:00,277079,24.15,PE0015,PHS GROUP PLC,28/8/2023 00:00:00,24/9/2023 00:00:00,P06-2024
P&V,MYDDELTON HOUSE,PREMISES RELATED EXPENDITURE,BUILDING SERVICE AGREEMENTS,2220,P123229-SERVICE-Signaling Transmission Service,13/9/2023 00:00:00,277432,558.67,AD0015,ADT FIRE & SECURITY PLC,28/8/2023 00:00:00,24/9/2023 00:00:00,P06-2024
P&V,MYDDELTON HOUSE,PREMISES RELATED EXPENDITURE,BUILDING SERVICE AGREEMENTS,2220,P123355-SERVICE-Intruder Alarm Work 12/09/23,20/9/2023 00:00:00,277736,302,AD0015,ADT FIRE & SECURITY PLC,28/8/2023 00:00:00,24/9/2023 00:00:00,P06-2024
P&V,MYDDELTON HOUSE,PREMISES RELATED EXPENDITURE,BUILDING SERVICE AGREEMENTS,2220,P121870-SERVICE-Sanitary Services,24/9/2023 00:00:00,277917,89.64,PE0015,PHS GROUP PLC,28/8/2023 00:00:00,24/9/2023 00:00:00,P06-2024
,LEE VALLEY MARINA SPRINGFIELD,PREMISES RELATED EXPENDITURE,BUILDING SERVICE AGREEMENTS,2220,P122221-SERVICE-To supply extra callpiont to club as per quot,09/05/2023 00:00,276790,620.5,AD0015,ADT FIRE & SECURITY PLC,28/8/2023 00:00:00,24/9/2023 00:00:00,P06-2024
,LEE VALLEY WATERWORKS CENTRE,PREMISES RELATED EXPENDITURE,BUILDING SERVICE AGREEMENTS,2220,P123239-SERVICE-Sanitary Disposal / Air Freshner Toilets,13/9/2023 00:00:00,277230,684.33,PE0015,PHS GROUP PLC,28/8/2023 00:00:00,24/9/2023 00:00:00,P06-2024
,LEE VALLEY WATERWORKS CENTRE,PREMISES RELATED EXPENDITURE,BUILDING SERVICE AGREEMENTS,2220,P123288-SERVICE-Waterworks Jul 2023 PPM,19/9/2023 00:00:00,277628,1120.72,CO0199,EQUANS FM LIMITED (frmlyENGIE FM LIMITED),28/8/2023 00:00:00,24/9/2023 00:00:00,P06-2024
,LEE VALLEY WATERWORKS CENTRE,PREMISES RELATED EXPENDITURE,BUILDING SERVICE AGREEMENTS,2220,P123289-SERVICE-Waterworks Aug 2023 PPM,19/9/2023 00:00:00,277629,246.95,CO0199,EQUANS FM LIMITED (frmlyENGIE FM LIMITED),28/8/2023 00:00:00,24/9/2023 00:00:00,P06-2024
P&V,LEE VALLEY FARM HOLYFIELDHALL,PREMISES RELATED EXPENDITURE,BUILDING SERVICE AGREEMENTS,2220,P123119-SERVICE-Water Extinguisher/Powder Extinguisher,09/05/2023 00:00,276998,100.91,TJ0009,T.J.FIRE & SECURITY,28/8/2023 00:00:00,24/9/2023 00:00:00,P06-2024
,LEE VALLEY CAMPSITE,PREMISES RELATED EXPENDITURE,BUILDING SERVICE AGREEMENTS,2220,P121646-SERVICE-August 23,19/9/2023 00:00:00,277456,30,VE0006,VERMINATE CITY & RURAL PEST CONTROL LTD,28/8/2023 00:00:00,24/9/2023 00:00:00,P06-2024
,LEE VALLEY CAMPSITE,PREMISES RELATED EXPENDITURE,BUILDING SERVICE AGREEMENTS,2220,P121646-SERVICE-July 23,19/9/2023 00:00:00,277456,40,VE0006,VERMINATE CITY & RURAL PEST CONTROL LTD,28/8/2023 00:00:00,24/9/2023 00:00:00,P06-2024
,LEE VALLEY CAMPSITE,PREMISES RELATED EXPENDITURE,BUILDING SERVICE AGREEMENTS,2220,P121646-SERVICE-August 23,19/9/2023 00:00:00,277459,50,VE0006,VERMINATE CITY & RURAL PEST CONTROL LTD,28/8/2023 00:00:00,24/9/2023 00:00:00,P06-2024
,LEE VALLEY CAMPSITE,PREMISES RELATED EXPENDITURE,BUILDING SERVICE AGREEMENTS,2220,P121646-SERVICE-September 23,19/9/2023 00:00:00,277459,20,VE0006,VERMINATE CITY & RURAL PEST CONTROL LTD,28/8/2023 00:00:00,24/9/2023 00:00:00,P06-2024
,LEE VALLEY CARAVAN PARK,PREMISES RELATED EXPENDITURE,BUILDING SERVICE AGREEMENTS,2220,P123163-SERVICE-2 years TV licence,09/06/2023 00:00,277202,636,TV0648,TV LICENSING-COMMERCIAL,28/8/2023 00:00:00,24/9/2023 00:00:00,P06-2024
,LEE VALLEY CARAVAN PARK,PREMISES RELATED EXPENDITURE,BUILDING SERVICE AGREEMENTS,2220,P123266-SERVICE-Monthly pest control,19/9/2023 00:00:00,277455,70,VE0006,VERMINATE CITY & RURAL PEST CONTROL LTD,28/8/2023 00:00:00,24/9/2023 00:00:00,P06-2024
,LEE VALLEY CARAVAN PARK,PREMISES RELATED EXPENDITURE,BUILDING SERVICE AGREEMENTS,2220,P123268-SERVICE-Monthly pest control,19/9/2023 00:00:00,277458,70,VE0006,VERMINATE CITY & RURAL PEST CONTROL LTD,28/8/2023 00:00:00,24/9/2023 00:00:00,P06-2024
,LEE VALLEY CARAVAN PARK,PREMISES RELATED EXPENDITURE,BUILDING SERVICE AGREEMENTS,2220,P123269-SERVICE-Call out for a wasps next,19/9/2023 00:00:00,277463,160,VE0006,VERMINATE CITY & RURAL PEST CONTROL LTD,28/8/2023 00:00:00,24/9/2023 00:00:00,P06-2024
P&V,NORTH AREA RANGERS,PREMISES RELATED EXPENDITURE,BUILDING SERVICE AGREEMENTS,2220,P121023-SERVICE-Sanitary Disposal - Old Mill & Meadows Toilet,24/9/2023 00:00:00,277915,3.74,PE0015,PHS GROUP PLC,28/8/2023 00:00:00,24/9/2023 00:00:00,P06-2024
P&V,GUNPOWDER PARK,PREMISES RELATED EXPENDITURE,BUILDING SERVICE AGREEMENTS,2220,P121073-SERVICE-Duty of Care - GPP,09/05/2023 00:00,277081,66.5,PE0015,PHS GROUP PLC,28/8/2023 00:00:00,24/9/2023 00:00:00,P06-2024
P&V,GUNPOWDER PARK,PREMISES RELATED EXPENDITURE,BUILDING SERVICE AGREEMENTS,2220,P123116-SERVICE-Mens Toilet Shutters at Gunpowder Park,13/9/2023 00:00:00,277265,140,ES0392,ESSEX DOORS & SHUTTERS LTD,28/8/2023 00:00:00,24/9/2023 00:00:00,P06-2024
P&V,GUNPOWDER PARK,PREMISES RELATED EXPENDITURE,BUILDING SERVICE AGREEMENTS,2220,P121073-SERVICE-Sanitary Disposal - Gunpowder Park - Public T,19/9/2023 00:00:00,277499,14.3,PE0015,PHS GROUP PLC,28/8/2023 00:00:00,24/9/2023 00:00:00,P06-2024
P&V,RIVER LEE COUNTRY PARK,PREMISES RELATED EXPENDITURE,BUILDING SERVICE AGREEMENTS,2220,P121071-SERVICE-Sanitary Disposal - Ranger Base Office Holyfi,09/05/2023 00:00,277080,6.47,PE0015,PHS GROUP PLC,28/8/2023 00:00:00,24/9/2023 00:00:00,P06-2024
P&V,RIVER LEE COUNTRY PARK,PREMISES RELATED EXPENDITURE,BUILDING SERVICE AGREEMENTS,2220,P121074-SERVICE-Duty of Care - FG,09/05/2023 00:00,277082,66.5,PE0015,PHS GROUP PLC,28/8/2023 00:00:00,24/9/2023 00:00:00,P06-2024
P&V,RIVER LEE COUNTRY PARK,PREMISES RELATED EXPENDITURE,BUILDING SERVICE AGREEMENTS,2220,P121074-SERVICE-Sanitary Disposal - Fishers Green Toilets,19/9/2023 00:00:00,277500,10.72,PE0015,PHS GROUP PLC,28/8/2023 00:00:00,24/9/2023 00:00:00,P06-2024
,LV LEISURE CENTRE CAMPSITE,PREMISES RELATED EXPENDITURE,BUILDING SERVICE AGREEMENTS,2220,P123421-SERVICE-sanitry waste collection,24/9/2023 00:00:00,276592,163.96,PE0015,PHS GROUP PLC,28/8/2023 00:00:00,24/9/2023 00:00:00,P06-2024
,LV LEISURE CENTRE CAMPSITE,PREMISES RELATED EXPENDITURE,BUILDING SERVICE AGREEMENTS,2220,P123186-SERVICE-compactor and skip empty hire,09/06/2023 00:00,277269,1550.06,CL0037,VEOLIA ES (UK) LTD,28/8/2023 00:00:00,24/9/2023 00:00:00,P06-2024
,LV LEISURE CENTRE CAMPSITE,PREMISES RELATED EXPENDITURE,BUILDING SERVICE AGREEMENTS,2220,P123256-SERVICE-Sanitary bin collection and disposal,19/9/2023 00:00:00,277449,163.96,PE0015,PHS GROUP PLC,28/8/2023 00:00:00,24/9/2023 00:00:00,P06-2024
,LV LEISURE CENTRE CAMPSITE,PREMISES RELATED EXPENDITURE,BUILDING SERVICE AGREEMENTS,2220,P123264-SERVICE-pump servicing,19/9/2023 00:00:00,277450,180,CO0550,CONVERT WATER LTD,28/8/2023 00:00:00,24/9/2023 00:00:00,P06-2024
,LV LEISURE CENTRE CAMPSITE,PREMISES RELATED EXPENDITURE,BUILDING SERVICE AGREEMENTS,2220,P123258-SERVICE-Pest control of the site August,19/9/2023 00:00:00,277460,70,VE0006,VERMINATE CITY & RURAL PEST CONTROL LTD,28/8/2023 00:00:00,24/9/2023 00:00:00,P06-2024
,LV LEISURE CENTRE CAMPSITE,PREMISES RELATED EXPENDITURE,BUILDING SERVICE AGREEMENTS,2220,P123259-SERVICE-pest control of site for September,19/9/2023 00:00:00,277461,70,VE0006,VERMINATE CITY & RURAL PEST CONTROL LTD,28/8/2023 00:00:00,24/9/2023 00:00:00,P06-2024
,LV LEISURE CENTRE CAMPSITE,PREMISES RELATED EXPENDITURE,BUILDING SERVICE AGREEMENTS,2220,P123302-SERVICE-Barrier repair,24/9/2023 00:00:00,277757,240,RV0035,RVTV SECURITY GROUP LTD,28/8/2023 00:00:00,24/9/2023 00:00:00,P06-2024
,LV LEISURE CENTRE CAMPSITE,PREMISES RELATED EXPENDITURE,BUILDING SERVICE AGREEMENTS,2220,P123389-SERVICE-pest control,24/9/2023 00:00:00,277770,160,VE0006,VERMINATE CITY & RURAL PEST CONTROL LTD,28/8/2023 00:00:00,24/9/2023 00:00:00,P06-2024
,LV LEISURE CENTRE GOLF COURSE,PREMISES RELATED EXPENDITURE,BUILDING SERVICE AGREEMENTS,2220,P122877-SERVICE-Extra funds to cover invoice,09/05/2023 00:00,276898,50,CO0752,COMPLETE TREE CARE LTD,28/8/2023 00:00:00,24/9/2023 00:00:00,P06-2024
P&V,MYDDELTON HOUSE,PREMISES RELATED EXPENDITURE,BUILDING REPAIRS & MAINTENANCE,2222,P122987-SERVICE-Attended site 13.35-2 to clear blocked manhol,13/9/2023 00:00:00,276809,120,AB0257,ABBEY DRAINS LTD,28/8/2023 00:00:00,24/9/2023 00:00:00,P06-2024
P&V,MYDDELTON HOUSE,PREMISES RELATED EXPENDITURE,BUILDING REPAIRS & MAINTENANCE,2222,P123165-SERVICE-lighting test and inspection,13/9/2023 00:00:00,277231,445,BA0062,BACON LIGHTNING PROTECTION & MAINTENANCE LTD,28/8/2023 00:00:00,24/9/2023 00:00:00,P06-2024
P&V,MYDDELTON HOUSE,PREMISES RELATED EXPENDITURE,BUILDING REPAIRS & MAINTENANCE,2222,P123262-SERVICE-Kitchen Cooker Gas Test,13/9/2023 00:00:00,277530,100,AS0039,ASTON GROUP,28/8/2023 00:00:00,24/9/2023 00:00:00,P06-2024
P&V,MYDDELTON HOUSE,PREMISES RELATED EXPENDITURE,BUILDING REPAIRS & MAINTENANCE,2222,P122921-SERVICE-Clean out by hand rainwater gullies at base o,24/9/2023 00:00:00,277947,725,CL0588,CLEAR DRAINS (UK) LTD,28/8/2023 00:00:00,24/9/2023 00:00:00,P06-2024
CEO,RESIDENTIAL ACCOMMODATION,PREMISES RELATED EXPENDITURE,BUILDING REPAIRS & MAINTENANCE,2222,P121557-SERVICE-Maintenance,19/9/2023 00:00:00,277441,220.83,CA0165,CASTLES,28/8/2023 00:00:00,24/9/2023 00:00:00,P06-2024
CEO,RESIDENTIAL ACCOMMODATION,PREMISES RELATED EXPENDITURE,BUILDING REPAIRS & MAINTENANCE,2222,P123382-SERVICE-Railway Cottage - Double Glazed Units,24/9/2023 00:00:00,277704,230,WA0315,PAUL WALLACE ESTATE AGENTS,28/8/2023 00:00:00,24/9/2023 00:00:00,P06-2024
CEO,COMMERCIAL ACCOMMODATION,PREMISES RELATED EXPENDITURE,BUILDING REPAIRS & MAINTENANCE,2222,P121780-SERVICE-Concrete blocks Wharf Road,09/05/2023 00:00,277069,60,NA0171,NAIVETTE SERVICES LTD,28/8/2023 00:00:00,24/9/2023 00:00:00,P06-2024
,LEE VALLEY MARINA SPRINGFIELD,PREMISES RELATED EXPENDITURE,BUILDING REPAIRS & MAINTENANCE,2222,P122541-SERVICE-To carry out new installation to battery,09/05/2023 00:00,276825,697,BR0018,BRADSHAW ELECTRICAL LIMITED,28/8/2023 00:00:00,24/9/2023 00:00:00,P06-2024
,LEE VALLEY MARINA SPRINGFIELD,PREMISES RELATED EXPENDITURE,BUILDING REPAIRS & MAINTENANCE,2222,P122641-SERVICE-To carry out quote QT00207,09/05/2023 00:00,276826,1065,BR0018,BRADSHAW ELECTRICAL LIMITED,28/8/2023 00:00:00,24/9/2023 00:00:00,P06-2024
,LEE VALLEY MARINA SPRINGFIELD,PREMISES RELATED EXPENDITURE,BUILDING REPAIRS & MAINTENANCE,2222,P121723-SERVICE-Emergency callout & repairs,09/05/2023 00:00,276828,268,BR0018,BRADSHAW ELECTRICAL LIMITED,28/8/2023 00:00:00,24/9/2023 00:00:00,P06-2024
,LEE VALLEY MARINA STANSTEAD,PREMISES RELATED EXPENDITURE,BUILDING REPAIRS & MAINTENANCE,2222,P123235-SERVICE-verminate - wasps nests,19/9/2023 00:00:00,277490,160,VE0006,VERMINATE CITY & RURAL PEST CONTROL LTD,28/8/2023 00:00:00,24/9/2023 00:00:00,P06-2024
,LEE VALLEY MARINA STANSTEAD,PREMISES RELATED EXPENDITURE,BUILDING REPAIRS & MAINTENANCE,2222,P123234-SERVICE-rat traps for april and may 23,19/9/2023 00:00:00,277491,70,VE0006,VERMINATE CITY & RURAL PEST CONTROL LTD,28/8/2023 00:00:00,24/9/2023 00:00:00,P06-2024
,LEE VALLEY MARINA STANSTEAD,PREMISES RELATED EXPENDITURE,BUILDING REPAIRS & MAINTENANCE,2222,P123326-SERVICE-both boilers annual service,19/9/2023 00:00:00,277626,130,TA0204,TAYLOR HEATING GROUP LTD,28/8/2023 00:00:00,24/9/2023 00:00:00,P06-2024
P&V,LEE VALLEY FARM HOLYFIELDHALL,PREMISES RELATED EXPENDITURE,BUILDING REPAIRS & MAINTENANCE,2222,P122799-SERVICE-Repair Main Enterance Gate as Per Quote C2049,20/9/2023 00:00:00,277732,1002,PS0429,PSL AUTOMATION,28/8/2023 00:00:00,24/9/2023 00:00:00,P06-2024
P&V,GUNPOWDER PARK,PREMISES RELATED EXPENDITURE,BUILDING REPAIRS & MAINTENANCE,2222,Gunpowder-leaking pipe toilet,24/9/2023 00:00:00,277894,-88.5,RE0094,REACT 2 IT (BUILDING & REFURBISHMENT) LTD,28/8/2023 00:00:00,24/9/2023 00:00:00,P06-2024
P&V,GUNPOWDER PARK,PREMISES RELATED EXPENDITURE,BUILDING REPAIRS & MAINTENANCE,2222,Gunpowder-leaking pipe toilet,24/9/2023 00:00:00,277894,85,RE0094,REACT 2 IT (BUILDING & REFURBISHMENT) LTD,28/8/2023 00:00:00,24/9/2023 00:00:00,P06-2024
P&V,GUNPOWDER PARK,PREMISES RELATED EXPENDITURE,BUILDING REPAIRS & MAINTENANCE,2222,P123377-SERVICE-Fix Leaking Pipe Toilets at Gunpowder Park,24/9/2023 00:00:00,277894,88.5,RE0094,REACT 2 IT (BUILDING & REFURBISHMENT) LTD,28/8/2023 00:00:00,24/9/2023 00:00:00,P06-2024
P&V,GUNPOWDER PARK,PREMISES RELATED EXPENDITURE,BUILDING REPAIRS & MAINTENANCE,2222,Gunpowder-leaking pipe toilet,24/9/2023 00:00:00,277894,3.5,RE0094,REACT 2 IT (BUILDING & REFURBISHMENT) LTD,28/8/2023 00:00:00,24/9/2023 00:00:00,P06-2024
P&V,RIVER LEE COUNTRY PARK,PREMISES RELATED EXPENDITURE,BUILDING REPAIRS & MAINTENANCE,2222,P121894-SERVICE-Electrical Repairs at Old Mill & Meadows,30/8/2023 00:00:00,276816,550,BR0018,BRADSHAW ELECTRICAL LIMITED,28/8/2023 00:00:00,24/9/2023 00:00:00,P06-2024
P&V,RIVER LEE COUNTRY PARK,PREMISES RELATED EXPENDITURE,BUILDING REPAIRS & MAINTENANCE,2222,P121224-SERVICE-Electrical Testing - River Lee Country Park,19/9/2023 00:00:00,277498,220,BR0018,BRADSHAW ELECTRICAL LIMITED,28/8/2023 00:00:00,24/9/2023 00:00:00,P06-2024
P&V,RIVER LEE COUNTRY PARK,PREMISES RELATED EXPENDITURE,BUILDING REPAIRS & MAINTENANCE,2222,P122317-SERVICE-Fishers Green Toilets Urinal - Call Out,24/9/2023 00:00:00,277777,98,KE0023,KENDALL & SONS LIMITED,28/8/2023 00:00:00,24/9/2023 00:00:00,P06-2024
P&V,FORMER LV LIDO SITE,PREMISES RELATED EXPENDITURE,BUILDING REPAIRS & MAINTENANCE,2222,P121908-SERVICE-Electrical Repairs at Broxbourne Riverside,30/8/2023 00:00:00,276814,650,BR0018,BRADSHAW ELECTRICAL LIMITED,28/8/2023 00:00:00,24/9/2023 00:00:00,P06-2024
P&V,FORMER LV LIDO SITE,PREMISES RELATED EXPENDITURE,BUILDING REPAIRS & MAINTENANCE,2222,P121908-SERVICE-Emergency Lighting Repairs at Broxbourne Rive,30/8/2023 00:00:00,276814,340,BR0018,BRADSHAW ELECTRICAL LIMITED,28/8/2023 00:00:00,24/9/2023 00:00:00,P06-2024
,LV LEISURE CENTRE CAMPSITE,PREMISES RELATED EXPENDITURE,BUILDING REPAIRS & MAINTENANCE,2222,"P122603-SERVICE-Tap fittings, backflow contamination",24/9/2023 00:00:00,276803,345,SO0400,SOUTHERN GREEN SERVICES LIMITED,28/8/2023 00:00:00,24/9/2023 00:00:00,P06-2024
,LV LEISURE CENTRE CAMPSITE,PREMISES RELATED EXPENDITURE,BUILDING REPAIRS & MAINTENANCE,2222,"P122604-SERVICE-install daerators, auto air valves",24/9/2023 00:00:00,276804,810,SO0400,SOUTHERN GREEN SERVICES LIMITED,28/8/2023 00:00:00,24/9/2023 00:00:00,P06-2024
,LV LEISURE CENTRE CAMPSITE,PREMISES RELATED EXPENDITURE,BUILDING REPAIRS & MAINTENANCE,2222,P123106-SERVICE-hot and cold pipework valves and leakage,09/07/2023 00:00,277386,930,SO0400,SOUTHERN GREEN SERVICES LIMITED,28/8/2023 00:00:00,24/9/2023 00:00:00,P06-2024
,LV LEISURE CENTRE CAMPSITE,PREMISES RELATED EXPENDITURE,BUILDING REPAIRS & MAINTENANCE,2222,P123105-SERVICE-supply and fit secondary pump,09/07/2023 00:00,277387,395,SO0400,SOUTHERN GREEN SERVICES LIMITED,28/8/2023 00:00:00,24/9/2023 00:00:00,P06-2024
,LV LEISURE CENTRE CAMPSITE,PREMISES RELATED EXPENDITURE,BUILDING REPAIRS & MAINTENANCE,2222,P123104-SERVICE-copper pipes to feed coffee machine,09/07/2023 00:00,277388,365,SO0400,SOUTHERN GREEN SERVICES LIMITED,28/8/2023 00:00:00,24/9/2023 00:00:00,P06-2024
,LV LEISURE CENTRE CAMPSITE,PREMISES RELATED EXPENDITURE,BUILDING REPAIRS & MAINTENANCE,2222,P123102-SERVICE-ECV stickers,09/07/2023 00:00,277389,20,SO0400,SOUTHERN GREEN SERVICES LIMITED,28/8/2023 00:00:00,24/9/2023 00:00:00,P06-2024
,LV LEISURE CENTRE CAMPSITE,PREMISES RELATED EXPENDITURE,BUILDING REPAIRS & MAINTENANCE,2222,P123101-SERVICE-mpg checks for the site,09/07/2023 00:00,277390,225,SO0400,SOUTHERN GREEN SERVICES LIMITED,28/8/2023 00:00:00,24/9/2023 00:00:00,P06-2024
,LV LEISURE CENTRE CAMPSITE,PREMISES RELATED EXPENDITURE,BUILDING REPAIRS & MAINTENANCE,2222,P123100-SERVICE-Flow restrictors,09/07/2023 00:00,277391,720,SO0400,SOUTHERN GREEN SERVICES LIMITED,28/8/2023 00:00:00,24/9/2023 00:00:00,P06-2024
,LV LEISURE CENTRE CAMPSITE,PREMISES RELATED EXPENDITURE,BUILDING REPAIRS & MAINTENANCE,2222,P123099-SERVICE-TMV sevicing descale and test,09/07/2023 00:00,277392,470,SO0400,SOUTHERN GREEN SERVICES LIMITED,28/8/2023 00:00:00,24/9/2023 00:00:00,P06-2024
,LV LEISURE CENTRE CAMPSITE,PREMISES RELATED EXPENDITURE,BUILDING REPAIRS & MAINTENANCE,2222,P123098-SERVICE-3 toilet leaks refixed valves and connected,09/07/2023 00:00,277393,690,SO0400,SOUTHERN GREEN SERVICES LIMITED,28/8/2023 00:00:00,24/9/2023 00:00:00,P06-2024
,LV LEISURE CENTRE CAMPSITE,PREMISES RELATED EXPENDITURE,BUILDING REPAIRS & MAINTENANCE,2222,P123094-SERVICE-Toilet pan replaced,09/07/2023 00:00,277394,515,SO0400,SOUTHERN GREEN SERVICES LIMITED,28/8/2023 00:00:00,24/9/2023 00:00:00,P06-2024
CEO,LVLC SERVICE CHARGE,PREMISES RELATED EXPENDITURE,BUILDING REPAIRS & MAINTENANCE,2222,P121726-SERVICE-Contract Sweep,09/06/2023 00:00,277015,300,SE0374,SELECT SWEEPER HIRE LTD,28/8/2023 00:00:00,24/9/2023 00:00:00,P06-2024
CEO,LVLC SERVICE CHARGE,PREMISES RELATED EXPENDITURE,BUILDING REPAIRS & MAINTENANCE,2222,P121726-SERVICE-Contract Sweep,19/9/2023 00:00:00,277226,300,SE0374,SELECT SWEEPER HIRE LTD,28/8/2023 00:00:00,24/9/2023 00:00:00,P06-2024
P&V,NORTH AREA RANGERS,SUPPLIES AND SERVICES,FENCES/GATES ETC.,2231,P122985-SERVICE-Height Barrier Repairs Stanstead Innings,24/9/2023 00:00:00,277920,650,BU0090,BUSH WHEELER SERVICES LTD,28/8/2023 00:00:00,24/9/2023 00:00:00,P06-2024
P&V,GUNPOWDER PARK,SUPPLIES AND SERVICES,FENCES/GATES ETC.,2231,P122698-SERVICE-Gate Repairs at Rammey Marsh,13/9/2023 00:00:00,277217,340,RE0094,REACT 2 IT (BUILDING & REFURBISHMENT) LTD,28/8/2023 00:00:00,24/9/2023 00:00:00,P06-2024
P&V,GUNPOWDER PARK,SUPPLIES AND SERVICES,FENCES/GATES ETC.,2231,P122698-SERVICE-Gate Repairs at Rammey Marsh,13/9/2023 00:00:00,277217,385,RE0094,REACT 2 IT (BUILDING & REFURBISHMENT) LTD,28/8/2023 00:00:00,24/9/2023 00:00:00,P06-2024
P&V,FORMER LV LIDO SITE,SUPPLIES AND SERVICES,FENCES/GATES ETC.,2231,P123178-SERVICE-Broxbourne Riverside Height Barrier,19/9/2023 00:00:00,277514,340,BA0658,BASE FABRICATIONS LTD,28/8/2023 00:00:00,24/9/2023 00:00:00,P06-2024
P&V,FORMER LV LIDO SITE,SUPPLIES AND SERVICES,FENCES/GATES ETC.,2231,P123310-SERVICE-Height Barrier Repairs Broxbourne Riverside,24/9/2023 00:00:00,277758,290,BA0658,BASE FABRICATIONS LTD,28/8/2023 00:00:00,24/9/2023 00:00:00,P06-2024
CEO,COMMERCIAL ACCOMMODATION,PREMISES RELATED EXPENDITURE,EAST HALE ALLOTMENTS,2261,P121887-SERVICE-Allotment Bins,09/06/2023 00:00,277270,234.1,CL0037,VEOLIA ES (UK) LTD,28/8/2023 00:00:00,24/9/2023 00:00:00,P06-2024
CEO,COMMERCIAL ACCOMMODATION,PREMISES RELATED EXPENDITURE,EAST HALE ALLOTMENTS,2261,P121887-SERVICE-Allotment Bins,09/06/2023 00:00,277271,7.2,CL0037,VEOLIA ES (UK) LTD,28/8/2023 00:00:00,24/9/2023 00:00:00,P06-2024
CEO,COMMERCIAL ACCOMMODATION,PREMISES RELATED EXPENDITURE,EAST HALE ALLOTMENTS,2261,P122046-SERVICE-Grass Cutting,09/06/2023 00:00,277274,809.16,GL0214,GLENDALE GROUNDS MANAGEMENT LIMITED,28/8/2023 00:00:00,24/9/2023 00:00:00,P06-2024
P&V,MYDDELTON HOUSE,PREMISES RELATED EXPENDITURE,ENERGY COSTS (ELECTRICITY),2332,Md Hse-electric supply-Aug23,19/9/2023 00:00:00,277648,2485.76,KE0007,KENT COUNTY COUNCIL (KCS),28/8/2023 00:00:00,24/9/2023 00:00:00,P06-2024
P&V,MYDDELTON HOUSE,PREMISES RELATED EXPENDITURE,ENERGY COSTS (ELECTRICITY),2332,Md-Garden Bungalow-08/23,19/9/2023 00:00:00,277649,798.97,KE0007,KENT COUNTY COUNCIL (KCS),28/8/2023 00:00:00,24/9/2023 00:00:00,P06-2024
CEO,RESIDENTIAL ACCOMMODATION,PREMISES RELATED EXPENDITURE,ENERGY COSTS (ELECTRICITY),2332,LV Forge-12/07/23-11/08/23,20/9/2023 00:00:00,276822,15.45,EO0418,E-ON NEXT ENERGY LTD,28/8/2023 00:00:00,24/9/2023 00:00:00,P06-2024
CEO,RESIDENTIAL ACCOMMODATION,PREMISES RELATED EXPENDITURE,ENERGY COSTS (ELECTRICITY),2332,01/08/23-31/08/23,19/9/2023 00:00:00,277395,7.13,EO0419,E-ON NEXT ENERGY LTD,28/8/2023 00:00:00,24/9/2023 00:00:00,P06-2024
CEO,RESIDENTIAL ACCOMMODATION,PREMISES RELATED EXPENDITURE,ENERGY COSTS (ELECTRICITY),2332,Aug-23,19/9/2023 00:00:00,277398,31,EO0398,E-ON NEXT ENERGY LTD,28/8/2023 00:00:00,24/9/2023 00:00:00,P06-2024
CEO,COMMERCIAL ACCOMMODATION,PREMISES RELATED EXPENDITURE,ENERGY COSTS (ELECTRICITY),2332,10/08/23-31/08/23,20/9/2023 00:00:00,277617,18.68,EO0419,E-ON NEXT ENERGY LTD,28/8/2023 00:00:00,24/9/2023 00:00:00,P06-2024
CEO,COMMERCIAL ACCOMMODATION,PREMISES RELATED EXPENDITURE,ENERGY COSTS (ELECTRICITY),2332,Electric-August 2023,20/9/2023 00:00:00,277618,96.56,EO0420,E-ON NEXT ENERGY LTD,28/8/2023 00:00:00,24/9/2023 00:00:00,P06-2024
CEO,COMMERCIAL ACCOMMODATION,PREMISES RELATED EXPENDITURE,ENERGY COSTS (ELECTRICITY),2332,12/08/23-11/09/23,20/9/2023 00:00:00,277737,15.43,EO0418,E-ON NEXT ENERGY LTD,28/8/2023 00:00:00,24/9/2023 00:00:00,P06-2024
,LEE VALLEY MARINA SPRINGFIELD,PREMISES RELATED EXPENDITURE,ENERGY COSTS (ELECTRICITY),2332,Springfield-Elecric supply-Aug 23,19/9/2023 00:00:00,277635,3213.13,KE0007,KENT COUNTY COUNCIL (KCS),28/8/2023 00:00:00,24/9/2023 00:00:00,P06-2024
,LEE VALLEY MARINA STANSTEAD,PREMISES RELATED EXPENDITURE,ENERGY COSTS (ELECTRICITY),2332,Stanstead Toilet Blk- electric Jun-Aug23,19/9/2023 00:00:00,277650,206.75,KE0007,KENT COUNTY COUNCIL (KCS),28/8/2023 00:00:00,24/9/2023 00:00:00,P06-2024
,LEE VALLEY MARINA STANSTEAD,PREMISES RELATED EXPENDITURE,ENERGY COSTS (ELECTRICITY),2332,Stanstead Undercover boat-Jun-Aug23,19/9/2023 00:00:00,277651,330.03,KE0007,KENT COUNTY COUNCIL (KCS),28/8/2023 00:00:00,24/9/2023 00:00:00,P06-2024
,LEE VALLEY MARINA STANSTEAD,PREMISES RELATED EXPENDITURE,ENERGY COSTS (ELECTRICITY),2332,Stanstead Boat Yard-Jun-Aug 23,19/9/2023 00:00:00,277652,4694.24,KE0007,KENT COUNTY COUNCIL (KCS),28/8/2023 00:00:00,24/9/2023 00:00:00,P06-2024
,LEE VALLEY WATERWORKS CENTRE,PREMISES RELATED EXPENDITURE,ENERGY COSTS (ELECTRICITY),2332,Waterworks-electric supply-Aug 23,19/9/2023 00:00:00,277689,910.87,NP0123,NPOWER LIMITED,28/8/2023 00:00:00,24/9/2023 00:00:00,P06-2024
P&V,LEE VALLEY FARM HOLYFIELDHALL,PREMISES RELATED EXPENDITURE,ENERGY COSTS (ELECTRICITY),2332,BRITISH GAS TRADING LTD,13/9/2023 00:00:00,277229,47.99,BR0030,BRITISH GAS TRADING LTD,28/8/2023 00:00:00,24/9/2023 00:00:00,P06-2024
,LEE VALLEY CAMPSITE,PREMISES RELATED EXPENDITURE,ENERGY COSTS (ELECTRICITY),2332,Sewardstone-Electric supply-Aug 23,24/9/2023 00:00:00,277633,1922.78,KE0007,KENT COUNTY COUNCIL (KCS),28/8/2023 00:00:00,24/9/2023 00:00:00,P06-2024
,LEE VALLEY CAMPSITE,PREMISES RELATED EXPENDITURE,ENERGY COSTS (ELECTRICITY),2332,Sewardstone-Electric supply-Aug 23,24/9/2023 00:00:00,277634,3385.49,KE0007,KENT COUNTY COUNCIL (KCS),28/8/2023 00:00:00,24/9/2023 00:00:00,P06-2024
,LEE VALLEY CAMPSITE,PREMISES RELATED EXPENDITURE,ENERGY COSTS (ELECTRICITY),2332,Sewardstone-electric-Jun-Aug23,24/9/2023 00:00:00,277679,110.07,KE0007,KENT COUNTY COUNCIL (KCS),28/8/2023 00:00:00,24/9/2023 00:00:00,P06-2024
,LEE VALLEY CARAVAN PARK,PREMISES RELATED EXPENDITURE,ENERGY COSTS (ELECTRICITY),2332,DW-Electric supply- Aug 23,19/9/2023 00:00:00,277632,9967.87,KE0007,KENT COUNTY COUNCIL (KCS),28/8/2023 00:00:00,24/9/2023 00:00:00,P06-2024
P&V,EAST INDIA DOCK AND BOW CREEK,PREMISES RELATED EXPENDITURE,ENERGY COSTS (ELECTRICITY),2332,Bow Creek-electric supply-Aug22-Oct22,19/9/2023 00:00:00,276794,172.87,KE0007,KENT COUNTY COUNCIL (KCS),28/8/2023 00:00:00,24/9/2023 00:00:00,P06-2024
P&V,EAST INDIA DOCK AND BOW CREEK,PREMISES RELATED EXPENDITURE,ENERGY COSTS (ELECTRICITY),2332,June -Aug 2023,19/9/2023 00:00:00,277680,80.11,KE0007,KENT COUNTY COUNCIL (KCS),28/8/2023 00:00:00,24/9/2023 00:00:00,P06-2024
P&V,RYE HOUSE GATEHOUSE,PREMISES RELATED EXPENDITURE,ENERGY COSTS (ELECTRICITY),2332,Rye House-June-Aug 23,19/9/2023 00:00:00,277654,142.8,KE0007,KENT COUNTY COUNCIL (KCS),28/8/2023 00:00:00,24/9/2023 00:00:00,P06-2024
P&V,NORTH AREA RANGERS,PREMISES RELATED EXPENDITURE,ENERGY COSTS (ELECTRICITY),2332,Mill Lane Toilet Blk-June-Aug23,19/9/2023 00:00:00,277656,959.78,KE0007,KENT COUNTY COUNCIL (KCS),28/8/2023 00:00:00,24/9/2023 00:00:00,P06-2024
P&V,NORTH AREA RANGERS,PREMISES RELATED EXPENDITURE,ENERGY COSTS (ELECTRICITY),2332,Rye Gate F-electric supply-Jun-Aug23,19/9/2023 00:00:00,277681,87.72,KE0007,KENT COUNTY COUNCIL (KCS),28/8/2023 00:00:00,24/9/2023 00:00:00,P06-2024
P&V,SOUTH AREA RANGERS,PREMISES RELATED EXPENDITURE,ENERGY COSTS (ELECTRICITY),2332,Feeder P-Lee Bridge Rd-June-Aug 23,19/9/2023 00:00:00,277653,133.09,KE0007,KENT COUNTY COUNCIL (KCS),28/8/2023 00:00:00,24/9/2023 00:00:00,P06-2024
P&V,ABBEY GARDENS,PREMISES RELATED EXPENDITURE,ENERGY COSTS (ELECTRICITY),2332,Abbey Gardens-Electricity-JunAug23-,19/9/2023 00:00:00,277655,944.25,KE0007,KENT COUNTY COUNCIL (KCS),28/8/2023 00:00:00,24/9/2023 00:00:00,P06-2024
P&V,GUNPOWDER PARK,PREMISES RELATED EXPENDITURE,ENERGY COSTS (ELECTRICITY),2332,Field Station-Eelctric supply-Aug23,19/9/2023 00:00:00,277658,528.99,KE0007,KENT COUNTY COUNCIL (KCS),28/8/2023 00:00:00,24/9/2023 00:00:00,P06-2024
P&V,RIVER LEE COUNTRY PARK,PREMISES RELATED EXPENDITURE,ENERGY COSTS (ELECTRICITY),2332,Fishers Green Eelctric supply-Jun-Aug23,19/9/2023 00:00:00,277657,493.44,KE0007,KENT COUNTY COUNCIL (KCS),28/8/2023 00:00:00,24/9/2023 00:00:00,P06-2024
P&V,RIVER LEE COUNTRY PARK,PREMISES RELATED EXPENDITURE,ENERGY COSTS (ELECTRICITY),2332,Windmill Lane-electric-01/06/23-31/08/23,19/9/2023 00:00:00,277759,113.43,KE0007,KENT COUNTY COUNCIL (KCS),28/8/2023 00:00:00,24/9/2023 00:00:00,P06-2024
P&V,QUEEN ELIZABETH OLYMPIC PARK,PREMISES RELATED EXPENDITURE,ENERGY COSTS (ELECTRICITY),2332,VELOPARK-E20-MPAN 5201-Aug 23,19/9/2023 00:00:00,277636,91.67,KE0007,KENT COUNTY COUNCIL (KCS),28/8/2023 00:00:00,24/9/2023 00:00:00,P06-2024
P&V,QUEEN ELIZABETH OLYMPIC PARK,PREMISES RELATED EXPENDITURE,ENERGY COSTS (ELECTRICITY),2332,VELOPARK-E20-MPAN 5201-Aug 23,19/9/2023 00:00:00,277636,1.02,KE0007,KENT COUNTY COUNCIL (KCS),28/8/2023 00:00:00,24/9/2023 00:00:00,P06-2024
P&V,QUEEN ELIZABETH OLYMPIC PARK,PREMISES RELATED EXPENDITURE,ENERGY COSTS (ELECTRICITY),2332,Velo-E20-MPAN1201-Jun-Aug23,19/9/2023 00:00:00,277659,178.18,KE0007,KENT COUNTY COUNCIL (KCS),28/8/2023 00:00:00,24/9/2023 00:00:00,P06-2024
P&V,QUEEN ELIZABETH OLYMPIC PARK,PREMISES RELATED EXPENDITURE,ENERGY COSTS (ELECTRICITY),2332,Velo-E20-MPAN 1204-Aug 23,19/9/2023 00:00:00,277660,168.31,KE0007,KENT COUNTY COUNCIL (KCS),28/8/2023 00:00:00,24/9/2023 00:00:00,P06-2024
P&V,QUEEN ELIZABETH OLYMPIC PARK,PREMISES RELATED EXPENDITURE,ENERGY COSTS (ELECTRICITY),2332,Velo-E20-MPAN 1201-Jun-Aug23,19/9/2023 00:00:00,277661,181.56,KE0007,KENT COUNTY COUNCIL (KCS),28/8/2023 00:00:00,24/9/2023 00:00:00,P06-2024
P&V,QUEEN ELIZABETH OLYMPIC PARK,PREMISES RELATED EXPENDITURE,ENERGY COSTS (ELECTRICITY),2332,Velo-E20-MPAN 1203-Jun-Aug23,19/9/2023 00:00:00,277662,1369.24,KE0007,KENT COUNTY COUNCIL (KCS),28/8/2023 00:00:00,24/9/2023 00:00:00,P06-2024
P&V,QUEEN ELIZABETH OLYMPIC PARK,PREMISES RELATED EXPENDITURE,ENERGY COSTS (ELECTRICITY),2332,MPAN 1712-19/02/22-31/03/22,24/9/2023 00:00:00,277753,4.09,ED0321,EDF ENERGY CUSTOMERS PLC,28/8/2023 00:00:00,24/9/2023 00:00:00,P06-2024
P&V,QUEEN ELIZABETH OLYMPIC PARK,PREMISES RELATED EXPENDITURE,ENERGY COSTS (ELECTRICITY),2332,MPAN 1712-19/02/22-31/03/22,24/9/2023 00:00:00,277754,-4.09,ED0321,EDF ENERGY CUSTOMERS PLC,28/8/2023 00:00:00,24/9/2023 00:00:00,P06-2024
P&V,QUEEN ELIZABETH OLYMPIC PARK,PREMISES RELATED EXPENDITURE,ENERGY COSTS (ELECTRICITY),2332,MPAN 1712-01/04/23-30/04/23,24/9/2023 00:00:00,277755,6.72,ED0321,EDF ENERGY CUSTOMERS PLC,28/8/2023 00:00:00,24/9/2023 00:00:00,P06-2024
P&V,QUEEN ELIZABETH OLYMPIC PARK,PREMISES RELATED EXPENDITURE,ENERGY COSTS (ELECTRICITY),2332,Comp Ref 267746-507/2332-19Feb22-18May22,24/9/2023 00:00:00,277756,-12.57,ED0321,EDF ENERGY CUSTOMERS PLC,28/8/2023 00:00:00,24/9/2023 00:00:00,P06-2024
P&V,CAR PARK INCOME,PREMISES RELATED EXPENDITURE,ENERGY COSTS (ELECTRICITY),2332,Cornmill Mead-electric supply-Aug 23,19/9/2023 00:00:00,277688,43.22,NP0123,NPOWER LIMITED,28/8/2023 00:00:00,24/9/2023 00:00:00,P06-2024
P&V,CAR PARK INCOME,PREMISES RELATED EXPENDITURE,ENERGY COSTS (ELECTRICITY),2332,Clayton Hill-electric supply-Aug 23,19/9/2023 00:00:00,277690,33.92,NP0123,NPOWER LIMITED,28/8/2023 00:00:00,24/9/2023 00:00:00,P06-2024
,LEE VALLEY VELOPARK,PREMISES RELATED EXPENDITURE,ENERGY COSTS (ELECTRICITY),2332,19/02/23 - 31/03/23,19/9/2023 00:00:00,277739,7.25,ED0321,EDF ENERGY CUSTOMERS PLC,28/8/2023 00:00:00,24/9/2023 00:00:00,P06-2024
,LV LEISURE CENTRE CAMPSITE,PREMISES RELATED EXPENDITURE,ENERGY COSTS (ELECTRICITY),2332,Edm-electric supply Aug23,20/9/2023 00:00:00,277691,7569.33,NP0123,NPOWER LIMITED,28/8/2023 00:00:00,24/9/2023 00:00:00,P06-2024
CEO,RESIDENTIAL ACCOMMODATION,PREMISES RELATED EXPENDITURE,ENERGY COSTS (GAS),2333,GAS METER-6450916 18Jul=17Aug23,09/06/2023 00:00,277002,10.13,BR0654,BRITISH GAS TRADING LTD,28/8/2023 00:00:00,24/9/2023 00:00:00,P06-2024
,LEE VALLEY MARINA SPRINGFIELD,PREMISES RELATED EXPENDITURE,ENERGY COSTS (GAS),2333,Springfield-gas utility=Aug23,19/9/2023 00:00:00,277685,263.59,KE0007,KENT COUNTY COUNCIL (KCS),28/8/2023 00:00:00,24/9/2023 00:00:00,P06-2024
,LEE VALLEY MARINA STANSTEAD,PREMISES RELATED EXPENDITURE,ENERGY COSTS (GAS),2333,Stanstead-gas supply-Aug 23,19/9/2023 00:00:00,277684,125.89,KE0007,KENT COUNTY COUNCIL (KCS),28/8/2023 00:00:00,24/9/2023 00:00:00,P06-2024
,LEE VALLEY MARINA STANSTEAD,PREMISES RELATED EXPENDITURE,ENERGY COSTS (GAS),2333,Stanstead-gas utility-Aug23,19/9/2023 00:00:00,277687,165.5,KE0007,KENT COUNTY COUNCIL (KCS),28/8/2023 00:00:00,24/9/2023 00:00:00,P06-2024
,LEE VALLEY WATERWORKS CENTRE,PREMISES RELATED EXPENDITURE,ENERGY COSTS (GAS),2333,Waterworks-GAS SUPPLY-July23,09/05/2023 00:00,276652,542.03,KE0007,KENT COUNTY COUNCIL (KCS),28/8/2023 00:00:00,24/9/2023 00:00:00,P06-2024
,LEE VALLEY WATERWORKS CENTRE,PREMISES RELATED EXPENDITURE,ENERGY COSTS (GAS),2333,Waterworks-gas utility-Aug 23,19/9/2023 00:00:00,277686,529.98,KE0007,KENT COUNTY COUNCIL (KCS),28/8/2023 00:00:00,24/9/2023 00:00:00,P06-2024
,LEE VALLEY CAMPSITE,PREMISES RELATED EXPENDITURE,ENERGY COSTS (GAS),2333,Sewardstone-gas supply-Aug 23,24/9/2023 00:00:00,277683,478.6,KE0007,KENT COUNTY COUNCIL (KCS),28/8/2023 00:00:00,24/9/2023 00:00:00,P06-2024
P&V,GUNPOWDER PARK,PREMISES RELATED EXPENDITURE,ENERGY COSTS (GAS),2333,Gunpowder-gas utility-Aug 23,19/9/2023 00:00:00,277730,38.27,KE0007,KENT COUNTY COUNCIL (KCS),28/8/2023 00:00:00,24/9/2023 00:00:00,P06-2024
,LV LEISURE CENTRE CAMPSITE,PREMISES RELATED EXPENDITURE,ENERGY COSTS (GAS),2333,Edm-Gas supply-Aug 23,20/9/2023 00:00:00,277682,844.89,KE0007,KENT COUNTY COUNCIL (KCS),28/8/2023 00:00:00,24/9/2023 00:00:00,P06-2024
,LEE VALLEY MARINA SPRINGFIELD,PREMISES RELATED EXPENDITURE,RENT (EXTERNAL),2442,RENT IN ADVANCE Sept23-Nov23,09/06/2023 00:00,276910,2970,TH0020,THAMES WATER UTILITIES LIMITED,28/8/2023 00:00:00,24/9/2023 00:00:00,P06-2024
P&V,NORTH AREA RANGERS,PREMISES RELATED EXPENDITURE,RENT (EXTERNAL),2442,Access Rent-29/09/23-28/09/24,19/9/2023 00:00:00,277192,279.41,RA0005,NETWORK RAIL,28/8/2023 00:00:00,24/9/2023 00:00:00,P06-2024
P&V,RIVER LEE COUNTRY PARK,PREMISES RELATED EXPENDITURE,RENT (EXTERNAL),2442,Agreement rent-25/04-24/10/23,20/9/2023 00:00:00,277781,7.5,BR0036,CANAL & RIVER TRUST,28/8/2023 00:00:00,24/9/2023 00:00:00,P06-2024
CEO,RESIDENTIAL ACCOMMODATION,PREMISES RELATED EXPENDITURE,PROPERTY MANAGEMT/LETTING FEES,2447,P123195-SERVICE-2 Bungalow - 1 Month & 5 Month Management Fee,13/9/2023 00:00:00,277062,937,WA0315,PAUL WALLACE ESTATE AGENTS,28/8/2023 00:00:00,24/9/2023 00:00:00,P06-2024
CEO,RESIDENTIAL ACCOMMODATION,PREMISES RELATED EXPENDITURE,PROPERTY MANAGEMT/LETTING FEES,2447,P123275-SERVICE-Marshgate Cottage - 6 Month Management Fee,19/9/2023 00:00:00,277493,600,WA0315,PAUL WALLACE ESTATE AGENTS,28/8/2023 00:00:00,24/9/2023 00:00:00,P06-2024
P&V,MYDDELTON HOUSE,PREMISES RELATED EXPENDITURE,WATER,2555,MD House - water usage- Aug 2023,13/9/2023 00:00:00,277397,1998.68,CA0625,CASTLE WATER LIMITED,28/8/2023 00:00:00,24/9/2023 00:00:00,P06-2024
,LEE VALLEY MARINA SPRINGFIELD,PREMISES RELATED EXPENDITURE,WATER,2555,Springfield-Water usage -Aug23,19/9/2023 00:00:00,277531,1128.13,CA0625,CASTLE WATER LIMITED,28/8/2023 00:00:00,24/9/2023 00:00:00,P06-2024
,LEE VALLEY MARINA SPRINGFIELD,PREMISES RELATED EXPENDITURE,WATER,2555,Springfield-Water usage -Aug23,19/9/2023 00:00:00,277531,1806.88,CA0625,CASTLE WATER LIMITED,28/8/2023 00:00:00,24/9/2023 00:00:00,P06-2024
,LEE VALLEY MARINA STANSTEAD,PREMISES RELATED EXPENDITURE,WATER,2555,Stanstead-water usage-Aug 2023,09/07/2023 00:00,277207,185.98,CA0625,CASTLE WATER LIMITED,28/8/2023 00:00:00,24/9/2023 00:00:00,P06-2024
,LEE VALLEY MARINA STANSTEAD,PREMISES RELATED EXPENDITURE,WATER,2555,Stanstead-water usage-Aug 2023,09/07/2023 00:00,277207,190.93,CA0625,CASTLE WATER LIMITED,28/8/2023 00:00:00,24/9/2023 00:00:00,P06-2024
,LEE VALLEY WATERWORKS CENTRE,PREMISES RELATED EXPENDITURE,WATER,2555,Waterworks-water usage-Aug 2023,13/9/2023 00:00:00,277213,93.34,CA0625,CASTLE WATER LIMITED,28/8/2023 00:00:00,24/9/2023 00:00:00,P06-2024
P&V,LEE VALLEY FARM HOLYFIELDHALL,PREMISES RELATED EXPENDITURE,WATER,2555,ENVIRONMENT AGENCY,24/9/2023 00:00:00,276020,222,EN0024,ENVIRONMENT AGENCY,28/8/2023 00:00:00,24/9/2023 00:00:00,P06-2024
,LEE VALLEY CAMPSITE,PREMISES RELATED EXPENDITURE,WATER,2555,Sewardstone-water usage-Aug 23,09/07/2023 00:00,277208,1988.55,CA0625,CASTLE WATER LIMITED,28/8/2023 00:00:00,24/9/2023 00:00:00,P06-2024
,LEE VALLEY CAMPSITE,PREMISES RELATED EXPENDITURE,WATER,2555,Sewardstone-Adjustments 01June-31Aug 23,24/9/2023 00:00:00,277760,1554.43,CA0625,CASTLE WATER LIMITED,28/8/2023 00:00:00,24/9/2023 00:00:00,P06-2024
,LEE VALLEY CARAVAN PARK,PREMISES RELATED EXPENDITURE,WATER,2555,DW-Adjustment - June-July 23,09/05/2023 00:00,277057,-182.41,CA0625,CASTLE WATER LIMITED,28/8/2023 00:00:00,24/9/2023 00:00:00,P06-2024
,LEE VALLEY CARAVAN PARK,PREMISES RELATED EXPENDITURE,WATER,2555,DW-Adjustment - June-July 23,09/05/2023 00:00,277057,-316.35,CA0625,CASTLE WATER LIMITED,28/8/2023 00:00:00,24/9/2023 00:00:00,P06-2024
,LEE VALLEY CARAVAN PARK,PREMISES RELATED EXPENDITURE,WATER,2555,DW-Water usage-Aug 23,19/9/2023 00:00:00,277513,1979.76,CA0625,CASTLE WATER LIMITED,28/8/2023 00:00:00,24/9/2023 00:00:00,P06-2024
,LEE VALLEY CARAVAN PARK,PREMISES RELATED EXPENDITURE,WATER,2555,DW-Water usage-Aug 23,19/9/2023 00:00:00,277513,3283.83,CA0625,CASTLE WATER LIMITED,28/8/2023 00:00:00,24/9/2023 00:00:00,P06-2024
,LEE VALLEY CARAVAN PARK,PREMISES RELATED EXPENDITURE,WATER,2555,DW- Adjustment - July - Aug 23,24/9/2023 00:00:00,277761,116.39,CA0625,CASTLE WATER LIMITED,28/8/2023 00:00:00,24/9/2023 00:00:00,P06-2024
,LEE VALLEY CARAVAN PARK,PREMISES RELATED EXPENDITURE,WATER,2555,DW- Adjustment - July - Aug 23,24/9/2023 00:00:00,277761,201.84,CA0625,CASTLE WATER LIMITED,28/8/2023 00:00:00,24/9/2023 00:00:00,P06-2024
P&V,EAST INDIA DOCK AND BOW CREEK,PREMISES RELATED EXPENDITURE,WATER,2555,ENVIRONMENT AGENCY,24/9/2023 00:00:00,276017,538,EN0024,ENVIRONMENT AGENCY,28/8/2023 00:00:00,24/9/2023 00:00:00,P06-2024
P&V,SOUTH AREA RANGERS,PREMISES RELATED EXPENDITURE,WATER,2555,ENVIRONMENT AGENCY,24/9/2023 00:00:00,276019,513,EN0024,ENVIRONMENT AGENCY,28/8/2023 00:00:00,24/9/2023 00:00:00,P06-2024
P&V,RIVER LEE COUNTRY PARK,PREMISES RELATED EXPENDITURE,WATER,2555,ENVIRONMENT AGENCY,24/9/2023 00:00:00,276017,102,EN0024,ENVIRONMENT AGENCY,28/8/2023 00:00:00,24/9/2023 00:00:00,P06-2024
P&V,RIVER LEE COUNTRY PARK,PREMISES RELATED EXPENDITURE,WATER,2555,Showground-water-July-Aug23,19/9/2023 00:00:00,277731,147.5,CA0625,CASTLE WATER LIMITED,28/8/2023 00:00:00,24/9/2023 00:00:00,P06-2024
P&V,RIVER LEE COUNTRY PARK,PREMISES RELATED EXPENDITURE,WATER,2555,Aug-23,19/9/2023 00:00:00,277738,89.33,CA0625,CASTLE WATER LIMITED,28/8/2023 00:00:00,24/9/2023 00:00:00,P06-2024
,LV LEISURE CENTRE CAMPSITE,PREMISES RELATED EXPENDITURE,WATER,2555,Edm-Water usage-Aug 23,13/9/2023 00:00:00,277532,667.52,CA0625,CASTLE WATER LIMITED,28/8/2023 00:00:00,24/9/2023 00:00:00,P06-2024
,LV LEISURE CENTRE CAMPSITE,PREMISES RELATED EXPENDITURE,WATER,2555,Edm-Water usage-Aug 23,13/9/2023 00:00:00,277532,558.95,CA0625,CASTLE WATER LIMITED,28/8/2023 00:00:00,24/9/2023 00:00:00,P06-2024
,LV LEISURE CENTRE CAMPSITE,PREMISES RELATED EXPENDITURE,WATER,2555,EDM-WATER USAGE-AUG 23,19/9/2023 00:00:00,277631,36.93,CA0625,CASTLE WATER LIMITED,28/8/2023 00:00:00,24/9/2023 00:00:00,P06-2024
,LV LEISURE CENTRE CAMPSITE,PREMISES RELATED EXPENDITURE,WATER,2555,EDM-WATER USAGE-AUG 23,19/9/2023 00:00:00,277631,42.62,CA0625,CASTLE WATER LIMITED,28/8/2023 00:00:00,24/9/2023 00:00:00,P06-2024
,LV LEISURE CENTRE CAMPSITE,PREMISES RELATED EXPENDITURE,WATER,2555,CASTLE WATER LIMITED,24/9/2023 00:00:00,277876,157.21,CA0625,CASTLE WATER LIMITED,28/8/2023 00:00:00,24/9/2023 00:00:00,P06-2024
,LV LEISURE CENTRE CAMPSITE,PREMISES RELATED EXPENDITURE,WATER,2555,CASTLE WATER LIMITED,24/9/2023 00:00:00,277876,90.64,CA0625,CASTLE WATER LIMITED,28/8/2023 00:00:00,24/9/2023 00:00:00,P06-2024
,LEE VALLEY WHITE WATER CENTRE,PREMISES RELATED EXPENDITURE,WATER,2555,ENVIRONMENT AGENCY,24/9/2023 00:00:00,276018,538,EN0024,ENVIRONMENT AGENCY,28/8/2023 00:00:00,24/9/2023 00:00:00,P06-2024
,LEE VALLEY MARINA SPRINGFIELD,PREMISES RELATED EXPENDITURE,CLEANING & DOMESTIC SUPPLIES,2666,P123193-SERVICE-Site Cleaning August to november 23,09/06/2023 00:00,277216,1070.52,MA0015,MAYFAIR CLEANING COMPANY LIMITED,28/8/2023 00:00:00,24/9/2023 00:00:00,P06-2024
,LEE VALLEY MARINA SPRINGFIELD,PREMISES RELATED EXPENDITURE,CLEANING & DOMESTIC SUPPLIES,2666,P122821-SERVICE-To supply items as requested,19/9/2023 00:00:00,277646,196.23,HY0043,HYGIENE SYSTEMS LTD,28/8/2023 00:00:00,24/9/2023 00:00:00,P06-2024
,LEE VALLEY CAMPSITE,PREMISES RELATED EXPENDITURE,CLEANING & DOMESTIC SUPPLIES,2666,P122616-SERVICE-Site Cleaning Materials,09/07/2023 00:00,277306,274.1,HY0043,HYGIENE SYSTEMS LTD,28/8/2023 00:00:00,24/9/2023 00:00:00,P06-2024
,LEE VALLEY CARAVAN PARK,PREMISES RELATED EXPENDITURE,CLEANING & DOMESTIC SUPPLIES,2666,P122937-SERVICE-Cleaning materials,09/05/2023 00:00,276812,417.26,HY0043,HYGIENE SYSTEMS LTD,28/8/2023 00:00:00,24/9/2023 00:00:00,P06-2024
,LEE VALLEY CARAVAN PARK,PREMISES RELATED EXPENDITURE,CLEANING & DOMESTIC SUPPLIES,2666,P123241-SERVICE-Cleaning materials,19/9/2023 00:00:00,277643,334.87,HY0043,HYGIENE SYSTEMS LTD,28/8/2023 00:00:00,24/9/2023 00:00:00,P06-2024
,LV LEISURE CENTRE CAMPSITE,PREMISES RELATED EXPENDITURE,CLEANING & DOMESTIC SUPPLIES,2666,P123021-SERVICE-Black sacks cleaning supplies,09/05/2023 00:00,277085,123.6,HY0043,HYGIENE SYSTEMS LTD,28/8/2023 00:00:00,24/9/2023 00:00:00,P06-2024
,LV LEISURE CENTRE CAMPSITE,PREMISES RELATED EXPENDITURE,CLEANING & DOMESTIC SUPPLIES,2666,P123111-SERVICE-cleaning supplies,09/05/2023 00:00,277167,137.83,HY0043,HYGIENE SYSTEMS LTD,28/8/2023 00:00:00,24/9/2023 00:00:00,P06-2024
,LV LEISURE CENTRE CAMPSITE,PREMISES RELATED EXPENDITURE,CLEANING & DOMESTIC SUPPLIES,2666,P123185-SERVICE-monthly site cleaning,09/06/2023 00:00,277259,4037,LI0305,LIMPIAR CLEANING,28/8/2023 00:00:00,24/9/2023 00:00:00,P06-2024
,LV LEISURE CENTRE CAMPSITE,PREMISES RELATED EXPENDITURE,CLEANING & DOMESTIC SUPPLIES,2666,P123205-SERVICE-cleaning supplies,13/9/2023 00:00:00,277484,530.12,HY0043,HYGIENE SYSTEMS LTD,28/8/2023 00:00:00,24/9/2023 00:00:00,P06-2024
,LV LEISURE CENTRE CAMPSITE,PREMISES RELATED EXPENDITURE,CLEANING & DOMESTIC SUPPLIES,2666,P123265-SERVICE-cleaning supplies,24/9/2023 00:00:00,277787,490.62,HY0043,HYGIENE SYSTEMS LTD,28/8/2023 00:00:00,24/9/2023 00:00:00,P06-2024
P&V,LEE VALLEY FARM HOLYFIELDHALL,TRANSPORT RELATED EXPENDITURE,TRANSPORT RUNNING EXPENSES,3333,P123120-SERVICE-Examine & Recertify Various Lifting Equipment,09/06/2023 00:00,277183,120,AC0506,A.C.E. LIFTING LTD,28/8/2023 00:00:00,24/9/2023 00:00:00,P06-2024
P&V,LEE VALLEY FARM HOLYFIELDHALL,TRANSPORT RELATED EXPENDITURE,TRANSPORT RUNNING EXPENSES,3333,P121508-SERVICE-Welding Sundries,13/9/2023 00:00:00,277222,47.95,BO0015,BOC LTD,28/8/2023 00:00:00,24/9/2023 00:00:00,P06-2024
P&V,LEE VALLEY FARM HOLYFIELDHALL,TRANSPORT RELATED EXPENDITURE,TRANSPORT RUNNING EXPENSES,3333,P121508-SERVICE-Welding Sundries,13/9/2023 00:00:00,277223,178,BO0015,BOC LTD,28/8/2023 00:00:00,24/9/2023 00:00:00,P06-2024
P&V,LEE VALLEY FARM HOLYFIELDHALL,TRANSPORT RELATED EXPENDITURE,TRANSPORT RUNNING EXPENSES,3333,P123153-SERVICE-Repair to Combine,20/9/2023 00:00:00,277227,492,RW0257,R. W. CRAWFORD AGRICULTURAL MACHINERY LTD,28/8/2023 00:00:00,24/9/2023 00:00:00,P06-2024
P&V,LEE VALLEY FARM HOLYFIELDHALL,TRANSPORT RELATED EXPENDITURE,TRANSPORT RUNNING EXPENSES,3333,P121496-SERVICE-Workshop Sundries,13/9/2023 00:00:00,277232,142.25,GR0022,GROUP COMPONENTS LIMITED,28/8/2023 00:00:00,24/9/2023 00:00:00,P06-2024
P&V,LEE VALLEY FARM HOLYFIELDHALL,TRANSPORT RELATED EXPENDITURE,TRANSPORT RUNNING EXPENSES,3333,P123147-SERVICE-5000ltr Red Diesel,13/9/2023 00:00:00,277299,4154.64,TE0052,CERTAS ENERGY UK LIMITED,28/8/2023 00:00:00,24/9/2023 00:00:00,P06-2024
P&V,LEE VALLEY FARM HOLYFIELDHALL,TRANSPORT RELATED EXPENDITURE,TRANSPORT RUNNING EXPENSES,3333,P123153-SERVICE-Repair to Combine,20/9/2023 00:00:00,277414,-492,RW0257,R. W. CRAWFORD AGRICULTURAL MACHINERY LTD,28/8/2023 00:00:00,24/9/2023 00:00:00,P06-2024
P&V,LEE VALLEY FARM HOLYFIELDHALL,TRANSPORT RELATED EXPENDITURE,TRANSPORT RUNNING EXPENSES,3333,P121507-SERVICE-Machinery Spares,13/9/2023 00:00:00,277492,446.97,SP0034,SPALDINGS (UK) LIMITED,28/8/2023 00:00:00,24/9/2023 00:00:00,P06-2024
P&V,LEE VALLEY FARM HOLYFIELDHALL,TRANSPORT RELATED EXPENDITURE,TRANSPORT RUNNING EXPENSES,3333,P121509-SERVICE-Tractor Spares,19/9/2023 00:00:00,277496,108.89,RW0257,R. W. CRAWFORD AGRICULTURAL MACHINERY LTD,28/8/2023 00:00:00,24/9/2023 00:00:00,P06-2024
P&V,LEE VALLEY FARM HOLYFIELDHALL,TRANSPORT RELATED EXPENDITURE,TRANSPORT RUNNING EXPENSES,3333,P121503-SERVICE-Tractor Spares,13/9/2023 00:00:00,277521,200.91,OL0001,OLIVER AGRICULTURE LTD,28/8/2023 00:00:00,24/9/2023 00:00:00,P06-2024
P&V,LEE VALLEY FARM HOLYFIELDHALL,TRANSPORT RELATED EXPENDITURE,TRANSPORT RUNNING EXPENSES,3333,P123153-SERVICE-Repair to Combine,13/9/2023 00:00:00,277523,7021.19,RW0257,R. W. CRAWFORD AGRICULTURAL MACHINERY LTD,28/8/2023 00:00:00,24/9/2023 00:00:00,P06-2024
P&V,LEE VALLEY FARM HOLYFIELDHALL,TRANSPORT RELATED EXPENDITURE,TRANSPORT RUNNING EXPENSES,3333,P123304-SERVICE-Various,20/9/2023 00:00:00,277619,335.34,AG0440,AGRI-LINC LIMITED,28/8/2023 00:00:00,24/9/2023 00:00:00,P06-2024
P&V,LEE VALLEY FARM HOLYFIELDHALL,TRANSPORT RELATED EXPENDITURE,TRANSPORT RUNNING EXPENSES,3333,P121495-SERVICE-Chains & Belts,19/9/2023 00:00:00,277627,22.5,BE0066,BEARINGS AND DRIVES,28/8/2023 00:00:00,24/9/2023 00:00:00,P06-2024
P&V,LEE VALLEY FARM HOLYFIELDHALL,TRANSPORT RELATED EXPENDITURE,TRANSPORT RUNNING EXPENSES,3333,P121504-SERVICE-Tractor Spares,20/9/2023 00:00:00,277750,96,OL0059,OLIVER LANDPOWER LIMITED,28/8/2023 00:00:00,24/9/2023 00:00:00,P06-2024
P&V,FISHERIES MANAGEMENT,TRANSPORT RELATED EXPENDITURE,VEHICLE FUEL,3335,FUEL CARD--Aug 2023,09/05/2023 00:00,277193,87.42,AR0035,ALLSTAR BUSINESS SOLUTIONS LTD,28/8/2023 00:00:00,24/9/2023 00:00:00,P06-2024
,LEE VALLEY MARINA STANSTEAD,TRANSPORT RELATED EXPENDITURE,VEHICLE FUEL,3335,FUEL CARD--Aug 2023,09/05/2023 00:00,277193,167.6,AR0035,ALLSTAR BUSINESS SOLUTIONS LTD,28/8/2023 00:00:00,24/9/2023 00:00:00,P06-2024
,STANSTEAD RECHARGEABLE WORKS,TRANSPORT RELATED EXPENDITURE,VEHICLE FUEL,3335,P122896-SERVICE-200 ltrs white diesel,09/07/2023 00:00,276702,1.55,SP0543,SPEEDY FUELS LIMITED,28/8/2023 00:00:00,24/9/2023 00:00:00,P06-2024
,STANSTEAD RECHARGEABLE WORKS,TRANSPORT RELATED EXPENDITURE,VEHICLE FUEL,3335,P122896-SERVICE-200 ltrs white diesel,09/07/2023 00:00,276703,307.55,SP0543,SPEEDY FUELS LIMITED,28/8/2023 00:00:00,24/9/2023 00:00:00,P06-2024
P&V,LEE VALLEY FARM HOLYFIELDHALL,TRANSPORT RELATED EXPENDITURE,VEHICLE FUEL,3335,FUEL CARD--Aug 2023,09/05/2023 00:00,277193,212.66,AR0035,ALLSTAR BUSINESS SOLUTIONS LTD,28/8/2023 00:00:00,24/9/2023 00:00:00,P06-2024
,LEE VALLEY CAMPSITE,TRANSPORT RELATED EXPENDITURE,VEHICLE FUEL,3335,FUEL CARD--Aug 2023,09/05/2023 00:00,277193,62.63,AR0035,ALLSTAR BUSINESS SOLUTIONS LTD,28/8/2023 00:00:00,24/9/2023 00:00:00,P06-2024
,LEE VALLEY CARAVAN PARK,TRANSPORT RELATED EXPENDITURE,VEHICLE FUEL,3335,FUEL CARD--Aug 2023,09/05/2023 00:00,277193,215.96,AR0035,ALLSTAR BUSINESS SOLUTIONS LTD,28/8/2023 00:00:00,24/9/2023 00:00:00,P06-2024
P&V,SOUTH AREA RANGERS,TRANSPORT RELATED EXPENDITURE,VEHICLE FUEL,3335,FUEL CARD--Aug 2023,09/05/2023 00:00,277193,438.91,AR0035,ALLSTAR BUSINESS SOLUTIONS LTD,28/8/2023 00:00:00,24/9/2023 00:00:00,P06-2024
P&V,RIVER LEE COUNTRY PARK,TRANSPORT RELATED EXPENDITURE,VEHICLE FUEL,3335,FUEL CARD--Aug 2023,09/05/2023 00:00,277193,300.84,AR0035,ALLSTAR BUSINESS SOLUTIONS LTD,28/8/2023 00:00:00,24/9/2023 00:00:00,P06-2024
P&V,RIVER LEE COUNTRY PARK,TRANSPORT RELATED EXPENDITURE,VEHICLE FUEL,3335,FUEL CARD--Aug 2023,09/05/2023 00:00,277193,64.79,AR0035,ALLSTAR BUSINESS SOLUTIONS LTD,28/8/2023 00:00:00,24/9/2023 00:00:00,P06-2024
,LV LEISURE CENTRE GOLF COURSE,TRANSPORT RELATED EXPENDITURE,VEHICLE FUEL,3335,P123090-SERVICE-GY Golf 1800 Litres Red Diesel,19/9/2023 00:00:00,277416,1512,HA0400,WATSON FUELS,28/8/2023 00:00:00,24/9/2023 00:00:00,P06-2024
P&V,SOUTH AREA RANGERS,TRANSPORT RELATED EXPENDITURE,VEHICLE REPAIRS & MAINTENANCE,3338,P122807-SERVICE-Service / Repairs - LT71 HPN,19/9/2023 00:00:00,277376,460,OL0059,OLIVER LANDPOWER LIMITED,28/8/2023 00:00:00,24/9/2023 00:00:00,P06-2024
P&V,SOUTH AREA RANGERS,TRANSPORT RELATED EXPENDITURE,VEHICLE REPAIRS & MAINTENANCE,3338,P122200-SERVICE-Delivery,24/9/2023 00:00:00,277882,10,TU0006,P TUCKWELL LTD,28/8/2023 00:00:00,24/9/2023 00:00:00,P06-2024
P&V,SOUTH AREA RANGERS,TRANSPORT RELATED EXPENDITURE,VEHICLE REPAIRS & MAINTENANCE,3338,P122200-SERVICE-2x Gator Ignition Key (Single),24/9/2023 00:00:00,277882,11.82,TU0006,P TUCKWELL LTD,28/8/2023 00:00:00,24/9/2023 00:00:00,P06-2024
P&V,VOLUNTEERS (L&E),TRANSPORT RELATED EXPENDITURE,TRAVELLING EXPENSES,3344,Volunteer travel expenses-270723-090823,09/05/2023 00:00,277056,41.1,MA0494,FABIENNE MARQUIS,28/8/2023 00:00:00,24/9/2023 00:00:00,P06-2024
P&V,VOLUNTEERS (L&E),TRANSPORT RELATED EXPENDITURE,TRAVELLING EXPENSES,3344,J Wright-26/07-06/0923,19/9/2023 00:00:00,277665,24.85,WR0363,JONATHAN WRIGHT,28/8/2023 00:00:00,24/9/2023 00:00:00,P06-2024
P&V,VOLUNTEERS (L&E),TRANSPORT RELATED EXPENDITURE,TRAVELLING EXPENSES,3344,B Chanter-Volunteer-01/07-26/0823,19/9/2023 00:00:00,277666,137.7,CH0762,MRS BRENDA CHANTER,28/8/2023 00:00:00,24/9/2023 00:00:00,P06-2024
,LEE VALLEY MARINA SPRINGFIELD,SUPPLIES AND SERVICES,EQUIPMENT & MATERIALS,4111,P122696-SERVICE-Carriage for order,09/05/2023 00:00,276906,5.95,WE0172,WEL MEDICAL LIMITED,28/8/2023 00:00:00,24/9/2023 00:00:00,P06-2024
,LEE VALLEY MARINA SPRINGFIELD,SUPPLIES AND SERVICES,EQUIPMENT & MATERIALS,4111,"P122696-SERVICE-1 x pair SKU:2172 electrode pads,",09/05/2023 00:00,276906,59.95,WE0172,WEL MEDICAL LIMITED,28/8/2023 00:00:00,24/9/2023 00:00:00,P06-2024
,LEE VALLEY MARINA SPRINGFIELD,SUPPLIES AND SERVICES,EQUIPMENT & MATERIALS,4111,VAT Only on Ref 277011,09/05/2023 00:00,277171,0,GE0460,GERDA SECURITY PRODUCTS LTD,28/8/2023 00:00:00,24/9/2023 00:00:00,P06-2024
,LEE VALLEY CAMPSITE,SUPPLIES AND SERVICES,EQUIPMENT & MATERIALS,4111,P123142-SERVICE-MEWP Hire Sewardstone Campsite includes damag,09/07/2023 00:00,277068,660,RE0354,RENOVOTEC LTD,28/8/2023 00:00:00,24/9/2023 00:00:00,P06-2024
,LEE VALLEY CAMPSITE,SUPPLIES AND SERVICES,EQUIPMENT & MATERIALS,4111,P122385-SERVICE-site materials,24/9/2023 00:00:00,277621,108.05,BQ0164,TRADE UK ACCOUNT,28/8/2023 00:00:00,24/9/2023 00:00:00,P06-2024
,LEE VALLEY CARAVAN PARK,SUPPLIES AND SERVICES,EQUIPMENT & MATERIALS,4111,"P123158-SERVICE-Thermometer, oil, gloves",09/05/2023 00:00,277071,42.29,SC0057,SCREWFIX DIRECT LTD,28/8/2023 00:00:00,24/9/2023 00:00:00,P06-2024
,LEE VALLEY CARAVAN PARK,SUPPLIES AND SERVICES,EQUIPMENT & MATERIALS,4111,P123161-SERVICE-Various materials,09/05/2023 00:00,277162,80.46,SC0057,SCREWFIX DIRECT LTD,28/8/2023 00:00:00,24/9/2023 00:00:00,P06-2024
,LEE VALLEY CARAVAN PARK,SUPPLIES AND SERVICES,EQUIPMENT & MATERIALS,4111,P123161-SERVICE-Various materials,09/05/2023 00:00,277188,-29.16,SC0057,SCREWFIX DIRECT LTD,28/8/2023 00:00:00,24/9/2023 00:00:00,P06-2024
,LEE VALLEY CARAVAN PARK,SUPPLIES AND SERVICES,EQUIPMENT & MATERIALS,4111,"P123236-SERVICE-Cloths, oil, tape",13/9/2023 00:00:00,277310,44.54,SC0057,SCREWFIX DIRECT LTD,28/8/2023 00:00:00,24/9/2023 00:00:00,P06-2024
,LEE VALLEY CARAVAN PARK,SUPPLIES AND SERVICES,EQUIPMENT & MATERIALS,4111,P123270-SERVICE-White plug,19/9/2023 00:00:00,277504,1.48,SC0057,SCREWFIX DIRECT LTD,28/8/2023 00:00:00,24/9/2023 00:00:00,P06-2024
,LEE VALLEY CARAVAN PARK,SUPPLIES AND SERVICES,EQUIPMENT & MATERIALS,4111,P123272-SERVICE-Fireandel battery,19/9/2023 00:00:00,277505,26.93,SC0057,SCREWFIX DIRECT LTD,28/8/2023 00:00:00,24/9/2023 00:00:00,P06-2024
,LEE VALLEY CARAVAN PARK,SUPPLIES AND SERVICES,EQUIPMENT & MATERIALS,4111,P123273-SERVICE-Petrol multi tool,19/9/2023 00:00:00,277506,224.99,SC0057,SCREWFIX DIRECT LTD,28/8/2023 00:00:00,24/9/2023 00:00:00,P06-2024
P&V,NORTH AREA RANGERS,SUPPLIES AND SERVICES,EQUIPMENT & MATERIALS,4111,P122992-SERVICE-10x Husqvarna Classic Forest Helmets,09/05/2023 00:00,276917,352.9,SA0682,SAM TURNER & SONS LTD,28/8/2023 00:00:00,24/9/2023 00:00:00,P06-2024
P&V,NORTH AREA RANGERS,SUPPLIES AND SERVICES,EQUIPMENT & MATERIALS,4111,P123311-SERVICE-10x 746625 - Black Refuse Bags - Extra Heavy,19/9/2023 00:00:00,277702,257.1,GR0020,GREENHAM TRADING LIMITED,28/8/2023 00:00:00,24/9/2023 00:00:00,P06-2024
P&V,NORTH AREA RANGERS,SUPPLIES AND SERVICES,EQUIPMENT & MATERIALS,4111,P123002-SERVICE-Delivery (Long Length Parcel),24/9/2023 00:00:00,277946,15.79,PO0478,POWER TOOLS DIRECT ONLINE LTD,28/8/2023 00:00:00,24/9/2023 00:00:00,P06-2024
P&V,NORTH AREA RANGERS,SUPPLIES AND SERVICES,EQUIPMENT & MATERIALS,4111,P123002-SERVICE-5x Manure Forks,24/9/2023 00:00:00,277946,81.85,PO0478,POWER TOOLS DIRECT ONLINE LTD,28/8/2023 00:00:00,24/9/2023 00:00:00,P06-2024
P&V,NORTH AREA RANGERS,SUPPLIES AND SERVICES,EQUIPMENT & MATERIALS,4111,P123002-SERVICE-5x Landscape Rakes,24/9/2023 00:00:00,277946,125.2,PO0478,POWER TOOLS DIRECT ONLINE LTD,28/8/2023 00:00:00,24/9/2023 00:00:00,P06-2024
P&V,SOUTH AREA RANGERS,SUPPLIES AND SERVICES,EQUIPMENT & MATERIALS,4111,P122933-SERVICE-Delivery,19/9/2023 00:00:00,277741,12.5,ME0059,METROSIGNS 2000,28/8/2023 00:00:00,24/9/2023 00:00:00,P06-2024
P&V,SOUTH AREA RANGERS,SUPPLIES AND SERVICES,EQUIPMENT & MATERIALS,4111,P122933-SERVICE-Orienteering Markers - Print and Set Up,19/9/2023 00:00:00,277741,25,ME0059,METROSIGNS 2000,28/8/2023 00:00:00,24/9/2023 00:00:00,P06-2024
P&V,SOUTH AREA RANGERS,SUPPLIES AND SERVICES,EQUIPMENT & MATERIALS,4111,P122933-SERVICE-60x Orienteering Markers,19/9/2023 00:00:00,277741,162,ME0059,METROSIGNS 2000,28/8/2023 00:00:00,24/9/2023 00:00:00,P06-2024
P&V,SOUTH AREA RANGERS,SUPPLIES AND SERVICES,EQUIPMENT & MATERIALS,4111,P122933-SERVICE-10x Orienteering Markers - No Numbers & Lette,19/9/2023 00:00:00,277741,27,ME0059,METROSIGNS 2000,28/8/2023 00:00:00,24/9/2023 00:00:00,P06-2024
P&V,WILDLIFE DISCOVERY CENTRE,SUPPLIES AND SERVICES,EQUIPMENT & MATERIALS,4111,TOOLS & EQUIPMENT,24/9/2023 00:00:00,277903,11.25,FI0001,DIRECTOR OF FINANCE - CASH,28/8/2023 00:00:00,24/9/2023 00:00:00,P06-2024
P&V,RIVER LEE COUNTRY PARK,SUPPLIES AND SERVICES,EQUIPMENT & MATERIALS,4111,P122838-SERVICE-1x Eye Wash Station - F17860,19/9/2023 00:00:00,276701,29.15,ST0038,ST JOHN AMBULANCE,28/8/2023 00:00:00,24/9/2023 00:00:00,P06-2024
P&V,RIVER LEE COUNTRY PARK,SUPPLIES AND SERVICES,EQUIPMENT & MATERIALS,4111,P122838-SERVICE-Delivery,19/9/2023 00:00:00,276701,4.95,ST0038,ST JOHN AMBULANCE,28/8/2023 00:00:00,24/9/2023 00:00:00,P06-2024
P&V,RIVER LEE COUNTRY PARK,SUPPLIES AND SERVICES,EQUIPMENT & MATERIALS,4111,P123001-SERVICE-1x Chainsaw Parts - Husqvarna Filiing Kit,19/9/2023 00:00:00,277043,18.77,LS0469,L & S ENGINEERS LTD,28/8/2023 00:00:00,24/9/2023 00:00:00,P06-2024
P&V,RIVER LEE COUNTRY PARK,SUPPLIES AND SERVICES,EQUIPMENT & MATERIALS,4111,P123001-SERVICE-1x Chainsaw Parts - Chamfer Chisel,19/9/2023 00:00:00,277043,16.13,LS0469,L & S ENGINEERS LTD,28/8/2023 00:00:00,24/9/2023 00:00:00,P06-2024
P&V,RIVER LEE COUNTRY PARK,SUPPLIES AND SERVICES,EQUIPMENT & MATERIALS,4111,P123001-SERVICE-2x Chainsaw Parts - Sthil Filing Kit,19/9/2023 00:00:00,277043,48.3,LS0469,L & S ENGINEERS LTD,28/8/2023 00:00:00,24/9/2023 00:00:00,P06-2024
P&V,RIVER LEE COUNTRY PARK,SUPPLIES AND SERVICES,EQUIPMENT & MATERIALS,4111,TOOLS & EQUIP,24/9/2023 00:00:00,277903,10,FI0001,DIRECTOR OF FINANCE - CASH,28/8/2023 00:00:00,24/9/2023 00:00:00,P06-2024
P&V,RIVER LEE COUNTRY PARK,SUPPLIES AND SERVICES,EQUIPMENT & MATERIALS,4111,TOOLS & EQUIP,24/9/2023 00:00:00,277903,1.5,FI0001,DIRECTOR OF FINANCE - CASH,28/8/2023 00:00:00,24/9/2023 00:00:00,P06-2024
P&V,ALMOST WILD CAMPSITE,SUPPLIES AND SERVICES,EQUIPMENT & MATERIALS,4111,P123073-SERVICE-5 bags of Soft Sand for Fire Buckets @ AMW,09/06/2023 00:00,277263,10.5,LE0012,LEASIDE TIMBER & BUILDERS MERCHANTS LTD,28/8/2023 00:00:00,24/9/2023 00:00:00,P06-2024
,LV LEISURE CENTRE CAMPSITE,SUPPLIES AND SERVICES,EQUIPMENT & MATERIALS,4111,P123224-SERVICE-keypad for toilets and tyre inflator,13/9/2023 00:00:00,277276,150.86,SC0057,SCREWFIX DIRECT LTD,28/8/2023 00:00:00,24/9/2023 00:00:00,P06-2024
,LV LEISURE CENTRE CAMPSITE,SUPPLIES AND SERVICES,EQUIPMENT & MATERIALS,4111,P123319-SERVICE-Flat Washers/ Jbolt,19/9/2023 00:00:00,277640,34.03,SC0057,SCREWFIX DIRECT LTD,28/8/2023 00:00:00,24/9/2023 00:00:00,P06-2024
,LV LEISURE CENTRE GOLF COURSE,SUPPLIES AND SERVICES,EQUIPMENT & MATERIALS,4111,P123155-SERVICE-Signs Stickers number 1-7,19/9/2023 00:00:00,277488,32,SL0528,SLAM SIGNS LTD,28/8/2023 00:00:00,24/9/2023 00:00:00,P06-2024
,LEE VALLEY CAMPSITE,SUPPLIES AND SERVICES,EQUIPMENT MAINTENANCE,4112,P122995-SERVICE-B Block Urinal Leak,09/05/2023 00:00,277087,45,SO0400,SOUTHERN GREEN SERVICES LIMITED,28/8/2023 00:00:00,24/9/2023 00:00:00,P06-2024
,LEE VALLEY CAMPSITE,SUPPLIES AND SERVICES,EQUIPMENT MAINTENANCE,4112,P122995-SERVICE-A Block Urinal Leak,09/05/2023 00:00,277087,100,SO0400,SOUTHERN GREEN SERVICES LIMITED,28/8/2023 00:00:00,24/9/2023 00:00:00,P06-2024
,LEE VALLEY CAMPSITE,SUPPLIES AND SERVICES,EQUIPMENT MAINTENANCE,4112,P122752-SERVICE-Annual site  fire inspection,09/07/2023 00:00,277225,674.85,TJ0009,T.J.FIRE & SECURITY,28/8/2023 00:00:00,24/9/2023 00:00:00,P06-2024
,LEE VALLEY CAMPSITE,SUPPLIES AND SERVICES,EQUIPMENT MAINTENANCE,4112,P123124-SERVICE-SecurityCameras for Yard,24/9/2023 00:00:00,277670,1330,DE0013,DENNIS SECURITY CENTRE,28/8/2023 00:00:00,24/9/2023 00:00:00,P06-2024
,LEE VALLEY CARAVAN PARK,SUPPLIES AND SERVICES,EQUIPMENT MAINTENANCE,4112,P122779-SERVICE-Field block flooded,24/9/2023 00:00:00,276798,515,SO0400,SOUTHERN GREEN SERVICES LIMITED,28/8/2023 00:00:00,24/9/2023 00:00:00,P06-2024
,LEE VALLEY CARAVAN PARK,SUPPLIES AND SERVICES,EQUIPMENT MAINTENANCE,4112,P122780-SERVICE-field block water heater repair,24/9/2023 00:00:00,276799,80,SO0400,SOUTHERN GREEN SERVICES LIMITED,28/8/2023 00:00:00,24/9/2023 00:00:00,P06-2024
,LEE VALLEY CARAVAN PARK,SUPPLIES AND SERVICES,EQUIPMENT MAINTENANCE,4112,P123133-SERVICE-Call Out 3k tanker to remove load from Pump,09/05/2023 00:00,277051,632,CO0550,CONVERT WATER LTD,28/8/2023 00:00:00,24/9/2023 00:00:00,P06-2024
,LEE VALLEY CARAVAN PARK,SUPPLIES AND SERVICES,EQUIPMENT MAINTENANCE,4112,P123132-SERVICE-Remove Load from Pump Station due Blockage,09/05/2023 00:00,277053,1296,CO0550,CONVERT WATER LTD,28/8/2023 00:00:00,24/9/2023 00:00:00,P06-2024
,LEE VALLEY CARAVAN PARK,SUPPLIES AND SERVICES,EQUIPMENT MAINTENANCE,4112,P123189-SERVICE-Monthly Samples from Hot Tubs,09/07/2023 00:00,277181,121.72,KI0090,KINGFISHER ENVIRONMENTAL SERVICES LTD,28/8/2023 00:00:00,24/9/2023 00:00:00,P06-2024
,LEE VALLEY CARAVAN PARK,SUPPLIES AND SERVICES,EQUIPMENT MAINTENANCE,4112,P123172-SERVICE-Push button lock,09/05/2023 00:00,277187,22.49,SC0057,SCREWFIX DIRECT LTD,28/8/2023 00:00:00,24/9/2023 00:00:00,P06-2024
,LEE VALLEY CARAVAN PARK,SUPPLIES AND SERVICES,EQUIPMENT MAINTENANCE,4112,P123331-SERVICE-Replace 2 mens showers,24/9/2023 00:00:00,277782,735,SO0400,SOUTHERN GREEN SERVICES LIMITED,28/8/2023 00:00:00,24/9/2023 00:00:00,P06-2024
,LEE VALLEY CARAVAN PARK,SUPPLIES AND SERVICES,EQUIPMENT MAINTENANCE,4112,P123333-SERVICE-remove basins in cleaning cupboard,24/9/2023 00:00:00,277783,130,SO0400,SOUTHERN GREEN SERVICES LIMITED,28/8/2023 00:00:00,24/9/2023 00:00:00,P06-2024
,LEE VALLEY CARAVAN PARK,SUPPLIES AND SERVICES,EQUIPMENT MAINTENANCE,4112,P123423-SERVICE-Hot tub sampling,24/9/2023 00:00:00,277929,121.72,KI0090,KINGFISHER ENVIRONMENTAL SERVICES LTD,28/8/2023 00:00:00,24/9/2023 00:00:00,P06-2024
,LEE VALLEY CARAVAN PARK,SUPPLIES AND SERVICES,EQUIPMENT MAINTENANCE,4112,P123424-SERVICE-Inspect failing pumps,24/9/2023 00:00:00,277962,1074,CO0550,CONVERT WATER LTD,28/8/2023 00:00:00,24/9/2023 00:00:00,P06-2024
P&V,SOUTH AREA RANGERS,SUPPLIES AND SERVICES,EQUIPMENT MAINTENANCE,4112,P123167-SERVICE-Recoil Repair,20/9/2023 00:00:00,277749,35,AP0245,APS LIMITED,28/8/2023 00:00:00,24/9/2023 00:00:00,P06-2024
P&V,SOUTH AREA RANGERS,SUPPLIES AND SERVICES,EQUIPMENT MAINTENANCE,4112,P123356-SERVICE-Repair BCS Power Sickle,24/9/2023 00:00:00,277906,862.14,AP0245,APS LIMITED,28/8/2023 00:00:00,24/9/2023 00:00:00,P06-2024
P&V,SOUTH AREA RANGERS,SUPPLIES AND SERVICES,EQUIPMENT MAINTENANCE,4112,P122379-SERVICE-Mower Repairs - Parts,24/9/2023 00:00:00,277907,48.51,AP0245,APS LIMITED,28/8/2023 00:00:00,24/9/2023 00:00:00,P06-2024
P&V,SOUTH AREA RANGERS,SUPPLIES AND SERVICES,EQUIPMENT MAINTENANCE,4112,P122379-SERVICE-Mower Repairs - Labour,24/9/2023 00:00:00,277907,150,AP0245,APS LIMITED,28/8/2023 00:00:00,24/9/2023 00:00:00,P06-2024
P&V,RIVER LEE COUNTRY PARK,SUPPLIES AND SERVICES,EQUIPMENT MAINTENANCE,4112,P123144-SERVICE-2x Quick Release Lever - F030.5017.125,24/9/2023 00:00:00,277437,22.4,TR0039,TRACMASTER LTD,28/8/2023 00:00:00,24/9/2023 00:00:00,P06-2024
P&V,RIVER LEE COUNTRY PARK,SUPPLIES AND SERVICES,EQUIPMENT MAINTENANCE,4112,P123144-SERVICE-1x Throttle Control Lever Part - 58002538,24/9/2023 00:00:00,277437,26.2,TR0039,TRACMASTER LTD,28/8/2023 00:00:00,24/9/2023 00:00:00,P06-2024
P&V,RIVER LEE COUNTRY PARK,SUPPLIES AND SERVICES,EQUIPMENT MAINTENANCE,4112,P123144-SERVICE-2x Duplex Tooth - 59028930T,24/9/2023 00:00:00,277437,87.6,TR0039,TRACMASTER LTD,28/8/2023 00:00:00,24/9/2023 00:00:00,P06-2024
P&V,RIVER LEE COUNTRY PARK,SUPPLIES AND SERVICES,EQUIPMENT MAINTENANCE,4112,P123144-SERVICE-10x Screw for Above Tooth - 58058659,24/9/2023 00:00:00,277437,12,TR0039,TRACMASTER LTD,28/8/2023 00:00:00,24/9/2023 00:00:00,P06-2024
P&V,RIVER LEE COUNTRY PARK,SUPPLIES AND SERVICES,EQUIPMENT MAINTENANCE,4112,P123144-SERVICE-1x Throttle Cable Part - 580C0422,24/9/2023 00:00:00,277437,27.8,TR0039,TRACMASTER LTD,28/8/2023 00:00:00,24/9/2023 00:00:00,P06-2024
P&V,RIVER LEE COUNTRY PARK,SUPPLIES AND SERVICES,EQUIPMENT MAINTENANCE,4112,P123144-SERVICE-5x Blade Section - 58028096,24/9/2023 00:00:00,277437,21,TR0039,TRACMASTER LTD,28/8/2023 00:00:00,24/9/2023 00:00:00,P06-2024
P&V,RIVER LEE COUNTRY PARK,SUPPLIES AND SERVICES,EQUIPMENT MAINTENANCE,4112,P123144-SERVICE-Delivery to address below,24/9/2023 00:00:00,277437,7.95,TR0039,TRACMASTER LTD,28/8/2023 00:00:00,24/9/2023 00:00:00,P06-2024
P&V,RIVER LEE COUNTRY PARK,SUPPLIES AND SERVICES,EQUIPMENT MAINTENANCE,4112,P123373-SERVICE-1x 81422 - Steel nylonlock bolts Pk 50,24/9/2023 00:00:00,277965,7.83,SC0057,SCREWFIX DIRECT LTD,28/8/2023 00:00:00,24/9/2023 00:00:00,P06-2024
P&V,RIVER LEE COUNTRY PARK,SUPPLIES AND SERVICES,EQUIPMENT MAINTENANCE,4112,P123373-SERVICE-1x 850KF - Carriage bolts M8x50mm Pk 100,24/9/2023 00:00:00,277965,15.74,SC0057,SCREWFIX DIRECT LTD,28/8/2023 00:00:00,24/9/2023 00:00:00,P06-2024
P&V,RIVER LEE COUNTRY PARK,SUPPLIES AND SERVICES,EQUIPMENT MAINTENANCE,4112,P123373-SERVICE-1x 2690D - Sort Master Organiser 3P Set,24/9/2023 00:00:00,277965,19.16,SC0057,SCREWFIX DIRECT LTD,28/8/2023 00:00:00,24/9/2023 00:00:00,P06-2024
P&V,ALMOST WILD CAMPSITE,SUPPLIES AND SERVICES,EQUIPMENT MAINTENANCE,4112,P123130-SERVICE-Mini Tanker to empty toilet tanks,09/05/2023 00:00,277052,250,CO0550,CONVERT WATER LTD,28/8/2023 00:00:00,24/9/2023 00:00:00,P06-2024
,LV LEISURE CENTRE CAMPSITE,SUPPLIES AND SERVICES,EQUIPMENT MAINTENANCE,4112,P123173-SERVICE- brushes watering can etc,09/05/2023 00:00,277224,26.46,BQ0164,TRADE UK ACCOUNT,28/8/2023 00:00:00,24/9/2023 00:00:00,P06-2024
,LV LEISURE CENTRE CAMPSITE,SUPPLIES AND SERVICES,EQUIPMENT MAINTENANCE,4112,P123145-SERVICE-key broken in lock.New lock put in,09/06/2023 00:00,277258,116.15,BA0005,BARNET LOCK  & SECURITY LTD,28/8/2023 00:00:00,24/9/2023 00:00:00,P06-2024
,LV LEISURE CENTRE GOLF COURSE,SUPPLIES AND SERVICES,EQUIPMENT MAINTENANCE,4112,P122224-SERVICE-Irrigation Pumps,09/05/2023 00:00,275320,342.02,SJ0635,SJS IRRIGATION,28/8/2023 00:00:00,24/9/2023 00:00:00,P06-2024
,LV LEISURE CENTRE GOLF COURSE,SUPPLIES AND SERVICES,EQUIPMENT MAINTENANCE,4112,P122225-SERVICE-Irrigation Pump,09/05/2023 00:00,275320,1669.94,SJ0635,SJS IRRIGATION,28/8/2023 00:00:00,24/9/2023 00:00:00,P06-2024
R&B,INFORMATION TECHNOLOGY,SUPPLIES AND SERVICES,IT CORE SYSTEMS,4113,P123063-SERVICE-Additional 50 records,19/9/2023 00:00:00,277005,2842,CI0721,CIPHR,28/8/2023 00:00:00,24/9/2023 00:00:00,P06-2024
R&B,INFORMATION TECHNOLOGY,SUPPLIES AND SERVICES,IT CORE SYSTEMS,4113,P123063-SERVICE-Ciphr Package for up to 200,19/9/2023 00:00:00,277005,16896,CI0721,CIPHR,28/8/2023 00:00:00,24/9/2023 00:00:00,P06-2024
R&B,INFORMATION TECHNOLOGY,SUPPLIES AND SERVICES,IT CORE SYSTEMS,4113,P123063-SERVICE-WebExpenses,19/9/2023 00:00:00,277005,6199,CI0721,CIPHR,28/8/2023 00:00:00,24/9/2023 00:00:00,P06-2024
R&B,INFORMATION TECHNOLOGY,SUPPLIES AND SERVICES,IT CORE SYSTEMS,4113,P123063-SERVICE-Additional 100 records,19/9/2023 00:00:00,277005,7600,CI0721,CIPHR,28/8/2023 00:00:00,24/9/2023 00:00:00,P06-2024
R&B,INFORMATION TECHNOLOGY,SUPPLIES AND SERVICES,IT CORE SYSTEMS,4113,P122894-SERVICE-Business Tax Portal Base Edition 12 VAT Retur,09/05/2023 00:00,277084,1421.53,CE0021,ADVANCED BUSINESS SOLUTIONS,28/8/2023 00:00:00,24/9/2023 00:00:00,P06-2024
R&B,INFORMATION TECHNOLOGY,SUPPLIES AND SERVICES,IT CORE SYSTEMS,4113,P121892-SERVICE-Support & Data Apr 23 - Mar 24,09/07/2023 00:00,277279,171.29,CY0653,CYBERTILL,28/8/2023 00:00:00,24/9/2023 00:00:00,P06-2024
R&B,INFORMATION TECHNOLOGY,SUPPLIES AND SERVICES,IT CORE SYSTEMS,4113,"P121499-SERVICE-Efin monthly managed fees @ 1,466.82",19/9/2023 00:00:00,277304,1466.82,CE0021,ADVANCED BUSINESS SOLUTIONS,28/8/2023 00:00:00,24/9/2023 00:00:00,P06-2024
R&B,INFORMATION TECHNOLOGY,SUPPLIES AND SERVICES,IT CORE SYSTEMS,4113,P121193-SERVICE-Gema parks Campsite monthly subs April 2023 -,13/9/2023 00:00:00,277421,605,NE0218,NETGUIDES LIMITED,28/8/2023 00:00:00,24/9/2023 00:00:00,P06-2024
R&B,INFORMATION TECHNOLOGY,SUPPLIES AND SERVICES,IT CORE SYSTEMS,4113,P123357-SERVICE-Canto sub annual payment 13.09.23-12.09.24,20/9/2023 00:00:00,277742,5310.85,CA0717,CANTO GMBH,28/8/2023 00:00:00,24/9/2023 00:00:00,P06-2024
R&B,INFORMATION TECHNOLOGY,SUPPLIES AND SERVICES,IT NETWORK & TELECOMS COSTS,4114,P121558-SERVICE-MPLS for all sites April - September 2023,09/07/2023 00:00,277173,8757.36,PP0200,PPSNET LIMITED,28/8/2023 00:00:00,24/9/2023 00:00:00,P06-2024
R&B,INFORMATION TECHNOLOGY,SUPPLIES AND SERVICES,IT NETWORK & TELECOMS COSTS,4114,P121559-SERVICE-Campsites Circuits 1GB for Public WiFi - Apri,09/07/2023 00:00,277174,835,PP0200,PPSNET LIMITED,28/8/2023 00:00:00,24/9/2023 00:00:00,P06-2024
R&B,INFORMATION TECHNOLOGY,SUPPLIES AND SERVICES,IT NETWORK & TELECOMS COSTS,4114,P121817-SERVICE-Monthly SIP charges Apr 2023 - Mar 2024,09/05/2023 00:00,277233,159.2,FR0131,VOICEFLEX LTD,28/8/2023 00:00:00,24/9/2023 00:00:00,P06-2024
R&B,INFORMATION TECHNOLOGY,SUPPLIES AND SERVICES,IT NETWORK & TELECOMS COSTS,4114,P123295-SERVICE-CallSwitch Licence & Calls July 2023,20/9/2023 00:00:00,277620,846.65,IQ0022,IQUAL,28/8/2023 00:00:00,24/9/2023 00:00:00,P06-2024
R&B,INFORMATION TECHNOLOGY,SUPPLIES AND SERVICES,IT HARDWARE & SOFTWARE COSTS,4116,P122590-SERVICE-1no 16Ch DVR using  the UNV software in place,09/05/2023 00:00,277028,908.5,DE0013,DENNIS SECURITY CENTRE,28/8/2023 00:00:00,24/9/2023 00:00:00,P06-2024
R&B,INFORMATION TECHNOLOGY,SUPPLIES AND SERVICES,IT HARDWARE & SOFTWARE COSTS,4116,P122589-SERVICE-1no 16ch NVR using UNG software in place at L,09/05/2023 00:00,277029,998.5,DE0013,DENNIS SECURITY CENTRE,28/8/2023 00:00:00,24/9/2023 00:00:00,P06-2024
R&B,INFORMATION TECHNOLOGY,SUPPLIES AND SERVICES,IT HARDWARE & SOFTWARE COSTS,4116,P123199-SERVICE-Connectix RJ45 Easy Plug 8-Pin CAT6 UTP Conne,13/9/2023 00:00:00,277385,25.05,BR0650,BROADBANDBUYER.COM,28/8/2023 00:00:00,24/9/2023 00:00:00,P06-2024
R&B,INFORMATION TECHNOLOGY,SUPPLIES AND SERVICES,IT HARDWARE & SOFTWARE COSTS,4116,P123199-SERVICE-Connectix EZ-Crimo Crimping/Cutting/Stripping,13/9/2023 00:00:00,277385,81.42,BR0650,BROADBANDBUYER.COM,28/8/2023 00:00:00,24/9/2023 00:00:00,P06-2024
R&B,INFORMATION TECHNOLOGY,SUPPLIES AND SERVICES,IT HARDWARE & SOFTWARE COSTS,4116,P123199-SERVICE-BT-approved Connectix XCM90 CAT6 U/UTP Outdoo,13/9/2023 00:00:00,277385,123.09,BR0650,BROADBANDBUYER.COM,28/8/2023 00:00:00,24/9/2023 00:00:00,P06-2024
R&B,INFORMATION TECHNOLOGY,SUPPLIES AND SERVICES,IT HARDWARE & SOFTWARE COSTS,4116,P123199-SERVICE-EssCable LC - LC 3m Singlemode Duplex LSZH Fi,13/9/2023 00:00:00,277385,11.25,BR0650,BROADBANDBUYER.COM,28/8/2023 00:00:00,24/9/2023 00:00:00,P06-2024
R&B,INFORMATION TECHNOLOGY,SUPPLIES AND SERVICES,IT HARDWARE & SOFTWARE COSTS,4116,P123199-SERVICE-EssCable LC - LC 1m Singlemode Duplex LSZH Fi,13/9/2023 00:00:00,277385,9.6,BR0650,BROADBANDBUYER.COM,28/8/2023 00:00:00,24/9/2023 00:00:00,P06-2024
R&B,INFORMATION TECHNOLOGY,SUPPLIES AND SERVICES,IT HARDWARE & SOFTWARE COSTS,4116,P123199-SERVICE-Delivery,13/9/2023 00:00:00,277385,6,BR0650,BROADBANDBUYER.COM,28/8/2023 00:00:00,24/9/2023 00:00:00,P06-2024
R&B,INFORMATION TECHNOLOGY,SUPPLIES AND SERVICES,IT HARDWARE & SOFTWARE COSTS,4116,P123230-SERVICE-Delivery to Lee Valley White Water Centre,13/9/2023 00:00:00,277478,15,BR0650,BROADBANDBUYER.COM,28/8/2023 00:00:00,24/9/2023 00:00:00,P06-2024
R&B,INFORMATION TECHNOLOGY,SUPPLIES AND SERVICES,IT HARDWARE & SOFTWARE COSTS,4116,P123230-SERVICE-NETGEAR AXM762 Compatible 10GBASE-LR Singlemo,13/9/2023 00:00:00,277478,204.18,BR0650,BROADBANDBUYER.COM,28/8/2023 00:00:00,24/9/2023 00:00:00,P06-2024
R&B,INFORMATION TECHNOLOGY,SUPPLIES AND SERVICES,IT HARDWARE & SOFTWARE COSTS,4116,P122122-SERVICE-Mimecast S1 6 monthly payment includes:,19/9/2023 00:00:00,277700,853,IQ0022,IQUAL,28/8/2023 00:00:00,24/9/2023 00:00:00,P06-2024
R&B,INFORMATION TECHNOLOGY,SUPPLIES AND SERVICES,IT HARDWARE & SOFTWARE COSTS,4116,P123328-SERVICE-Delivery,20/9/2023 00:00:00,277703,6,BR0650,BROADBANDBUYER.COM,28/8/2023 00:00:00,24/9/2023 00:00:00,P06-2024
R&B,INFORMATION TECHNOLOGY,SUPPLIES AND SERVICES,IT HARDWARE & SOFTWARE COSTS,4116,P123328-SERVICE-Netgear AXM762 Compatible 10GBASE-LR Singlemo,20/9/2023 00:00:00,277703,136.12,BR0650,BROADBANDBUYER.COM,28/8/2023 00:00:00,24/9/2023 00:00:00,P06-2024
R&B,INFORMATION TECHNOLOGY,SUPPLIES AND SERVICES,IT MAINTENANCE AGREEMENTS,4119,P121793-SERVICE-Digiticket monthly ticketing service,09/07/2023 00:00,277203,605,DI0304,DIGITAL TICKETING SYSTEMS LTD (DIGITICKETS),28/8/2023 00:00:00,24/9/2023 00:00:00,P06-2024
P&V,NORTH AREA RANGERS,EXPENDITURE FROM RENEWALS FUND,EXPENDITURE FROM RENEWALS FUND,4121,F.P. SMITH MOTORS LTD,21/9/2023 00:00:00,277198,55,SM0702,F.P. SMITH MOTORS LTD,28/8/2023 00:00:00,24/9/2023 00:00:00,P06-2024
P&V,NORTH AREA RANGERS,EXPENDITURE FROM RENEWALS FUND,EXPENDITURE FROM RENEWALS FUND,4121,F.P. SMITH MOTORS LTD,21/9/2023 00:00:00,277198,298.9,SM0702,F.P. SMITH MOTORS LTD,28/8/2023 00:00:00,24/9/2023 00:00:00,P06-2024
P&V,NORTH AREA RANGERS,EXPENDITURE FROM RENEWALS FUND,EXPENDITURE FROM RENEWALS FUND,4121,F.P. SMITH MOTORS LTD,21/9/2023 00:00:00,277198,-3904.45,SM0702,F.P. SMITH MOTORS LTD,28/8/2023 00:00:00,24/9/2023 00:00:00,P06-2024
P&V,NORTH AREA RANGERS,EXPENDITURE FROM RENEWALS FUND,EXPENDITURE FROM RENEWALS FUND,4121,F.P. SMITH MOTORS LTD,21/9/2023 00:00:00,277198,-2500,SM0702,F.P. SMITH MOTORS LTD,28/8/2023 00:00:00,24/9/2023 00:00:00,P06-2024
P&V,NORTH AREA RANGERS,EXPENDITURE FROM RENEWALS FUND,EXPENDITURE FROM RENEWALS FUND,4121,F.P. SMITH MOTORS LTD,21/9/2023 00:00:00,277198,35495,SM0702,F.P. SMITH MOTORS LTD,28/8/2023 00:00:00,24/9/2023 00:00:00,P06-2024
P&V,NORTH AREA RANGERS,EXPENDITURE FROM RENEWALS FUND,EXPENDITURE FROM RENEWALS FUND,4121,F.P. SMITH MOTORS LTD,21/9/2023 00:00:00,277198,-29444.45,SM0702,F.P. SMITH MOTORS LTD,28/8/2023 00:00:00,24/9/2023 00:00:00,P06-2024
P&V,NORTH AREA RANGERS,EXPENDITURE FROM RENEWALS FUND,EXPENDITURE FROM RENEWALS FUND,4121,P123393-SERVICE-New Ranger Elec Vehicle - AE73ZUA,21/9/2023 00:00:00,277198,29444.45,SM0702,F.P. SMITH MOTORS LTD,28/8/2023 00:00:00,24/9/2023 00:00:00,P06-2024
P&V,NORTH AREA RANGERS,EXPENDITURE FROM RENEWALS FUND,EXPENDITURE FROM RENEWALS FUND,4121,F.P. SMITH MOTORS LTD,21/9/2023 00:00:00,277199,-29444.45,SM0702,F.P. SMITH MOTORS LTD,28/8/2023 00:00:00,24/9/2023 00:00:00,P06-2024
P&V,NORTH AREA RANGERS,EXPENDITURE FROM RENEWALS FUND,EXPENDITURE FROM RENEWALS FUND,4121,F.P. SMITH MOTORS LTD,21/9/2023 00:00:00,277199,35495,SM0702,F.P. SMITH MOTORS LTD,28/8/2023 00:00:00,24/9/2023 00:00:00,P06-2024
P&V,NORTH AREA RANGERS,EXPENDITURE FROM RENEWALS FUND,EXPENDITURE FROM RENEWALS FUND,4121,F.P. SMITH MOTORS LTD,21/9/2023 00:00:00,277199,-3904.45,SM0702,F.P. SMITH MOTORS LTD,28/8/2023 00:00:00,24/9/2023 00:00:00,P06-2024
P&V,NORTH AREA RANGERS,EXPENDITURE FROM RENEWALS FUND,EXPENDITURE FROM RENEWALS FUND,4121,P123393-SERVICE-New Ranger Elec Vehicle - AE73TCZ,21/9/2023 00:00:00,277199,29444.45,SM0702,F.P. SMITH MOTORS LTD,28/8/2023 00:00:00,24/9/2023 00:00:00,P06-2024
P&V,NORTH AREA RANGERS,EXPENDITURE FROM RENEWALS FUND,EXPENDITURE FROM RENEWALS FUND,4121,F.P. SMITH MOTORS LTD,21/9/2023 00:00:00,277199,298.9,SM0702,F.P. SMITH MOTORS LTD,28/8/2023 00:00:00,24/9/2023 00:00:00,P06-2024
P&V,NORTH AREA RANGERS,EXPENDITURE FROM RENEWALS FUND,EXPENDITURE FROM RENEWALS FUND,4121,F.P. SMITH MOTORS LTD,21/9/2023 00:00:00,277199,-2500,SM0702,F.P. SMITH MOTORS LTD,28/8/2023 00:00:00,24/9/2023 00:00:00,P06-2024
P&V,NORTH AREA RANGERS,EXPENDITURE FROM RENEWALS FUND,EXPENDITURE FROM RENEWALS FUND,4121,F.P. SMITH MOTORS LTD,21/9/2023 00:00:00,277199,55,SM0702,F.P. SMITH MOTORS LTD,28/8/2023 00:00:00,24/9/2023 00:00:00,P06-2024
P&V,NORTH AREA RANGERS,EXPENDITURE FROM RENEWALS FUND,EXPENDITURE FROM RENEWALS FUND,4121,P123393-SERVICE-New Ranger Elec Vehicles - Delivery,21/9/2023 00:00:00,277201,375,SM0702,F.P. SMITH MOTORS LTD,28/8/2023 00:00:00,24/9/2023 00:00:00,P06-2024
P&V,SOUTH AREA RANGERS,EXPENDITURE FROM RENEWALS FUND,EXPENDITURE FROM RENEWALS FUND,4121,F.P. SMITH MOTORS LTD,21/9/2023 00:00:00,277200,-3904.45,SM0702,F.P. SMITH MOTORS LTD,28/8/2023 00:00:00,24/9/2023 00:00:00,P06-2024
P&V,SOUTH AREA RANGERS,EXPENDITURE FROM RENEWALS FUND,EXPENDITURE FROM RENEWALS FUND,4121,F.P. SMITH MOTORS LTD,21/9/2023 00:00:00,277200,35495,SM0702,F.P. SMITH MOTORS LTD,28/8/2023 00:00:00,24/9/2023 00:00:00,P06-2024
P&V,SOUTH AREA RANGERS,EXPENDITURE FROM RENEWALS FUND,EXPENDITURE FROM RENEWALS FUND,4121,F.P. SMITH MOTORS LTD,21/9/2023 00:00:00,277200,-29444.45,SM0702,F.P. SMITH MOTORS LTD,28/8/2023 00:00:00,24/9/2023 00:00:00,P06-2024
P&V,SOUTH AREA RANGERS,EXPENDITURE FROM RENEWALS FUND,EXPENDITURE FROM RENEWALS FUND,4121,P123393-SERVICE-New Ranger Elec Vehicle  - AE73ZWG,21/9/2023 00:00:00,277200,29444.45,SM0702,F.P. SMITH MOTORS LTD,28/8/2023 00:00:00,24/9/2023 00:00:00,P06-2024
P&V,SOUTH AREA RANGERS,EXPENDITURE FROM RENEWALS FUND,EXPENDITURE FROM RENEWALS FUND,4121,F.P. SMITH MOTORS LTD,21/9/2023 00:00:00,277200,298.9,SM0702,F.P. SMITH MOTORS LTD,28/8/2023 00:00:00,24/9/2023 00:00:00,P06-2024
P&V,SOUTH AREA RANGERS,EXPENDITURE FROM RENEWALS FUND,EXPENDITURE FROM RENEWALS FUND,4121,F.P. SMITH MOTORS LTD,21/9/2023 00:00:00,277200,-2500,SM0702,F.P. SMITH MOTORS LTD,28/8/2023 00:00:00,24/9/2023 00:00:00,P06-2024
P&V,SOUTH AREA RANGERS,EXPENDITURE FROM RENEWALS FUND,EXPENDITURE FROM RENEWALS FUND,4121,F.P. SMITH MOTORS LTD,21/9/2023 00:00:00,277200,55,SM0702,F.P. SMITH MOTORS LTD,28/8/2023 00:00:00,24/9/2023 00:00:00,P06-2024
P&V,RIVER LEE COUNTRY PARK,SUPPLIES AND SERVICES,MATERIALS (LOCKS),4124,KEY CUTTING,24/9/2023 00:00:00,277903,16.67,FI0001,DIRECTOR OF FINANCE - CASH,28/8/2023 00:00:00,24/9/2023 00:00:00,P06-2024
P&V,RIVER LEE COUNTRY PARK,SUPPLIES AND SERVICES,MATERIALS (GROUNDS MAINT),4125,P122532-SERVICE-Install Benches at Old Mill & Meadows,13/9/2023 00:00:00,277467,1200,JO0019,R G JOYCE,28/8/2023 00:00:00,24/9/2023 00:00:00,P06-2024
P&V,ALMOST WILD CAMPSITE,SUPPLIES AND SERVICES,MATERIALS (GROUNDS MAINT),4125,"P123073-SERVICE-9 x 3 @ 4,2 Long x 4",09/06/2023 00:00,277264,116.76,LE0012,LEASIDE TIMBER & BUILDERS MERCHANTS LTD,28/8/2023 00:00:00,24/9/2023 00:00:00,P06-2024
P&V,ALMOST WILD CAMPSITE,SUPPLIES AND SERVICES,MATERIALS (GROUNDS MAINT),4125,P123073-SERVICE-3 x ton 20m Shingle,09/06/2023 00:00,277264,126,LE0012,LEASIDE TIMBER & BUILDERS MERCHANTS LTD,28/8/2023 00:00:00,24/9/2023 00:00:00,P06-2024
,LV LEISURE CENTRE GOLF COURSE,SUPPLIES AND SERVICES,MATERIALS (GROUNDS MAINT),4125,P123301-SERVICE-4 x Trogan Batteries & Supplies,19/9/2023 00:00:00,277407,1122.1,DO0027,ERNEST DOE & SONS LTD,28/8/2023 00:00:00,24/9/2023 00:00:00,P06-2024
,LV LEISURE CENTRE GOLF COURSE,SUPPLIES AND SERVICES,MATERIALS (GROUNDS MAINT),4125,P123064-SERVICE-5L Weed killer,19/9/2023 00:00:00,277436,65,MR0420,MR AMENITY LTD,28/8/2023 00:00:00,24/9/2023 00:00:00,P06-2024
,LV LEISURE CENTRE GOLF COURSE,SUPPLIES AND SERVICES,MATERIALS (GROUNDS MAINT),4125,P123064-SERVICE-20 Tonne Sand for Bunkers,19/9/2023 00:00:00,277436,1159,MR0420,MR AMENITY LTD,28/8/2023 00:00:00,24/9/2023 00:00:00,P06-2024
,LEE VALLEY CARAVAN PARK,SUPPLIES AND SERVICES,MATERIALS (PLANTS & SHRUBS),4126,P123103-SERVICE-20 LAURALS - COTTAGE,09/05/2023 00:00,277061,358.17,CL0093,CLOCKHOUSE NURSERY,28/8/2023 00:00:00,24/9/2023 00:00:00,P06-2024
,LEE VALLEY CARAVAN PARK,SUPPLIES AND SERVICES,MATERIALS (PLANTS & SHRUBS),4126,DW-shrub- cap expenditure,09/05/2023 00:00,277061,-358.17,CL0093,CLOCKHOUSE NURSERY,28/8/2023 00:00:00,24/9/2023 00:00:00,P06-2024
,LEE VALLEY CARAVAN PARK,SUPPLIES AND SERVICES,MATERIALS (PLANTS & SHRUBS),4126,DW-shrub- cap expenditure,09/05/2023 00:00,277061,333.17,CL0093,CLOCKHOUSE NURSERY,28/8/2023 00:00:00,24/9/2023 00:00:00,P06-2024
,LEE VALLEY CARAVAN PARK,SUPPLIES AND SERVICES,MATERIALS (PLANTS & SHRUBS),4126,DW-shrub- cap expenditure,09/05/2023 00:00,277061,25,CL0093,CLOCKHOUSE NURSERY,28/8/2023 00:00:00,24/9/2023 00:00:00,P06-2024
,LEE VALLEY CARAVAN PARK,SUPPLIES AND SERVICES,MATERIALS (PLANTS & SHRUBS),4126,P123092-SERVICE-10 ton of top soil for beds and cottage,09/06/2023 00:00,277190,598.91,TH0051,THOMPSONS OF CREWS HILL LTD,28/8/2023 00:00:00,24/9/2023 00:00:00,P06-2024
,LEE VALLEY MARINA SPRINGFIELD,SUPPLIES AND SERVICES,MATERIALS (TOOLS & PLANT),4127,P123197-SERVICE-To fit pumptronics moter,19/9/2023 00:00:00,277507,384.5,FA0269,FAST FUEL SERVICES,28/8/2023 00:00:00,24/9/2023 00:00:00,P06-2024
,LEE VALLEY MARINA SPRINGFIELD,SUPPLIES AND SERVICES,MATERIALS (TOOLS & PLANT),4127,P123198-SERVICE-To Supply Pumtronics ATEX motor,19/9/2023 00:00:00,277508,769.83,FA0269,FAST FUEL SERVICES,28/8/2023 00:00:00,24/9/2023 00:00:00,P06-2024
,STANSTEAD RECHARGEABLE WORKS,SUPPLIES AND SERVICES,MATERIALS (TOOLS & PLANT),4127,P122940-SERVICE-jet pressure washer,20/9/2023 00:00:00,276829,793.42,MA0004,MACHINE MART LIMITED,28/8/2023 00:00:00,24/9/2023 00:00:00,P06-2024
,STANSTEAD RECHARGEABLE WORKS,SUPPLIES AND SERVICES,MATERIALS (TOOLS & PLANT),4127,P123217-SERVICE-weld patch + 3 holes (james dixon STB 29/8/23,24/9/2023 00:00:00,277475,100,EN0309,PRH ENGINEERING LIMITED,28/8/2023 00:00:00,24/9/2023 00:00:00,P06-2024
,STANSTEAD RECHARGEABLE WORKS,SUPPLIES AND SERVICES,MATERIALS (TOOLS & PLANT),4127,P123282-SERVICE-screwfix bits for workshop Sept 23,20/9/2023 00:00:00,277664,276.67,SC0057,SCREWFIX DIRECT LTD,28/8/2023 00:00:00,24/9/2023 00:00:00,P06-2024
,SPRINGFIELD RECHARGEABLE WORKS,SUPPLIES AND SERVICES,MATERIALS (ENG OTHER),4130,P122820-SERVICE-To provide insurance @ 15%,19/9/2023 00:00:00,277637,210,BA0339,BALDWINS CRANE HIRE LTD,28/8/2023 00:00:00,24/9/2023 00:00:00,P06-2024
,SPRINGFIELD RECHARGEABLE WORKS,SUPPLIES AND SERVICES,MATERIALS (ENG OTHER),4130,P122820-SERVICE-To hire 120 ton crane on 5/9/2023,19/9/2023 00:00:00,277637,1400,BA0339,BALDWINS CRANE HIRE LTD,28/8/2023 00:00:00,24/9/2023 00:00:00,P06-2024
,STANSTEAD RECHARGEABLE WORKS,SUPPLIES AND SERVICES,MATERIALS (ENG OTHER),4130,P123156-SERVICE-anodes,09/07/2023 00:00,277277,2859,MI0200,MIDLAND CHANDLERS LIMITED,28/8/2023 00:00:00,24/9/2023 00:00:00,P06-2024
,STANSTEAD RECHARGEABLE WORKS,SUPPLIES AND SERVICES,MATERIALS (ENG OTHER),4130,P123366-SERVICE-welding items sept 23,24/9/2023 00:00:00,277788,79.9,WE0257,PERFECT WELDING LTD,28/8/2023 00:00:00,24/9/2023 00:00:00,P06-2024
,STANSTEAD RECHARGEABLE WORKS,SUPPLIES AND SERVICES,MATERIALS (ENG OTHER),4130,P123365-SERVICE-shark helmet for JJ,24/9/2023 00:00:00,277789,79,WE0257,PERFECT WELDING LTD,28/8/2023 00:00:00,24/9/2023 00:00:00,P06-2024
,LV LEISURE CENTRE CAMPSITE,SUPPLIES AND SERVICES,MATERIALS (MEDICAL),4132,P123206-SERVICE-Firsta id grab bag bandages,13/9/2023 00:00:00,276813,28.45,FI0215,VALUE PRODUCTS LTD,28/8/2023 00:00:00,24/9/2023 00:00:00,P06-2024
P&V,LEE VALLEY FARM HOLYFIELDHALL,SUPPLIES AND SERVICES,FEED,4133,P123227-SERVICE-Prime Rearer,13/9/2023 00:00:00,277228,2113.02,BO0246,FOR FARMERS UK LTD,28/8/2023 00:00:00,24/9/2023 00:00:00,P06-2024
P&V,LEE VALLEY FARM HOLYFIELDHALL,SUPPLIES AND SERVICES,SEEDS,4135,P123118-SERVICE-Sileage Mixture,30/8/2023 00:00:00,276842,7200.3,HA0013,HARLOW AGRICULTURAL MERCHANTS,28/8/2023 00:00:00,24/9/2023 00:00:00,P06-2024
P&V,LEE VALLEY FARM HOLYFIELDHALL,SUPPLIES AND SERVICES,SPRAYS,4136,P123117-SERVICE-Sprays,30/8/2023 00:00:00,276841,1376,HA0013,HARLOW AGRICULTURAL MERCHANTS,28/8/2023 00:00:00,24/9/2023 00:00:00,P06-2024
P&V,LEE VALLEY FARM HOLYFIELDHALL,SUPPLIES AND SERVICES,DAIRY SUNDRIES,4138,P122011-SERVICE-Liquid Nitrogen,13/9/2023 00:00:00,277294,78,GE0005,GENUS BREEDING LTD,28/8/2023 00:00:00,24/9/2023 00:00:00,P06-2024
P&V,LEE VALLEY FARM HOLYFIELDHALL,SUPPLIES AND SERVICES,DAIRY SUNDRIES,4138,P123250-SERVICE-Milk Powder,19/9/2023 00:00:00,277495,330,JJ0187,J AND J CAMP,28/8/2023 00:00:00,24/9/2023 00:00:00,P06-2024
,LV CAMPSITE CARAVAN SALES,SUPPLIES AND SERVICES,CARAVAN PURCHASES,4171,P122491-SERVICE-Amelia EB,19/9/2023 00:00:00,277519,20992.5,SH0693,SH CARAVANS,28/8/2023 00:00:00,24/9/2023 00:00:00,P06-2024
,LV CAMPSITE CARAVAN SALES,SUPPLIES AND SERVICES,DECKING PURCHASES,4173,P122311-SERVICE-127 DW Decking,19/9/2023 00:00:00,277045,7112,WI0352,WILDWOOD OF MAYFIELD LTD,28/8/2023 00:00:00,24/9/2023 00:00:00,P06-2024
,LV CAMPSITE CARAVAN SALES,SUPPLIES AND SERVICES,DECKING PURCHASES,4173,P123305-SERVICE-40 SC Deck & Skirt,20/9/2023 00:00:00,277309,7666.2,WI0352,WILDWOOD OF MAYFIELD LTD,28/8/2023 00:00:00,24/9/2023 00:00:00,P06-2024
,LV CAMPSITE CARAVAN SALES,SUPPLIES AND SERVICES,MISCELLANEOUS CARAVAN COSTS,4174,P123300-SERVICE-40 SC TV Aerial Installation,19/9/2023 00:00:00,277420,225,AS0343,ASCENT AERIALS,28/8/2023 00:00:00,24/9/2023 00:00:00,P06-2024
,LEE VALLEY CARAVAN PARK,SUPPLIES AND SERVICES,CONSUMABLES - LODGES,4181,P122883-SERVICE-Hoover + Delivery Packaging 4.00,09/05/2023 00:00,277044,33.32,CU0759,CURRYS BUSINESS,28/8/2023 00:00:00,24/9/2023 00:00:00,P06-2024
,LEE VALLEY CARAVAN PARK,SUPPLIES AND SERVICES,CONSUMABLES - LODGES,4181,P122883-SERVICE-Replacement Microwave,09/05/2023 00:00,277044,58.32,CU0759,CURRYS BUSINESS,28/8/2023 00:00:00,24/9/2023 00:00:00,P06-2024
CEO,PR/COMMUNICATIONS,SUPPLIES AND SERVICES,CLOTHING & UNIFORMS,4225,P122914-SERVICE-LVRPA name badges x 16 + P&P,19/9/2023 00:00:00,277016,135.6,RE0055,RECOGNITION EXPRESS THAMES VALLEY,28/8/2023 00:00:00,24/9/2023 00:00:00,P06-2024
,LEE VALLEY MARINA STANSTEAD,SUPPLIES AND SERVICES,CLOTHING & UNIFORMS,4225,P123137-SERVICE-Rusty uniform,09/07/2023 00:00,277170,179.49,DI0017,DIRECT BOOT & SHOE SUPPLIES,28/8/2023 00:00:00,24/9/2023 00:00:00,P06-2024
,LEE VALLEY MARINA STANSTEAD,SUPPLIES AND SERVICES,CLOTHING & UNIFORMS,4225,P123233-SERVICE-josh boots,24/9/2023 00:00:00,277509,70,DI0017,DIRECT BOOT & SHOE SUPPLIES,28/8/2023 00:00:00,24/9/2023 00:00:00,P06-2024
,LEE VALLEY MARINA STANSTEAD,SUPPLIES AND SERVICES,CLOTHING & UNIFORMS,4225,Stanstead-uniform,20/9/2023 00:00:00,277673,111.5,DI0017,DIRECT BOOT & SHOE SUPPLIES,28/8/2023 00:00:00,24/9/2023 00:00:00,P06-2024
,LEE VALLEY MARINA STANSTEAD,SUPPLIES AND SERVICES,CLOTHING & UNIFORMS,4225,Stanstead-uniform,20/9/2023 00:00:00,277673,10,DI0017,DIRECT BOOT & SHOE SUPPLIES,28/8/2023 00:00:00,24/9/2023 00:00:00,P06-2024
,LEE VALLEY MARINA STANSTEAD,SUPPLIES AND SERVICES,CLOTHING & UNIFORMS,4225,Stanstead-uniform,20/9/2023 00:00:00,277673,-121.5,DI0017,DIRECT BOOT & SHOE SUPPLIES,28/8/2023 00:00:00,24/9/2023 00:00:00,P06-2024
,LEE VALLEY MARINA STANSTEAD,SUPPLIES AND SERVICES,CLOTHING & UNIFORMS,4225,"P123287-SERVICE-uniform RB,RD,JM,JJ",20/9/2023 00:00:00,277673,121.5,DI0017,DIRECT BOOT & SHOE SUPPLIES,28/8/2023 00:00:00,24/9/2023 00:00:00,P06-2024
,LEE VALLEY MARINA STANSTEAD,SUPPLIES AND SERVICES,CLOTHING & UNIFORMS,4225,P123322-SERVICE-matts steel capped boots,20/9/2023 00:00:00,277745,57.99,SC0057,SCREWFIX DIRECT LTD,28/8/2023 00:00:00,24/9/2023 00:00:00,P06-2024
P&V,LEE VALLEY FARM HOLYFIELDHALL,SUPPLIES AND SERVICES,CLOTHING & UNIFORMS,4225,P121506-SERVICE-Uniform,13/9/2023 00:00:00,277255,397.5,DI0017,DIRECT BOOT & SHOE SUPPLIES,28/8/2023 00:00:00,24/9/2023 00:00:00,P06-2024
P&V,NORTH AREA RANGERS,SUPPLIES AND SERVICES,CLOTHING & UNIFORMS,4225,P122296-SERVICE-3x Stihl X-Flex Design Chainsaw Trousers,24/9/2023 00:00:00,277937,602.54,HO0221,HONEY BROTHERS LIMITED,28/8/2023 00:00:00,24/9/2023 00:00:00,P06-2024
P&V,NORTH AREA RANGERS,SUPPLIES AND SERVICES,CLOTHING & UNIFORMS,4225,P122296-SERVICE-2x Stihl Braces,24/9/2023 00:00:00,277938,34.1,HO0221,HONEY BROTHERS LIMITED,28/8/2023 00:00:00,24/9/2023 00:00:00,P06-2024
P&V,VOLUNTEERS (L&E),SUPPLIES AND SERVICES,CLOTHING & UNIFORMS,4225,P122764-SERVICE-5 x MS629 Black Grab & Grip Gloves Size 7,09/05/2023 00:00,277030,4.15,DI0017,DIRECT BOOT & SHOE SUPPLIES,28/8/2023 00:00:00,24/9/2023 00:00:00,P06-2024
P&V,VOLUNTEERS (L&E),SUPPLIES AND SERVICES,CLOTHING & UNIFORMS,4225,P122764-SERVICE-5 x MS629 Black Grab & Grip Gloves Size 8,09/05/2023 00:00,277030,4.15,DI0017,DIRECT BOOT & SHOE SUPPLIES,28/8/2023 00:00:00,24/9/2023 00:00:00,P06-2024
P&V,VOLUNTEERS (L&E),SUPPLIES AND SERVICES,CLOTHING & UNIFORMS,4225,P122764-SERVICE-5 x MS629 Black Grab & Grip Gloves Size 9,09/05/2023 00:00,277030,4.15,DI0017,DIRECT BOOT & SHOE SUPPLIES,28/8/2023 00:00:00,24/9/2023 00:00:00,P06-2024
P&V,VOLUNTEERS (L&E),SUPPLIES AND SERVICES,CLOTHING & UNIFORMS,4225,P122764-SERVICE-LH517-Black-6,09/05/2023 00:00,277030,12.5,DI0017,DIRECT BOOT & SHOE SUPPLIES,28/8/2023 00:00:00,24/9/2023 00:00:00,P06-2024
P&V,VOLUNTEERS (L&E),SUPPLIES AND SERVICES,CLOTHING & UNIFORMS,4225,P122764-SERVICE-5 x MS629 Black Grab & Grip Gloves Size 10,09/05/2023 00:00,277030,4.15,DI0017,DIRECT BOOT & SHOE SUPPLIES,28/8/2023 00:00:00,24/9/2023 00:00:00,P06-2024
P&V,VOLUNTEERS (L&E),SUPPLIES AND SERVICES,CLOTHING & UNIFORMS,4225,P122764-SERVICE-5 x MS629 Black Grab & Grip Gloves Size 11,09/05/2023 00:00,277030,4.15,DI0017,DIRECT BOOT & SHOE SUPPLIES,28/8/2023 00:00:00,24/9/2023 00:00:00,P06-2024
P&V,VOLUNTEERS (L&E),SUPPLIES AND SERVICES,CLOTHING & UNIFORMS,4225,P122764-SERVICE-20 x MS613 Grey Suede Rigger Gloves,09/05/2023 00:00,277030,20,DI0017,DIRECT BOOT & SHOE SUPPLIES,28/8/2023 00:00:00,24/9/2023 00:00:00,P06-2024
CEO,CHIEF EXECUTIVE,SUPPLIES AND SERVICES,OFFICE EXPENSES,4311,P123226-SERVICE-2 x Black & 2 x Colour HPCH562EE Cartridges,24/9/2023 00:00:00,277921,71.62,TH0008,JKL SOLUTIONS LTD,28/8/2023 00:00:00,24/9/2023 00:00:00,P06-2024
R&B,HUMAN RESOURCES,SUPPLIES AND SERVICES,OFFICE EXPENSES,4311,P123367-SERVICE-Stationary A4 Envelopes,24/9/2023 00:00:00,277896,20.56,TH0008,JKL SOLUTIONS LTD,28/8/2023 00:00:00,24/9/2023 00:00:00,P06-2024
,LEE VALLEY MARINA STANSTEAD,SUPPLIES AND SERVICES,OFFICE EXPENSES,4311,P123216-SERVICE-stationery tipex and staples,19/9/2023 00:00:00,277501,32.23,TH0008,JKL SOLUTIONS LTD,28/8/2023 00:00:00,24/9/2023 00:00:00,P06-2024
,LEE VALLEY CAMPSITE,SUPPLIES AND SERVICES,OFFICE EXPENSES,4311,P123125-SERVICE-Stationery,13/9/2023 00:00:00,276922,56.85,TH0008,JKL SOLUTIONS LTD,28/8/2023 00:00:00,24/9/2023 00:00:00,P06-2024
,LEE VALLEY CAMPSITE,SUPPLIES AND SERVICES,OFFICE EXPENSES,4311,P123125-SERVICE-Stationery,19/9/2023 00:00:00,277502,72.56,TH0008,JKL SOLUTIONS LTD,28/8/2023 00:00:00,24/9/2023 00:00:00,P06-2024
,LEE VALLEY CARAVAN PARK,SUPPLIES AND SERVICES,OFFICE EXPENSES,4311,P123340-SERVICE-Stationery,24/9/2023 00:00:00,277771,73.53,TH0008,JKL SOLUTIONS LTD,28/8/2023 00:00:00,24/9/2023 00:00:00,P06-2024
P&V,WILDLIFE DISCOVERY CENTRE,SUPPLIES AND SERVICES,OFFICE EXPENSES,4311,OFFICE SUPPLIES,24/9/2023 00:00:00,277903,2.92,FI0001,DIRECTOR OF FINANCE - CASH,28/8/2023 00:00:00,24/9/2023 00:00:00,P06-2024
P&V,RIVER LEE COUNTRY PARK,SUPPLIES AND SERVICES,OFFICE EXPENSES,4311,OFFICE SUPPLIES,24/9/2023 00:00:00,277903,12.83,FI0001,DIRECTOR OF FINANCE - CASH,28/8/2023 00:00:00,24/9/2023 00:00:00,P06-2024
,LV LEISURE CENTRE CAMPSITE,SUPPLIES AND SERVICES,OFFICE EXPENSES,4311,P123403-SERVICE-Stationary,24/9/2023 00:00:00,277966,32.12,TH0008,JKL SOLUTIONS LTD,28/8/2023 00:00:00,24/9/2023 00:00:00,P06-2024
R&B,INFORMATION TECHNOLOGY,SUPPLIES AND SERVICES,PHOTOCOPYING,4314,IT-COPYING MACHINES 04/09/23-03/12/23,19/9/2023 00:00:00,277443,1566.78,KO0071,KONICA MINOLTA BUSINESS SOLUTIONS ( UK) LTD,28/8/2023 00:00:00,24/9/2023 00:00:00,P06-2024
CEO,PR/COMMUNICATIONS,SUPPLIES AND SERVICES,PRINTING CORPORATE BROCHURES,4321,P122463-SERVICE-Discover Waltham Abbey leaflet,19/9/2023 00:00:00,277206,135.43,WA0309,WALTHAM ABBEY TOWN PARTNERSHIPS,28/8/2023 00:00:00,24/9/2023 00:00:00,P06-2024
CEO,PR/COMMUNICATIONS,SUPPLIES AND SERVICES,PRINTING CORPORATE BROCHURES,4321,"P122085-SERVICE-Where to watch wildlife x 10,000",13/9/2023 00:00:00,277408,885.5,PR0293,ELLE MEDIA GROUP,28/8/2023 00:00:00,24/9/2023 00:00:00,P06-2024
CEO,PR/COMMUNICATIONS,SUPPLIES AND SERVICES,PRINTING CORPORATE BROCHURES,4321,"P122085-SERVICE-Where to watch wildlife x 10,000",13/9/2023 00:00:00,277409,885.5,PR0293,ELLE MEDIA GROUP,28/8/2023 00:00:00,24/9/2023 00:00:00,P06-2024
P&V,LEE VALLEY FARM HOLYFIELDHALL,SUPPLIES AND SERVICES,SUBSCRIPTIONS,4334,P123190-SERVICE-Membership,09/07/2023 00:00,277285,15,BA0667,BASIS REGISTRATION LTD,28/8/2023 00:00:00,24/9/2023 00:00:00,P06-2024
R&B,INFORMATION TECHNOLOGY,SUPPLIES AND SERVICES,TELEPHONES (OFFICE),4481,Md Hse -monthly charge,09/05/2023 00:00,277083,29.5,ZE0007,ZEN INTERNET LTD,28/8/2023 00:00:00,24/9/2023 00:00:00,P06-2024
R&B,INFORMATION TECHNOLOGY,SUPPLIES AND SERVICES,TELEPHONES (OFFICE),4481,IT-TELEPHONE-JULY 2023,13/9/2023 00:00:00,277466,1967.95,ID0002,DAISY COMMUNICATIONS LTD,28/8/2023 00:00:00,24/9/2023 00:00:00,P06-2024
R&B,INFORMATION TECHNOLOGY,SUPPLIES AND SERVICES,TELEPHONES (OFFICE),4481,IT-Fibre pro monthly charge,19/9/2023 00:00:00,277479,38,ZE0007,ZEN INTERNET LTD,28/8/2023 00:00:00,24/9/2023 00:00:00,P06-2024
R&B,INFORMATION TECHNOLOGY,SUPPLIES AND SERVICES,TELEPHONES (OFFICE),4481,IT-Telephone Chg-Aug 23,13/9/2023 00:00:00,277483,1757.03,ID0002,DAISY COMMUNICATIONS LTD,28/8/2023 00:00:00,24/9/2023 00:00:00,P06-2024
R&B,INFORMATION TECHNOLOGY,SUPPLIES AND SERVICES,TELEPHONES (OFFICE),4481,IT-Monthly Charge-,19/9/2023 00:00:00,277622,31.32,ZE0007,ZEN INTERNET LTD,28/8/2023 00:00:00,24/9/2023 00:00:00,P06-2024
R&B,DEMOCRATIC REPRESENTATION & MA,SUPPLIES AND SERVICES,MEMBERS EXPENSES,4502,P123207-SERVICE-IRP Advice & Expenses,13/9/2023 00:00:00,277375,1885.5,HA0240,DECLAN L G HALL,28/8/2023 00:00:00,24/9/2023 00:00:00,P06-2024
R&B,DEMOCRATIC REPRESENTATION & MA,SUPPLIES AND SERVICES,MEMBERS EXPENSES,4502,"P123078-SERVICE-Catering on 31/08/23 for 10 People, Delivery",13/9/2023 00:00:00,277439,79.5,SH0256,SHARRONS EVENT CATERING COMPANY LTD,28/8/2023 00:00:00,24/9/2023 00:00:00,P06-2024
R&B,DEMOCRATIC REPRESENTATION & MA,SUPPLIES AND SERVICES,MEMBERS EXPENSES,4502,"P123329-SERVICE-Catering on 21/09/23 for 15 People, Delivery",24/9/2023 00:00:00,277960,111.75,SH0256,SHARRONS EVENT CATERING COMPANY LTD,28/8/2023 00:00:00,24/9/2023 00:00:00,P06-2024
R&B,DEMOCRATIC REPRESENTATION & MA,SUPPLIES AND SERVICES,MEMBERS VISITS,4503,P123280-SERVICE-Coach Hire on 18/09/23,20/9/2023 00:00:00,277748,280,BL0517,B & L COACHES,28/8/2023 00:00:00,24/9/2023 00:00:00,P06-2024
R&B,DEMOCRATIC REPRESENTATION & MA,SUPPLIES AND SERVICES,MEMBERS VISITS,4503,"P123257-SERVICE-Catering on 18/09/23, Delivery to Myddelton H",24/9/2023 00:00:00,277961,74.9,SH0256,SHARRONS EVENT CATERING COMPANY LTD,28/8/2023 00:00:00,24/9/2023 00:00:00,P06-2024
CEO,CHIEF EXECUTIVE,SUPPLIES AND SERVICES,HOSPITALITY,4505,P123009-SERVICE-Sandwich Lunch on 24 Aug for visit by Barnet,09/05/2023 00:00,277169,212.86,GR0097,GREENWICH LEISURE LTD,28/8/2023 00:00:00,24/9/2023 00:00:00,P06-2024
P&V,RIVER LEE COUNTRY PARK,SUPPLIES AND SERVICES,HOSPITALITY,4505,P122860-SERVICE-Room Hire - 09/08/23 White Water Centre,24/9/2023 00:00:00,277625,100,GR0097,GREENWICH LEISURE LTD,28/8/2023 00:00:00,24/9/2023 00:00:00,P06-2024
P&V,RIVER LEE COUNTRY PARK,SUPPLIES AND SERVICES,HOSPITALITY,4505,HOSPITALITY,24/9/2023 00:00:00,277903,6.19,FI0001,DIRECTOR OF FINANCE - CASH,28/8/2023 00:00:00,24/9/2023 00:00:00,P06-2024
P&V,RIVER LEE COUNTRY PARK,SUPPLIES AND SERVICES,HOSPITALITY,4505,HOSPITALITY,24/9/2023 00:00:00,277903,1.25,FI0001,DIRECTOR OF FINANCE - CASH,28/8/2023 00:00:00,24/9/2023 00:00:00,P06-2024
P&V,WILDLIFE DISCOVERY CENTRE,SUPPLIES AND SERVICES,VOLUNTEERS EXPENSES,4506,VOLUNTEER REFRESHMENTS,24/9/2023 00:00:00,277903,1.25,FI0001,DIRECTOR OF FINANCE - CASH,28/8/2023 00:00:00,24/9/2023 00:00:00,P06-2024
P&V,RIVER LEE COUNTRY PARK,SUPPLIES AND SERVICES,VOLUNTEERS EXPENSES,4506,VOLUNTEER REFRESHMENTS,24/9/2023 00:00:00,277903,1.3,FI0001,DIRECTOR OF FINANCE - CASH,28/8/2023 00:00:00,24/9/2023 00:00:00,P06-2024
P&V,RIVER LEE COUNTRY PARK,SUPPLIES AND SERVICES,VOLUNTEERS EXPENSES,4506,VOLUNTEER REFRESHMENTS,24/9/2023 00:00:00,277903,2.05,FI0001,DIRECTOR OF FINANCE - CASH,28/8/2023 00:00:00,24/9/2023 00:00:00,P06-2024
P&V,RIVER LEE COUNTRY PARK,SUPPLIES AND SERVICES,VOLUNTEERS EXPENSES,4506,VOLUNTEER REFRESHMENTS,24/9/2023 00:00:00,277903,3.83,FI0001,DIRECTOR OF FINANCE - CASH,28/8/2023 00:00:00,24/9/2023 00:00:00,P06-2024
P&V,RIVER LEE COUNTRY PARK,SUPPLIES AND SERVICES,VOLUNTEERS EXPENSES,4506,VOLUNTEER REFRESHMENTS,24/9/2023 00:00:00,277903,11.74,FI0001,DIRECTOR OF FINANCE - CASH,28/8/2023 00:00:00,24/9/2023 00:00:00,P06-2024
,LEE VALLEY MARINA STANSTEAD,INTERNAL HOSPITALITY,INTERNAL HOSPITALITY,4507,P123123-SERVICE-milk up to 2/9/23,09/07/2023 00:00,277161,39.2,HA0259,STUART BARTON-HAGGER LIMITED,28/8/2023 00:00:00,24/9/2023 00:00:00,P06-2024
,LEE VALLEY MARINA STANSTEAD,INTERNAL HOSPITALITY,INTERNAL HOSPITALITY,4507,P123123-SERVICE-extra bill,13/9/2023 00:00:00,277413,44.8,HA0259,STUART BARTON-HAGGER LIMITED,28/8/2023 00:00:00,24/9/2023 00:00:00,P06-2024
,LEE VALLEY CAMPSITE,SUPPLIES AND SERVICES,MARKETING,4603,P123184-SERVICE-SC Glamping Guide 23-24,19/9/2023 00:00:00,276901,208.4,IN0208,INTERDIJKMEDIA,28/8/2023 00:00:00,24/9/2023 00:00:00,P06-2024
,LEE VALLEY CARAVAN PARK,SUPPLIES AND SERVICES,MARKETING,4603,P123194-SERVICE-DW Visit England Yearly Membership 23-24,13/9/2023 00:00:00,276857,490.93,VI0109,VISIT ENGLAND ASSESSMENT SERVICES,28/8/2023 00:00:00,24/9/2023 00:00:00,P06-2024
,LEE VALLEY CARAVAN PARK,SUPPLIES AND SERVICES,MARKETING,4603,P123184-SERVICE-DW Glamping Guide 23-24,19/9/2023 00:00:00,276900,208.4,IN0208,INTERDIJKMEDIA,28/8/2023 00:00:00,24/9/2023 00:00:00,P06-2024
P&V,NORTH AREA RANGERS,SUPPLIES AND SERVICES,PEST CONTROL,4625,P122082-SERVICE-Pest Control - North Sites - Aug,20/9/2023 00:00:00,277451,73.33,VE0006,VERMINATE CITY & RURAL PEST CONTROL LTD,28/8/2023 00:00:00,24/9/2023 00:00:00,P06-2024
P&V,NORTH AREA RANGERS,SUPPLIES AND SERVICES,PEST CONTROL,4625,P122060-SERVICE-Pest Control - Ware Town Centre - Aug,20/9/2023 00:00:00,277452,70,VE0006,VERMINATE CITY & RURAL PEST CONTROL LTD,28/8/2023 00:00:00,24/9/2023 00:00:00,P06-2024
P&V,NORTH AREA RANGERS,SUPPLIES AND SERVICES,PEST CONTROL,4625,P122082-SERVICE-Pest Control - North Sites - Sep,24/9/2023 00:00:00,277453,73.33,VE0006,VERMINATE CITY & RURAL PEST CONTROL LTD,28/8/2023 00:00:00,24/9/2023 00:00:00,P06-2024
P&V,NORTH AREA RANGERS,SUPPLIES AND SERVICES,PEST CONTROL,4625,P122060-SERVICE-Pest Control - Ware Town Centre - Sep,24/9/2023 00:00:00,277454,70,VE0006,VERMINATE CITY & RURAL PEST CONTROL LTD,28/8/2023 00:00:00,24/9/2023 00:00:00,P06-2024
P&V,SOUTH AREA RANGERS,SUPPLIES AND SERVICES,PEST CONTROL,4625,P122058-SERVICE-Pest Control - Tottenham Marshes - Aug,19/9/2023 00:00:00,277457,70,VE0006,VERMINATE CITY & RURAL PEST CONTROL LTD,28/8/2023 00:00:00,24/9/2023 00:00:00,P06-2024
P&V,SOUTH AREA RANGERS,SUPPLIES AND SERVICES,PEST CONTROL,4625,P122058-SERVICE-Pest Control - Tottenham Marshes - Sep,24/9/2023 00:00:00,277462,70,VE0006,VERMINATE CITY & RURAL PEST CONTROL LTD,28/8/2023 00:00:00,24/9/2023 00:00:00,P06-2024
P&V,ABBEY GARDENS,SUPPLIES AND SERVICES,PEST CONTROL,4625,P122082-SERVICE-Pest Control - North Sites - Aug,20/9/2023 00:00:00,277451,36.67,VE0006,VERMINATE CITY & RURAL PEST CONTROL LTD,28/8/2023 00:00:00,24/9/2023 00:00:00,P06-2024
P&V,ABBEY GARDENS,SUPPLIES AND SERVICES,PEST CONTROL,4625,P122082-SERVICE-Pest Control - North Sites - Sep,24/9/2023 00:00:00,277453,36.67,VE0006,VERMINATE CITY & RURAL PEST CONTROL LTD,28/8/2023 00:00:00,24/9/2023 00:00:00,P06-2024
P&V,RIVER LEE COUNTRY PARK,SUPPLIES AND SERVICES,PEST CONTROL,4625,P122082-SERVICE-Pest Control - North Sites - Aug,20/9/2023 00:00:00,277451,73.33,VE0006,VERMINATE CITY & RURAL PEST CONTROL LTD,28/8/2023 00:00:00,24/9/2023 00:00:00,P06-2024
P&V,RIVER LEE COUNTRY PARK,SUPPLIES AND SERVICES,PEST CONTROL,4625,P122082-SERVICE-Pest Control - North Sites - Sep,24/9/2023 00:00:00,277453,73.33,VE0006,VERMINATE CITY & RURAL PEST CONTROL LTD,28/8/2023 00:00:00,24/9/2023 00:00:00,P06-2024
P&V,FORMER LV LIDO SITE,SUPPLIES AND SERVICES,PEST CONTROL,4625,P122082-SERVICE-Pest Control - North Sites - Aug,20/9/2023 00:00:00,277451,36.67,VE0006,VERMINATE CITY & RURAL PEST CONTROL LTD,28/8/2023 00:00:00,24/9/2023 00:00:00,P06-2024
P&V,FORMER LV LIDO SITE,SUPPLIES AND SERVICES,PEST CONTROL,4625,P122082-SERVICE-Pest Control - North Sites - Sep,24/9/2023 00:00:00,277453,36.67,VE0006,VERMINATE CITY & RURAL PEST CONTROL LTD,28/8/2023 00:00:00,24/9/2023 00:00:00,P06-2024
,LEE VALLEY MARINA SPRINGFIELD,SUPPLIES AND SERVICES,MERCHANT PROCESSING CHARGES,4641,Monthly Fee,09/06/2023 00:00,277185,30,WO0338,WORLDPAY,28/8/2023 00:00:00,24/9/2023 00:00:00,P06-2024
,LEE VALLEY MARINA STANSTEAD,SUPPLIES AND SERVICES,MERCHANT PROCESSING CHARGES,4641,Monthly Fee,09/06/2023 00:00,277185,30,WO0338,WORLDPAY,28/8/2023 00:00:00,24/9/2023 00:00:00,P06-2024
P&V,MYDDELTON HOUSE,SUPPLIES AND SERVICES,CASH COLLECTIONS,4642,P123283-SERVICE-Myddelton House 2 & 16/8/23,19/9/2023 00:00:00,277430,24.86,SE0692,SECURITY PLUS LTD,28/8/2023 00:00:00,24/9/2023 00:00:00,P06-2024
,LEE VALLEY MARINA SPRINGFIELD,SUPPLIES AND SERVICES,CASH COLLECTIONS,4642,"P123283-SERVICE-Stanstead Marina 2,16, 30/8/23",19/9/2023 00:00:00,277430,37.29,SE0692,SECURITY PLUS LTD,28/8/2023 00:00:00,24/9/2023 00:00:00,P06-2024
,LEE VALLEY MARINA STANSTEAD,SUPPLIES AND SERVICES,CASH COLLECTIONS,4642,"P123283-SERVICE-Springfield Marina 2,16 30/8/23",19/9/2023 00:00:00,277430,37.29,SE0692,SECURITY PLUS LTD,28/8/2023 00:00:00,24/9/2023 00:00:00,P06-2024
,LEE VALLEY CAMPSITE,SUPPLIES AND SERVICES,CASH COLLECTIONS,4642,"P123283-SERVICE-Sewardstone campsite 2,9,16,23 30/8/23",19/9/2023 00:00:00,277430,62.15,SE0692,SECURITY PLUS LTD,28/8/2023 00:00:00,24/9/2023 00:00:00,P06-2024
,LEE VALLEY CARAVAN PARK,SUPPLIES AND SERVICES,CASH COLLECTIONS,4642,"P123283-SERVICE-Dobbs Weir campsite 2.9.16,23, 30/8/23",19/9/2023 00:00:00,277430,62.15,SE0692,SECURITY PLUS LTD,28/8/2023 00:00:00,24/9/2023 00:00:00,P06-2024
,LV LEISURE CENTRE CAMPSITE,SUPPLIES AND SERVICES,CASH COLLECTIONS,4642,P123283-SERVICE-Edmonton campsite 2.9.16.23 30/8/23,19/9/2023 00:00:00,277430,62.15,SE0692,SECURITY PLUS LTD,28/8/2023 00:00:00,24/9/2023 00:00:00,P06-2024
R&B,FINANCE & RESOURCES MANAGEMENT,SUPPLIES AND SERVICES,DEBT RECOVERY FEES,4646,PROF SERVICES-DEBT RECOVERY,09/07/2023 00:00,277049,-1847.32,LE0069,LEGAL RECOVERIES AND COLLECTIONS LIMITED,28/8/2023 00:00:00,24/9/2023 00:00:00,P06-2024
R&B,FINANCE & RESOURCES MANAGEMENT,SUPPLIES AND SERVICES,DEBT RECOVERY FEES,4646,PROF SERVICES-DEBT RECOVERY,09/07/2023 00:00,277049,142,LE0069,LEGAL RECOVERIES AND COLLECTIONS LIMITED,28/8/2023 00:00:00,24/9/2023 00:00:00,P06-2024
R&B,FINANCE & RESOURCES MANAGEMENT,SUPPLIES AND SERVICES,DEBT RECOVERY FEES,4646,PROF SERVICES-DEBT RECOVERY,09/07/2023 00:00,277049,1705.32,LE0069,LEGAL RECOVERIES AND COLLECTIONS LIMITED,28/8/2023 00:00:00,24/9/2023 00:00:00,P06-2024
R&B,FINANCE & RESOURCES MANAGEMENT,SUPPLIES AND SERVICES,DEBT RECOVERY FEES,4646,P121343-SERVICE-DEBT RECOVERY FEES 2023/2024,09/07/2023 00:00,277049,1847.32,LE0069,LEGAL RECOVERIES AND COLLECTIONS LIMITED,28/8/2023 00:00:00,24/9/2023 00:00:00,P06-2024
R&B,FINANCE & RESOURCES MANAGEMENT,SUPPLIES AND SERVICES,DEBT RECOVERY FEES,4646,Debt recovery fees,19/9/2023 00:00:00,277705,-235.24,LE0069,LEGAL RECOVERIES AND COLLECTIONS LIMITED,28/8/2023 00:00:00,24/9/2023 00:00:00,P06-2024
R&B,FINANCE & RESOURCES MANAGEMENT,SUPPLIES AND SERVICES,DEBT RECOVERY FEES,4646,Debt recovery fees,19/9/2023 00:00:00,277705,200.2,LE0069,LEGAL RECOVERIES AND COLLECTIONS LIMITED,28/8/2023 00:00:00,24/9/2023 00:00:00,P06-2024
R&B,FINANCE & RESOURCES MANAGEMENT,SUPPLIES AND SERVICES,DEBT RECOVERY FEES,4646,P121343-SERVICE-DEBT RECOVERY FEES 2023/2024,19/9/2023 00:00:00,277705,235.24,LE0069,LEGAL RECOVERIES AND COLLECTIONS LIMITED,28/8/2023 00:00:00,24/9/2023 00:00:00,P06-2024
R&B,FINANCE & RESOURCES MANAGEMENT,SUPPLIES AND SERVICES,DEBT RECOVERY FEES,4646,Debt recovery fees,19/9/2023 00:00:00,277705,35,LE0069,LEGAL RECOVERIES AND COLLECTIONS LIMITED,28/8/2023 00:00:00,24/9/2023 00:00:00,P06-2024
P&V,MYDDELTON HOUSE,SUPPLIES AND SERVICES,SECURITY,4650,P123317-SERVICE-Attend Site to Replace Worn out Elecric Strik,19/9/2023 00:00:00,277669,187,DE0013,DENNIS SECURITY CENTRE,28/8/2023 00:00:00,24/9/2023 00:00:00,P06-2024
,LEE VALLEY MARINA STANSTEAD,SUPPLIES AND SERVICES,SECURITY,4650,P122873-SERVICE-Open & close limit to be replaced barrier arm,09/05/2023 00:00,277063,183,PS0429,PSL AUTOMATION,28/8/2023 00:00:00,24/9/2023 00:00:00,P06-2024
,LEE VALLEY CARAVAN PARK,SUPPLIES AND SERVICES,SECURITY,4650,P122739-SERVICE-Call Out for Barrier Issue,09/05/2023 00:00,277086,385,AU0245,AUTO-MATE SYSTEMS LIMITED,28/8/2023 00:00:00,24/9/2023 00:00:00,P06-2024
P&V,NORTH AREA RANGERS,SUPPLIES AND SERVICES,SECURITY,4650,P122126-SERVICE-Security - North of Park,24/9/2023 00:00:00,277307,6767.21,PA0059,PARKGUARD LTD,28/8/2023 00:00:00,24/9/2023 00:00:00,P06-2024
P&V,SOUTH AREA RANGERS,SUPPLIES AND SERVICES,SECURITY,4650,P122127-SERVICE-Security - South of Park,24/9/2023 00:00:00,277308,10229.61,PA0059,PARKGUARD LTD,28/8/2023 00:00:00,24/9/2023 00:00:00,P06-2024
P&V,SOUTH AREA RANGERS,SUPPLIES AND SERVICES,SECURITY,4650,P123243-SERVICE-Additional Security at Coppermill,19/9/2023 00:00:00,277524,2280,PA0059,PARKGUARD LTD,28/8/2023 00:00:00,24/9/2023 00:00:00,P06-2024
,LV LEISURE CENTRE CAMPSITE,SUPPLIES AND SERVICES,SECURITY,4650,P123143-SERVICE-observing site overnight,09/05/2023 00:00,277166,340,AH0449,MR HUMZAH AHMED,28/8/2023 00:00:00,24/9/2023 00:00:00,P06-2024
,LV LEISURE CENTRE CAMPSITE,SUPPLIES AND SERVICES,SECURITY,4650,P122959-SERVICE-3x TXM ASSA Keys,09/05/2023 00:00,277168,44.18,LO0020,LOCK AND KEY SERVICES,28/8/2023 00:00:00,24/9/2023 00:00:00,P06-2024
,LV LEISURE CENTRE CAMPSITE,SUPPLIES AND SERVICES,SECURITY,4650,P122959-SERVICE-Delivery,09/05/2023 00:00,277168,6,LO0020,LOCK AND KEY SERVICES,28/8/2023 00:00:00,24/9/2023 00:00:00,P06-2024
,LV LEISURE CENTRE CAMPSITE,SUPPLIES AND SERVICES,SECURITY,4650,P123293-SERVICE-Barrier repair,19/9/2023 00:00:00,277642,145,DE0013,DENNIS SECURITY CENTRE,28/8/2023 00:00:00,24/9/2023 00:00:00,P06-2024
CEO,LVLC SERVICE CHARGE,SUPPLIES AND SERVICES,SECURITY,4650,P121975-SERVICE-Security,19/9/2023 00:00:00,277305,1176.68,PA0059,PARKGUARD LTD,28/8/2023 00:00:00,24/9/2023 00:00:00,P06-2024
CEO,PR/COMMUNICATIONS,SUPPLIES AND SERVICES,SPECIAL MARKETING PROJECTS,4652,"P123225-SERVICE-2 x banners @ 55.44 ea, no delivery costs",24/9/2023 00:00:00,277927,137.76,MA0167,MARTIN DANNELL & CO LTD,28/8/2023 00:00:00,24/9/2023 00:00:00,P06-2024
CEO,PR/COMMUNICATIONS,SUPPLIES AND SERVICES,ADVERTISING - AWARENESS,4656,P121253-SERVICE-Leisure Kicks 2023,19/9/2023 00:00:00,277645,3327.5,PO0144,PORTAMENTO PUBLISHING LIMITED (LEISURE KICKS),28/8/2023 00:00:00,24/9/2023 00:00:00,P06-2024
CEO,LEGAL SERVICES,SUPPLIES AND SERVICES,OFFSITE ARCHIVED STORAGE,4667,P123286-SERVICE-Off site storage August 2023,19/9/2023 00:00:00,277283,509.15,DA0154,RESTORE PLC,28/8/2023 00:00:00,24/9/2023 00:00:00,P06-2024
P&V,LEE VALLEY FARM HOLYFIELDHALL,THIRD PARTY PAYMENTS,VETERINARY SERVICES,4718,P123255-SERVICE-Vets,20/9/2023 00:00:00,277489,1004.21,HA0443,HAMPDEN VETERINARY HOSPITAL,28/8/2023 00:00:00,24/9/2023 00:00:00,P06-2024
P&V,MYDDLETON HSE HERITAGE CENTRE,SUPPLIES AND SERVICES,NET CATERING PURCHASES,4777,BTR-food/drinks,30/8/2023 00:00:00,276865,122.71,360001,BIDFOOD,28/8/2023 00:00:00,24/9/2023 00:00:00,P06-2024
P&V,MYDDLETON HSE HERITAGE CENTRE,SUPPLIES AND SERVICES,NET CATERING PURCHASES,4777,BTR-food/drinks,30/8/2023 00:00:00,276865,251.83,360001,BIDFOOD,28/8/2023 00:00:00,24/9/2023 00:00:00,P06-2024
P&V,MYDDLETON HSE HERITAGE CENTRE,SUPPLIES AND SERVICES,NET CATERING PURCHASES,4777,BTR-food/drinks,30/8/2023 00:00:00,276865,-374.54,360001,BIDFOOD,28/8/2023 00:00:00,24/9/2023 00:00:00,P06-2024
P&V,MYDDLETON HSE HERITAGE CENTRE,SUPPLIES AND SERVICES,NET CATERING PURCHASES,4777,P122891-SERVICE-Food & Drink order week com 07.08.2023,30/8/2023 00:00:00,276865,374.54,360001,BIDFOOD,28/8/2023 00:00:00,24/9/2023 00:00:00,P06-2024
P&V,MYDDLETON HSE HERITAGE CENTRE,SUPPLIES AND SERVICES,NET CATERING PURCHASES,4777,P122794-SERVICE-Coffee order week com 31/07/2023,09/05/2023 00:00,277031,281.3,TU0194,TUDOR TEA & COFFEE,28/8/2023 00:00:00,24/9/2023 00:00:00,P06-2024
P&V,MYDDLETON HSE HERITAGE CENTRE,SUPPLIES AND SERVICES,NET CATERING PURCHASES,4777,BTR-dink/food,30/8/2023 00:00:00,277032,163.99,360001,BIDFOOD,28/8/2023 00:00:00,24/9/2023 00:00:00,P06-2024
P&V,MYDDLETON HSE HERITAGE CENTRE,SUPPLIES AND SERVICES,NET CATERING PURCHASES,4777,BTR-dink/food,30/8/2023 00:00:00,277032,249.77,360001,BIDFOOD,28/8/2023 00:00:00,24/9/2023 00:00:00,P06-2024
P&V,MYDDLETON HSE HERITAGE CENTRE,SUPPLIES AND SERVICES,NET CATERING PURCHASES,4777,BTR-dink/food,30/8/2023 00:00:00,277032,-413.76,360001,BIDFOOD,28/8/2023 00:00:00,24/9/2023 00:00:00,P06-2024
P&V,MYDDLETON HSE HERITAGE CENTRE,SUPPLIES AND SERVICES,NET CATERING PURCHASES,4777,P122891-SERVICE-Food & Drink order week com 07.08.2023,30/8/2023 00:00:00,277032,413.76,360001,BIDFOOD,28/8/2023 00:00:00,24/9/2023 00:00:00,P06-2024
P&V,MYDDLETON HSE HERITAGE CENTRE,SUPPLIES AND SERVICES,NET CATERING PURCHASES,4777,BTR-food/drinks,09/05/2023 00:00,277060,-867.12,360001,BIDFOOD,28/8/2023 00:00:00,24/9/2023 00:00:00,P06-2024
P&V,MYDDLETON HSE HERITAGE CENTRE,SUPPLIES AND SERVICES,NET CATERING PURCHASES,4777,P122891-SERVICE-Food & Drink order week com 07.08.2023,09/05/2023 00:00,277060,5.72,360001,BIDFOOD,28/8/2023 00:00:00,24/9/2023 00:00:00,P06-2024
P&V,MYDDLETON HSE HERITAGE CENTRE,SUPPLIES AND SERVICES,NET CATERING PURCHASES,4777,P122950-SERVICE-Food & Drink order week com 14.08.2023,09/05/2023 00:00,277060,867.12,360001,BIDFOOD,28/8/2023 00:00:00,24/9/2023 00:00:00,P06-2024
P&V,MYDDLETON HSE HERITAGE CENTRE,SUPPLIES AND SERVICES,NET CATERING PURCHASES,4777,BTR-food/drinks,09/05/2023 00:00,277060,102.79,360001,BIDFOOD,28/8/2023 00:00:00,24/9/2023 00:00:00,P06-2024
P&V,MYDDLETON HSE HERITAGE CENTRE,SUPPLIES AND SERVICES,NET CATERING PURCHASES,4777,BTR-food/drinks,09/05/2023 00:00,277060,764.33,360001,BIDFOOD,28/8/2023 00:00:00,24/9/2023 00:00:00,P06-2024
P&V,MYDDLETON HSE HERITAGE CENTRE,SUPPLIES AND SERVICES,NET CATERING PURCHASES,4777,P123024-SERVICE-Food & Drink order wk com 21/08/2023,09/06/2023 00:00,277184,108.57,360001,BIDFOOD,28/8/2023 00:00:00,24/9/2023 00:00:00,P06-2024
P&V,MYDDLETON HSE HERITAGE CENTRE,SUPPLIES AND SERVICES,NET CATERING PURCHASES,4777,BTR-food/drinks,09/06/2023 00:00,277184,-108.57,360001,BIDFOOD,28/8/2023 00:00:00,24/9/2023 00:00:00,P06-2024
P&V,MYDDLETON HSE HERITAGE CENTRE,SUPPLIES AND SERVICES,NET CATERING PURCHASES,4777,BTR-food/drinks,09/06/2023 00:00,277184,44.38,360001,BIDFOOD,28/8/2023 00:00:00,24/9/2023 00:00:00,P06-2024
P&V,MYDDLETON HSE HERITAGE CENTRE,SUPPLIES AND SERVICES,NET CATERING PURCHASES,4777,P122950-SERVICE-Food & Drink order week com 14.08.2023,09/06/2023 00:00,277184,132.88,360001,BIDFOOD,28/8/2023 00:00:00,24/9/2023 00:00:00,P06-2024
P&V,MYDDLETON HSE HERITAGE CENTRE,SUPPLIES AND SERVICES,NET CATERING PURCHASES,4777,BTR-food/drinks,09/06/2023 00:00,277184,64.19,360001,BIDFOOD,28/8/2023 00:00:00,24/9/2023 00:00:00,P06-2024
P&V,MYDDLETON HSE HERITAGE CENTRE,SUPPLIES AND SERVICES,NET CATERING PURCHASES,4777,BTR-coffee,13/9/2023 00:00:00,277424,-120.8,TU0194,TUDOR TEA & COFFEE,28/8/2023 00:00:00,24/9/2023 00:00:00,P06-2024
P&V,MYDDLETON HSE HERITAGE CENTRE,SUPPLIES AND SERVICES,NET CATERING PURCHASES,4777,P123027-SERVICE-Coffee machine cleaning solution,13/9/2023 00:00:00,277424,120.8,TU0194,TUDOR TEA & COFFEE,28/8/2023 00:00:00,24/9/2023 00:00:00,P06-2024
P&V,MYDDLETON HSE HERITAGE CENTRE,SUPPLIES AND SERVICES,NET CATERING PURCHASES,4777,BTR-coffee,13/9/2023 00:00:00,277424,69,TU0194,TUDOR TEA & COFFEE,28/8/2023 00:00:00,24/9/2023 00:00:00,P06-2024
P&V,MYDDLETON HSE HERITAGE CENTRE,SUPPLIES AND SERVICES,NET CATERING PURCHASES,4777,BTR-coffee,13/9/2023 00:00:00,277424,51.8,TU0194,TUDOR TEA & COFFEE,28/8/2023 00:00:00,24/9/2023 00:00:00,P06-2024
P&V,MYDDLETON HSE HERITAGE CENTRE,SUPPLIES AND SERVICES,NET CATERING PURCHASES,4777,P122794-SERVICE-Coffee order week com 31/07/2023,13/9/2023 00:00:00,277425,138,TU0194,TUDOR TEA & COFFEE,28/8/2023 00:00:00,24/9/2023 00:00:00,P06-2024
,LEE VALLEY MARINA SPRINGFIELD,SUPPLIES AND SERVICES,TRADING AC - EXTERNAL PURCHASE,4875,P122965-SERVICE-Fenders and plumbing supplies,24/9/2023 00:00:00,276791,533.73,AQ0033,AQUAFAX LIMITED,28/8/2023 00:00:00,24/9/2023 00:00:00,P06-2024
,LEE VALLEY MARINA SPRINGFIELD,SUPPLIES AND SERVICES,TRADING AC - EXTERNAL PURCHASE,4875,P122963-SERVICE-General chandlery Stock,09/05/2023 00:00,276793,439.44,MI0200,MIDLAND CHANDLERS LIMITED,28/8/2023 00:00:00,24/9/2023 00:00:00,P06-2024
,LEE VALLEY MARINA SPRINGFIELD,SUPPLIES AND SERVICES,TRADING AC - EXTERNAL PURCHASE,4875,P122956-SERVICE-Tercoo Blasters,19/9/2023 00:00:00,276795,1618.35,ME0484,MERIDIAN ZERO DISTRIBUTION LIMITED,28/8/2023 00:00:00,24/9/2023 00:00:00,P06-2024
,LEE VALLEY MARINA SPRINGFIELD,SUPPLIES AND SERVICES,TRADING AC - EXTERNAL PURCHASE,4875,P122965-SERVICE-Fenders and plumbing supplies,24/9/2023 00:00:00,276806,21.33,AQ0033,AQUAFAX LIMITED,28/8/2023 00:00:00,24/9/2023 00:00:00,P06-2024
,LEE VALLEY MARINA SPRINGFIELD,SUPPLIES AND SERVICES,TRADING AC - EXTERNAL PURCHASE,4875,P123069-SERVICE-Gearbox for customer,09/05/2023 00:00,276808,62.24,MI0200,MIDLAND CHANDLERS LIMITED,28/8/2023 00:00:00,24/9/2023 00:00:00,P06-2024
,LEE VALLEY MARINA SPRINGFIELD,SUPPLIES AND SERVICES,TRADING AC - EXTERNAL PURCHASE,4875,P122758-SERVICE-Gas,19/9/2023 00:00:00,276831,987,SM0664,KG SMITH & SON,28/8/2023 00:00:00,24/9/2023 00:00:00,P06-2024
,LEE VALLEY MARINA SPRINGFIELD,SUPPLIES AND SERVICES,TRADING AC - EXTERNAL PURCHASE,4875,P123040-SERVICE-Painting supplies,09/05/2023 00:00,277047,158.34,CE0510,CENTURION EUROPE LIMITED,28/8/2023 00:00:00,24/9/2023 00:00:00,P06-2024
,LEE VALLEY MARINA SPRINGFIELD,SUPPLIES AND SERVICES,TRADING AC - EXTERNAL PURCHASE,4875,P122965-SERVICE-Fenders and plumbing supplies,09/06/2023 00:00,277067,307.69,AQ0033,AQUAFAX LIMITED,28/8/2023 00:00:00,24/9/2023 00:00:00,P06-2024
,LEE VALLEY MARINA SPRINGFIELD,SUPPLIES AND SERVICES,TRADING AC - EXTERNAL PURCHASE,4875,P123088-SERVICE-Chandlery Stock,09/05/2023 00:00,277155,376.84,MI0200,MIDLAND CHANDLERS LIMITED,28/8/2023 00:00:00,24/9/2023 00:00:00,P06-2024
,LEE VALLEY MARINA SPRINGFIELD,SUPPLIES AND SERVICES,TRADING AC - EXTERNAL PURCHASE,4875,P123115-SERVICE-Chandlery Stock,09/05/2023 00:00,277164,379.34,MI0200,MIDLAND CHANDLERS LIMITED,28/8/2023 00:00:00,24/9/2023 00:00:00,P06-2024
,LEE VALLEY MARINA SPRINGFIELD,SUPPLIES AND SERVICES,TRADING AC - EXTERNAL PURCHASE,4875,P123115-SERVICE-Chandlery Stock,09/05/2023 00:00,277219,-27.62,MI0200,MIDLAND CHANDLERS LIMITED,28/8/2023 00:00:00,24/9/2023 00:00:00,P06-2024
,LEE VALLEY MARINA SPRINGFIELD,SUPPLIES AND SERVICES,TRADING AC - EXTERNAL PURCHASE,4875,P123115-SERVICE-Chandlery Stock,09/05/2023 00:00,277220,27.62,MI0200,MIDLAND CHANDLERS LIMITED,28/8/2023 00:00:00,24/9/2023 00:00:00,P06-2024
,LEE VALLEY MARINA SPRINGFIELD,SUPPLIES AND SERVICES,TRADING AC - EXTERNAL PURCHASE,4875,P123115-SERVICE-Addtional item delivered,09/05/2023 00:00,277220,6.49,MI0200,MIDLAND CHANDLERS LIMITED,28/8/2023 00:00:00,24/9/2023 00:00:00,P06-2024
,LEE VALLEY MARINA SPRINGFIELD,SUPPLIES AND SERVICES,TRADING AC - EXTERNAL PURCHASE,4875,P123151-SERVICE-Chandlery Stock,09/06/2023 00:00,277221,718.11,MI0200,MIDLAND CHANDLERS LIMITED,28/8/2023 00:00:00,24/9/2023 00:00:00,P06-2024
,LEE VALLEY MARINA SPRINGFIELD,SUPPLIES AND SERVICES,TRADING AC - EXTERNAL PURCHASE,4875,P123162-SERVICE-Customer order,09/06/2023 00:00,277278,62.64,MI0200,MIDLAND CHANDLERS LIMITED,28/8/2023 00:00:00,24/9/2023 00:00:00,P06-2024
,LEE VALLEY MARINA SPRINGFIELD,SUPPLIES AND SERVICES,TRADING AC - EXTERNAL PURCHASE,4875,P123174-SERVICE-Paint,13/9/2023 00:00:00,277282,684.61,CR0651,CRAFTMASTER PAINTS,28/8/2023 00:00:00,24/9/2023 00:00:00,P06-2024
,LEE VALLEY MARINA SPRINGFIELD,SUPPLIES AND SERVICES,TRADING AC - EXTERNAL PURCHASE,4875,P122965-SERVICE-Fenders and plumbing supplies,09/06/2023 00:00,277300,-307.69,AQ0033,AQUAFAX LIMITED,28/8/2023 00:00:00,24/9/2023 00:00:00,P06-2024
,LEE VALLEY MARINA SPRINGFIELD,SUPPLIES AND SERVICES,TRADING AC - EXTERNAL PURCHASE,4875,P122879-SERVICE-Chandlery Stock,09/06/2023 00:00,277302,51.54,MI0200,MIDLAND CHANDLERS LIMITED,28/8/2023 00:00:00,24/9/2023 00:00:00,P06-2024
,LEE VALLEY MARINA SPRINGFIELD,SUPPLIES AND SERVICES,TRADING AC - EXTERNAL PURCHASE,4875,P123069-SERVICE-Gearbox for customer,09/06/2023 00:00,277302,249.66,MI0200,MIDLAND CHANDLERS LIMITED,28/8/2023 00:00:00,24/9/2023 00:00:00,P06-2024
,LEE VALLEY MARINA SPRINGFIELD,SUPPLIES AND SERVICES,TRADING AC - EXTERNAL PURCHASE,4875,P123088-SERVICE-Chandlery Stock,09/06/2023 00:00,277302,6.49,MI0200,MIDLAND CHANDLERS LIMITED,28/8/2023 00:00:00,24/9/2023 00:00:00,P06-2024
,LEE VALLEY MARINA SPRINGFIELD,SUPPLIES AND SERVICES,TRADING AC - EXTERNAL PURCHASE,4875,P123176-SERVICE-Customer order - cooker,09/07/2023 00:00,277303,708.76,MI0200,MIDLAND CHANDLERS LIMITED,28/8/2023 00:00:00,24/9/2023 00:00:00,P06-2024
,LEE VALLEY MARINA SPRINGFIELD,SUPPLIES AND SERVICES,TRADING AC - EXTERNAL PURCHASE,4875,Springfield-Cahndlery stock,13/9/2023 00:00:00,277401,-360.33,MI0200,MIDLAND CHANDLERS LIMITED,28/8/2023 00:00:00,24/9/2023 00:00:00,P06-2024
,LEE VALLEY MARINA SPRINGFIELD,SUPPLIES AND SERVICES,TRADING AC - EXTERNAL PURCHASE,4875,P123196-SERVICE-Chandlery Stock,13/9/2023 00:00:00,277401,360.33,MI0200,MIDLAND CHANDLERS LIMITED,28/8/2023 00:00:00,24/9/2023 00:00:00,P06-2024
,LEE VALLEY MARINA SPRINGFIELD,SUPPLIES AND SERVICES,TRADING AC - EXTERNAL PURCHASE,4875,Springfield-Cahndlery stock,13/9/2023 00:00:00,277401,12.9,MI0200,MIDLAND CHANDLERS LIMITED,28/8/2023 00:00:00,24/9/2023 00:00:00,P06-2024
,LEE VALLEY MARINA SPRINGFIELD,SUPPLIES AND SERVICES,TRADING AC - EXTERNAL PURCHASE,4875,Springfield-Cahndlery stock,13/9/2023 00:00:00,277401,347.43,MI0200,MIDLAND CHANDLERS LIMITED,28/8/2023 00:00:00,24/9/2023 00:00:00,P06-2024
,LEE VALLEY MARINA SPRINGFIELD,SUPPLIES AND SERVICES,TRADING AC - EXTERNAL PURCHASE,4875,P122984-SERVICE-Gas order,13/9/2023 00:00:00,277411,1151.75,SM0664,KG SMITH & SON,28/8/2023 00:00:00,24/9/2023 00:00:00,P06-2024
,LEE VALLEY MARINA SPRINGFIELD,SUPPLIES AND SERVICES,TRADING AC - EXTERNAL PURCHASE,4875,P122984-SERVICE-Heatlogs,13/9/2023 00:00:00,277412,250,SM0664,KG SMITH & SON,28/8/2023 00:00:00,24/9/2023 00:00:00,P06-2024
,LEE VALLEY MARINA SPRINGFIELD,SUPPLIES AND SERVICES,TRADING AC - EXTERNAL PURCHASE,4875,P123196-SERVICE-Chandlery Stock,19/9/2023 00:00:00,277511,42.81,MI0200,MIDLAND CHANDLERS LIMITED,28/8/2023 00:00:00,24/9/2023 00:00:00,P06-2024
,LEE VALLEY MARINA SPRINGFIELD,SUPPLIES AND SERVICES,TRADING AC - EXTERNAL PURCHASE,4875,P123318-SERVICE-Chandlery Stock,20/9/2023 00:00:00,277699,234.36,MI0200,MIDLAND CHANDLERS LIMITED,28/8/2023 00:00:00,24/9/2023 00:00:00,P06-2024
,LEE VALLEY MARINA SPRINGFIELD,SUPPLIES AND SERVICES,TRADING AC - EXTERNAL PURCHASE,4875,P123200-SERVICE-To supply items as per quotation 276527,19/9/2023 00:00:00,277701,381.79,EL0281,ELTHAM WELDING SUPPLIES LIMITED,28/8/2023 00:00:00,24/9/2023 00:00:00,P06-2024
,LEE VALLEY MARINA SPRINGFIELD,SUPPLIES AND SERVICES,TRADING AC - EXTERNAL PURCHASE,4875,P123067-SERVICE-Hardwood logs,20/9/2023 00:00:00,277725,1020,HA0371,HARTS OF OAK,28/8/2023 00:00:00,24/9/2023 00:00:00,P06-2024
,LEE VALLEY MARINA SPRINGFIELD,SUPPLIES AND SERVICES,TRADING AC - EXTERNAL PURCHASE,4875,P123254-SERVICE-Stove appliances and spares,20/9/2023 00:00:00,277740,472.3,CA0660,CALFIRE SPARELINE LIMITED,28/8/2023 00:00:00,24/9/2023 00:00:00,P06-2024
,LEE VALLEY MARINA SPRINGFIELD,SUPPLIES AND SERVICES,TRADING AC - EXTERNAL PURCHASE,4875,P123318-SERVICE-Chandlery Stock,20/9/2023 00:00:00,277743,10.76,MI0200,MIDLAND CHANDLERS LIMITED,28/8/2023 00:00:00,24/9/2023 00:00:00,P06-2024
,LEE VALLEY MARINA SPRINGFIELD,SUPPLIES AND SERVICES,TRADING AC - EXTERNAL PURCHASE,4875,P123318-SERVICE-Chandlery Stock,20/9/2023 00:00:00,277744,-10.76,MI0200,MIDLAND CHANDLERS LIMITED,28/8/2023 00:00:00,24/9/2023 00:00:00,P06-2024
,LEE VALLEY MARINA SPRINGFIELD,SUPPLIES AND SERVICES,TRADING AC - EXTERNAL PURCHASE,4875,P123254-SERVICE-Stove appliances and spares,24/9/2023 00:00:00,277874,24.5,CA0660,CALFIRE SPARELINE LIMITED,28/8/2023 00:00:00,24/9/2023 00:00:00,P06-2024
,STANSTEAD RECHARGEABLE WORKS,SUPPLIES AND SERVICES,TRADING AC - EXTERNAL PURCHASE,4875,P123054-SERVICE-painted pottery chandlery,09/05/2023 00:00,276678,260,CL0722,BEVERLEY CLARKE,28/8/2023 00:00:00,24/9/2023 00:00:00,P06-2024
,STANSTEAD RECHARGEABLE WORKS,SUPPLIES AND SERVICES,TRADING AC - EXTERNAL PURCHASE,4875,P122896-SERVICE- amount for extra 199 ltrs delivered,09/07/2023 00:00,276702,163.12,SP0543,SPEEDY FUELS LIMITED,28/8/2023 00:00:00,24/9/2023 00:00:00,P06-2024
,STANSTEAD RECHARGEABLE WORKS,SUPPLIES AND SERVICES,TRADING AC - EXTERNAL PURCHASE,4875,P122896-SERVICE-2200ltrs red diesel,09/07/2023 00:00,276702,1820.5,SP0543,SPEEDY FUELS LIMITED,28/8/2023 00:00:00,24/9/2023 00:00:00,P06-2024
,STANSTEAD RECHARGEABLE WORKS,SUPPLIES AND SERVICES,TRADING AC - EXTERNAL PURCHASE,4875,P122949-SERVICE-chandlery stock,09/05/2023 00:00,276792,1880.13,MI0200,MIDLAND CHANDLERS LIMITED,28/8/2023 00:00:00,24/9/2023 00:00:00,P06-2024
,STANSTEAD RECHARGEABLE WORKS,SUPPLIES AND SERVICES,TRADING AC - EXTERNAL PURCHASE,4875,P122847-SERVICE-chandlery stock,09/07/2023 00:00,276796,155.66,SC0057,SCREWFIX DIRECT LTD,28/8/2023 00:00:00,24/9/2023 00:00:00,P06-2024
,STANSTEAD RECHARGEABLE WORKS,SUPPLIES AND SERVICES,TRADING AC - EXTERNAL PURCHASE,4875,P122949-SERVICE-chandlery stock,09/05/2023 00:00,276807,398.39,MI0200,MIDLAND CHANDLERS LIMITED,28/8/2023 00:00:00,24/9/2023 00:00:00,P06-2024
,STANSTEAD RECHARGEABLE WORKS,SUPPLIES AND SERVICES,TRADING AC - EXTERNAL PURCHASE,4875,P122953-SERVICE-s/s screws,09/07/2023 00:00,276823,77.35,GR0022,GROUP COMPONENTS LIMITED,28/8/2023 00:00:00,24/9/2023 00:00:00,P06-2024
,STANSTEAD RECHARGEABLE WORKS,SUPPLIES AND SERVICES,TRADING AC - EXTERNAL PURCHASE,4875,P122949-SERVICE-chandlery stock,09/05/2023 00:00,276836,74.2,MI0200,MIDLAND CHANDLERS LIMITED,28/8/2023 00:00:00,24/9/2023 00:00:00,P06-2024
,STANSTEAD RECHARGEABLE WORKS,SUPPLIES AND SERVICES,TRADING AC - EXTERNAL PURCHASE,4875,P122949-SERVICE-chandlery stock,09/05/2023 00:00,276856,27.28,MI0200,MIDLAND CHANDLERS LIMITED,28/8/2023 00:00:00,24/9/2023 00:00:00,P06-2024
,STANSTEAD RECHARGEABLE WORKS,SUPPLIES AND SERVICES,TRADING AC - EXTERNAL PURCHASE,4875,P122944-SERVICE-chandlery stock,09/07/2023 00:00,276921,2.24,AQ0033,AQUAFAX LIMITED,28/8/2023 00:00:00,24/9/2023 00:00:00,P06-2024
,STANSTEAD RECHARGEABLE WORKS,SUPPLIES AND SERVICES,TRADING AC - EXTERNAL PURCHASE,4875,P122944-SERVICE-chandlery stock,09/07/2023 00:00,277006,5.26,AQ0033,AQUAFAX LIMITED,28/8/2023 00:00:00,24/9/2023 00:00:00,P06-2024
,STANSTEAD RECHARGEABLE WORKS,SUPPLIES AND SERVICES,TRADING AC - EXTERNAL PURCHASE,4875,P123052-SERVICE-chandlery stock Aug '23 midland,09/05/2023 00:00,277026,275.91,MI0200,MIDLAND CHANDLERS LIMITED,28/8/2023 00:00:00,24/9/2023 00:00:00,P06-2024
,STANSTEAD RECHARGEABLE WORKS,SUPPLIES AND SERVICES,TRADING AC - EXTERNAL PURCHASE,4875,P123110-SERVICE-craftmaster chandlery aug,09/05/2023 00:00,277054,235.9,CR0651,CRAFTMASTER PAINTS,28/8/2023 00:00:00,24/9/2023 00:00:00,P06-2024
,STANSTEAD RECHARGEABLE WORKS,SUPPLIES AND SERVICES,TRADING AC - EXTERNAL PURCHASE,4875,P123060-SERVICE-chandlery consumerables Aug 23,09/05/2023 00:00,277058,432.04,360001,BIDFOOD,28/8/2023 00:00:00,24/9/2023 00:00:00,P06-2024
,STANSTEAD RECHARGEABLE WORKS,SUPPLIES AND SERVICES,TRADING AC - EXTERNAL PURCHASE,4875,P123060-SERVICE-chandlery consumerables Aug 23,09/05/2023 00:00,277059,-432.04,360001,BIDFOOD,28/8/2023 00:00:00,24/9/2023 00:00:00,P06-2024
,STANSTEAD RECHARGEABLE WORKS,SUPPLIES AND SERVICES,TRADING AC - EXTERNAL PURCHASE,4875,P122944-SERVICE-chandlery stock,09/07/2023 00:00,277066,18.06,AQ0033,AQUAFAX LIMITED,28/8/2023 00:00:00,24/9/2023 00:00:00,P06-2024
,STANSTEAD RECHARGEABLE WORKS,SUPPLIES AND SERVICES,TRADING AC - EXTERNAL PURCHASE,4875,P123060-SERVICE-chandlery consumerables Aug 23,09/05/2023 00:00,277157,435.44,360001,BIDFOOD,28/8/2023 00:00:00,24/9/2023 00:00:00,P06-2024
,STANSTEAD RECHARGEABLE WORKS,SUPPLIES AND SERVICES,TRADING AC - EXTERNAL PURCHASE,4875,P123108-SERVICE-chandlery items Aug,09/05/2023 00:00,277163,175.1,AQ0033,AQUAFAX LIMITED,28/8/2023 00:00:00,24/9/2023 00:00:00,P06-2024
,STANSTEAD RECHARGEABLE WORKS,SUPPLIES AND SERVICES,TRADING AC - EXTERNAL PURCHASE,4875,P123127-SERVICE-intertuf chandlery,09/07/2023 00:00,277186,2559.82,MI0200,MIDLAND CHANDLERS LIMITED,28/8/2023 00:00:00,24/9/2023 00:00:00,P06-2024
,STANSTEAD RECHARGEABLE WORKS,SUPPLIES AND SERVICES,TRADING AC - EXTERNAL PURCHASE,4875,P123109-SERVICE-chandlery elsan items aug,19/9/2023 00:00:00,277189,901.68,EL0376,ELSAN LTD,28/8/2023 00:00:00,24/9/2023 00:00:00,P06-2024
,STANSTEAD RECHARGEABLE WORKS,SUPPLIES AND SERVICES,TRADING AC - EXTERNAL PURCHASE,4875,P123109-SERVICE-additional cost,19/9/2023 00:00:00,277189,32.78,EL0376,ELSAN LTD,28/8/2023 00:00:00,24/9/2023 00:00:00,P06-2024
,STANSTEAD RECHARGEABLE WORKS,SUPPLIES AND SERVICES,TRADING AC - EXTERNAL PURCHASE,4875,P123070-SERVICE-diesel,09/07/2023 00:00,277204,1920.5,SP0543,SPEEDY FUELS LIMITED,28/8/2023 00:00:00,24/9/2023 00:00:00,P06-2024
,STANSTEAD RECHARGEABLE WORKS,SUPPLIES AND SERVICES,TRADING AC - EXTERNAL PURCHASE,4875,P123070-SERVICE-diesel,09/07/2023 00:00,277205,288.54,SP0543,SPEEDY FUELS LIMITED,28/8/2023 00:00:00,24/9/2023 00:00:00,P06-2024
,STANSTEAD RECHARGEABLE WORKS,SUPPLIES AND SERVICES,TRADING AC - EXTERNAL PURCHASE,4875,P123191-SERVICE-chandlery stock,09/07/2023 00:00,277301,228.69,MI0200,MIDLAND CHANDLERS LIMITED,28/8/2023 00:00:00,24/9/2023 00:00:00,P06-2024
,STANSTEAD RECHARGEABLE WORKS,SUPPLIES AND SERVICES,TRADING AC - EXTERNAL PURCHASE,4875,P123204-SERVICE-paint,09/07/2023 00:00,277377,413.62,CR0651,CRAFTMASTER PAINTS,28/8/2023 00:00:00,24/9/2023 00:00:00,P06-2024
,STANSTEAD RECHARGEABLE WORKS,SUPPLIES AND SERVICES,TRADING AC - EXTERNAL PURCHASE,4875,P123191-SERVICE-chandlery stock,24/9/2023 00:00:00,277400,1721.04,MI0200,MIDLAND CHANDLERS LIMITED,28/8/2023 00:00:00,24/9/2023 00:00:00,P06-2024
,STANSTEAD RECHARGEABLE WORKS,SUPPLIES AND SERVICES,TRADING AC - EXTERNAL PURCHASE,4875,P123152-SERVICE-logs and kindling,13/9/2023 00:00:00,277410,1195,SM0664,KG SMITH & SON,28/8/2023 00:00:00,24/9/2023 00:00:00,P06-2024
,STANSTEAD RECHARGEABLE WORKS,SUPPLIES AND SERVICES,TRADING AC - EXTERNAL PURCHASE,4875,P123203-SERVICE-chandlery stock,13/9/2023 00:00:00,277417,28.96,AS0036,ASAP SUPPLIES,28/8/2023 00:00:00,24/9/2023 00:00:00,P06-2024
,STANSTEAD RECHARGEABLE WORKS,SUPPLIES AND SERVICES,TRADING AC - EXTERNAL PURCHASE,4875,P123203-SERVICE-chandlery stock,24/9/2023 00:00:00,277418,96.65,AS0036,ASAP SUPPLIES,28/8/2023 00:00:00,24/9/2023 00:00:00,P06-2024
,STANSTEAD RECHARGEABLE WORKS,SUPPLIES AND SERVICES,TRADING AC - EXTERNAL PURCHASE,4875,P122475-SERVICE-chandlery stock,13/9/2023 00:00:00,277431,67.26,MA0442,MARINE AND INDUSTRIAL LLP,28/8/2023 00:00:00,24/9/2023 00:00:00,P06-2024
,STANSTEAD RECHARGEABLE WORKS,SUPPLIES AND SERVICES,TRADING AC - EXTERNAL PURCHASE,4875,P123177-SERVICE-chandlery stock,24/9/2023 00:00:00,277442,529.56,CE0510,CENTURION EUROPE LIMITED,28/8/2023 00:00:00,24/9/2023 00:00:00,P06-2024
,STANSTEAD RECHARGEABLE WORKS,SUPPLIES AND SERVICES,TRADING AC - EXTERNAL PURCHASE,4875,P122944-SERVICE-chandlery stock,24/9/2023 00:00:00,277480,6.26,AQ0033,AQUAFAX LIMITED,28/8/2023 00:00:00,24/9/2023 00:00:00,P06-2024
,STANSTEAD RECHARGEABLE WORKS,SUPPLIES AND SERVICES,TRADING AC - EXTERNAL PURCHASE,4875,P123232-SERVICE-chandlery stock,24/9/2023 00:00:00,277486,219.17,MI0200,MIDLAND CHANDLERS LIMITED,28/8/2023 00:00:00,24/9/2023 00:00:00,P06-2024
,STANSTEAD RECHARGEABLE WORKS,SUPPLIES AND SERVICES,TRADING AC - EXTERNAL PURCHASE,4875,P123215-SERVICE-chandlery stock,20/9/2023 00:00:00,277512,204.14,MA0442,MARINE AND INDUSTRIAL LLP,28/8/2023 00:00:00,24/9/2023 00:00:00,P06-2024
,STANSTEAD RECHARGEABLE WORKS,SUPPLIES AND SERVICES,TRADING AC - EXTERNAL PURCHASE,4875,P123232-SERVICE-chandlery stock,24/9/2023 00:00:00,277624,21.19,MI0200,MIDLAND CHANDLERS LIMITED,28/8/2023 00:00:00,24/9/2023 00:00:00,P06-2024
,STANSTEAD RECHARGEABLE WORKS,SUPPLIES AND SERVICES,TRADING AC - EXTERNAL PURCHASE,4875,P123245-SERVICE-midland chandlery items sept 23,19/9/2023 00:00:00,277641,353.76,MI0200,MIDLAND CHANDLERS LIMITED,28/8/2023 00:00:00,24/9/2023 00:00:00,P06-2024
,STANSTEAD RECHARGEABLE WORKS,SUPPLIES AND SERVICES,TRADING AC - EXTERNAL PURCHASE,4875,P123323-SERVICE-chandlery supplies sept 23,20/9/2023 00:00:00,277697,53.83,AS0036,ASAP SUPPLIES,28/8/2023 00:00:00,24/9/2023 00:00:00,P06-2024
,STANSTEAD RECHARGEABLE WORKS,SUPPLIES AND SERVICES,TRADING AC - EXTERNAL PURCHASE,4875,P123323-SERVICE-extra stock,24/9/2023 00:00:00,277698,53.83,AS0036,ASAP SUPPLIES,28/8/2023 00:00:00,24/9/2023 00:00:00,P06-2024
,STANSTEAD RECHARGEABLE WORKS,SUPPLIES AND SERVICES,TRADING AC - EXTERNAL PURCHASE,4875,P123323-SERVICE-chandlery supplies sept 23,24/9/2023 00:00:00,277698,46.77,AS0036,ASAP SUPPLIES,28/8/2023 00:00:00,24/9/2023 00:00:00,P06-2024
,STANSTEAD RECHARGEABLE WORKS,SUPPLIES AND SERVICES,TRADING AC - EXTERNAL PURCHASE,4875,P123368-SERVICE-chandlery stock,24/9/2023 00:00:00,277765,420.59,AQ0033,AQUAFAX LIMITED,28/8/2023 00:00:00,24/9/2023 00:00:00,P06-2024
,STANSTEAD RECHARGEABLE WORKS,SUPPLIES AND SERVICES,TRADING AC - EXTERNAL PURCHASE,4875,P123362-SERVICE-paint,24/9/2023 00:00:00,277767,537.21,CR0651,CRAFTMASTER PAINTS,28/8/2023 00:00:00,24/9/2023 00:00:00,P06-2024
,STANSTEAD RECHARGEABLE WORKS,SUPPLIES AND SERVICES,TRADING AC - EXTERNAL PURCHASE,4875,P123323-SERVICE-extra stock,24/9/2023 00:00:00,277873,-53.83,AS0036,ASAP SUPPLIES,28/8/2023 00:00:00,24/9/2023 00:00:00,P06-2024
,LEE VALLEY CAMPSITE,SUPPLIES AND SERVICES,TRADING AC - EXTERNAL PURCHASE,4875,P121693-SERVICE-Stock  Caravan chemicals,13/9/2023 00:00:00,277380,53.9,TO0079,TOWSURE PRODUCTS LIMITED,28/8/2023 00:00:00,24/9/2023 00:00:00,P06-2024
,LEE VALLEY CAMPSITE,SUPPLIES AND SERVICES,TRADING AC - EXTERNAL PURCHASE,4875,P123065-SERVICE-SC Coffee Supplies,19/9/2023 00:00:00,277427,427.7,TU0194,TUDOR TEA & COFFEE,28/8/2023 00:00:00,24/9/2023 00:00:00,P06-2024
,LEE VALLEY CAMPSITE,SUPPLIES AND SERVICES,TRADING AC - EXTERNAL PURCHASE,4875,Sewardstone-coffee beans,19/9/2023 00:00:00,277427,-427.7,TU0194,TUDOR TEA & COFFEE,28/8/2023 00:00:00,24/9/2023 00:00:00,P06-2024
,LEE VALLEY CAMPSITE,SUPPLIES AND SERVICES,TRADING AC - EXTERNAL PURCHASE,4875,Sewardstone-coffee beans,19/9/2023 00:00:00,277427,134.75,TU0194,TUDOR TEA & COFFEE,28/8/2023 00:00:00,24/9/2023 00:00:00,P06-2024
,LEE VALLEY CAMPSITE,SUPPLIES AND SERVICES,TRADING AC - EXTERNAL PURCHASE,4875,Sewardstone-coffee beans,19/9/2023 00:00:00,277427,292.95,TU0194,TUDOR TEA & COFFEE,28/8/2023 00:00:00,24/9/2023 00:00:00,P06-2024
,LEE VALLEY CAMPSITE,SUPPLIES AND SERVICES,TRADING AC - EXTERNAL PURCHASE,4875,P123222-SERVICE-Stock - wood kindling charcoal,19/9/2023 00:00:00,277497,502.5,LO0473,LOGS DIRECT LTD,28/8/2023 00:00:00,24/9/2023 00:00:00,P06-2024
,LEE VALLEY CARAVAN PARK,SUPPLIES AND SERVICES,TRADING AC - EXTERNAL PURCHASE,4875,P123097-SERVICE-Toilet Blue and Pink  Tent Pegs,09/07/2023 00:00,277381,78,TO0079,TOWSURE PRODUCTS LIMITED,28/8/2023 00:00:00,24/9/2023 00:00:00,P06-2024
,LEE VALLEY CARAVAN PARK,SUPPLIES AND SERVICES,TRADING AC - EXTERNAL PURCHASE,4875,DW-coffee beans,19/9/2023 00:00:00,277429,-427.7,TU0194,TUDOR TEA & COFFEE,28/8/2023 00:00:00,24/9/2023 00:00:00,P06-2024
,LEE VALLEY CARAVAN PARK,SUPPLIES AND SERVICES,TRADING AC - EXTERNAL PURCHASE,4875,P123065-SERVICE-DW Coffee Supplies,19/9/2023 00:00:00,277429,427.7,TU0194,TUDOR TEA & COFFEE,28/8/2023 00:00:00,24/9/2023 00:00:00,P06-2024
,LEE VALLEY CARAVAN PARK,SUPPLIES AND SERVICES,TRADING AC - EXTERNAL PURCHASE,4875,DW-coffee beans,19/9/2023 00:00:00,277429,134.75,TU0194,TUDOR TEA & COFFEE,28/8/2023 00:00:00,24/9/2023 00:00:00,P06-2024
,LEE VALLEY CARAVAN PARK,SUPPLIES AND SERVICES,TRADING AC - EXTERNAL PURCHASE,4875,DW-coffee beans,19/9/2023 00:00:00,277429,292.95,TU0194,TUDOR TEA & COFFEE,28/8/2023 00:00:00,24/9/2023 00:00:00,P06-2024
,LEE VALLEY CARAVAN PARK,SUPPLIES AND SERVICES,TRADING AC - EXTERNAL PURCHASE,4875,P123306-SERVICE-2 pallets of logs,24/9/2023 00:00:00,277711,558,LO0473,LOGS DIRECT LTD,28/8/2023 00:00:00,24/9/2023 00:00:00,P06-2024
P&V,WILDLIFE DISCOVERY CENTRE,SUPPLIES AND SERVICES,TRADING AC - EXTERNAL PURCHASE,4875,WATER (WDC SALES),24/9/2023 00:00:00,277903,7.95,FI0001,DIRECTOR OF FINANCE - CASH,28/8/2023 00:00:00,24/9/2023 00:00:00,P06-2024
P&V,WILDLIFE DISCOVERY CENTRE,SUPPLIES AND SERVICES,TRADING AC - EXTERNAL PURCHASE,4875,WATER (WDC SALES),24/9/2023 00:00:00,277903,2.65,FI0001,DIRECTOR OF FINANCE - CASH,28/8/2023 00:00:00,24/9/2023 00:00:00,P06-2024
P&V,WILDLIFE DISCOVERY CENTRE,SUPPLIES AND SERVICES,TRADING AC - EXTERNAL PURCHASE,4875,WATER (WDC SALES),24/9/2023 00:00:00,277903,2.65,FI0001,DIRECTOR OF FINANCE - CASH,28/8/2023 00:00:00,24/9/2023 00:00:00,P06-2024
,LV LEISURE CENTRE CAMPSITE,SUPPLIES AND SERVICES,TRADING AC - EXTERNAL PURCHASE,4875,P123260-SERVICE-Golf balls,19/9/2023 00:00:00,277473,450.8,GR0144,BARRY GRIFFITHS,28/8/2023 00:00:00,24/9/2023 00:00:00,P06-2024
,LV LEISURE CENTRE CAMPSITE,SUPPLIES AND SERVICES,TRADING AC - EXTERNAL PURCHASE,4875,P123261-SERVICE-Caps gloves tees etc,19/9/2023 00:00:00,277474,201.4,GR0144,BARRY GRIFFITHS,28/8/2023 00:00:00,24/9/2023 00:00:00,P06-2024
,LV LEISURE CENTRE CAMPSITE,SUPPLIES AND SERVICES,TRADING AC - EXTERNAL PURCHASE,4875,P123231-SERVICE-wash and drier tokens,13/9/2023 00:00:00,277525,150,AL0434,ALLSOP & FRANCIS,28/8/2023 00:00:00,24/9/2023 00:00:00,P06-2024
,LEE VALLEY CAMPSITE,SUPPLIES AND SERVICES,TRAVEL CARDS,4876,P123047-SERVICE-Adult Travel Cards x 500,30/8/2023 00:00:00,276897,6840,PA0003,TRANSPORT TRADING LIMITED,28/8/2023 00:00:00,24/9/2023 00:00:00,P06-2024
,LEE VALLEY CAMPSITE,SUPPLIES AND SERVICES,TRAVEL CARDS,4876,P123047-SERVICE-Delivery,30/8/2023 00:00:00,276897,2.5,PA0003,TRANSPORT TRADING LIMITED,28/8/2023 00:00:00,24/9/2023 00:00:00,P06-2024
,LEE VALLEY CAMPSITE,SUPPLIES AND SERVICES,TRAVEL CARDS,4876,P123048-SERVICE-Delivery,09/07/2023 00:00,277165,2.5,PA0003,TRANSPORT TRADING LIMITED,28/8/2023 00:00:00,24/9/2023 00:00:00,P06-2024
,LEE VALLEY CAMPSITE,SUPPLIES AND SERVICES,TRAVEL CARDS,4876,P123048-SERVICE-Child cards x250,09/07/2023 00:00,277165,1710,PA0003,TRANSPORT TRADING LIMITED,28/8/2023 00:00:00,24/9/2023 00:00:00,P06-2024
,LEE VALLEY CAMPSITE,SUPPLIES AND SERVICES,TRAVEL CARDS,4876,P123048-SERVICE-Adult Travel Cards X 500,09/07/2023 00:00,277165,6840,PA0003,TRANSPORT TRADING LIMITED,28/8/2023 00:00:00,24/9/2023 00:00:00,P06-2024
CEO,CHIEF EXECUTIVE,SUPPLIES AND SERVICES,UNRECONCILED COMPANY CARD EXP,4880,P ANDREWS-CREDIT CARD STATEMENT- 09/23,09/06/2023 00:00,277197,579.97,NA0007,NATWEST CARD CENTRE,28/8/2023 00:00:00,24/9/2023 00:00:00,P06-2024
P&V,MYDDELTON HOUSE,SUPPLIES AND SERVICES,UNRECONCILED COMPANY CARD EXP,4880,G FLAVIEN-CREDIT CARD STATEMENT- 09/23,09/06/2023 00:00,277197,1930.28,NA0007,NATWEST CARD CENTRE,28/8/2023 00:00:00,24/9/2023 00:00:00,P06-2024
CEO,PR/COMMUNICATIONS,SUPPLIES AND SERVICES,UNRECONCILED COMPANY CARD EXP,4880,S BROMBERG-CREDIT CARD STATEMENT- 09/23,09/06/2023 00:00,277197,5294.16,NA0007,NATWEST CARD CENTRE,28/8/2023 00:00:00,24/9/2023 00:00:00,P06-2024
R&B,DEMOCRATIC REPRESENTATION & MA,SUPPLIES AND SERVICES,UNRECONCILED COMPANY CARD EXP,4880,S BERTSCHIN-CREDIT CARD STATEMENT- 09/23,09/06/2023 00:00,277197,8.8,NA0007,NATWEST CARD CENTRE,28/8/2023 00:00:00,24/9/2023 00:00:00,P06-2024
R&B,INFORMATION TECHNOLOGY,SUPPLIES AND SERVICES,UNRECONCILED COMPANY CARD EXP,4880,S CLARK-CREDIT CARD STATEMENT- 09/23,09/06/2023 00:00,277197,186.41,NA0007,NATWEST CARD CENTRE,28/8/2023 00:00:00,24/9/2023 00:00:00,P06-2024
,LEE VALLEY MARINA STANSTEAD,SUPPLIES AND SERVICES,UNRECONCILED COMPANY CARD EXP,4880,J MANTON-CREDIT CARD STATEMENT- 09/23,09/06/2023 00:00,277197,706.89,NA0007,NATWEST CARD CENTRE,28/8/2023 00:00:00,24/9/2023 00:00:00,P06-2024
P&V,LEE VALLEY FARM HOLYFIELDHALL,SUPPLIES AND SERVICES,UNRECONCILED COMPANY CARD EXP,4880,J PAINTER-CREDIT CARD STATEMENT- 09/23,09/06/2023 00:00,277197,729.79,NA0007,NATWEST CARD CENTRE,28/8/2023 00:00:00,24/9/2023 00:00:00,P06-2024
,LEE VALLEY CAMPSITE,SUPPLIES AND SERVICES,UNRECONCILED COMPANY CARD EXP,4880,C CARTER-CREDIT CARD STATEMENT- 09/23,09/06/2023 00:00,277197,1903.89,NA0007,NATWEST CARD CENTRE,28/8/2023 00:00:00,24/9/2023 00:00:00,P06-2024
,LEE VALLEY CARAVAN PARK,SUPPLIES AND SERVICES,UNRECONCILED COMPANY CARD EXP,4880,I RUSSELL-CREDIT CARD STATEMENT- 09/23,09/06/2023 00:00,277197,3419.93,NA0007,NATWEST CARD CENTRE,28/8/2023 00:00:00,24/9/2023 00:00:00,P06-2024
P&V,SOUTH AREA RANGERS,SUPPLIES AND SERVICES,UNRECONCILED COMPANY CARD EXP,4880,G HODDINOTT-CREDIT CARD STATEMENT- 09/23,09/06/2023 00:00,277197,138.3,NA0007,NATWEST CARD CENTRE,28/8/2023 00:00:00,24/9/2023 00:00:00,P06-2024
P&V,BIODIVERSITY ACTION PLAN,SUPPLIES AND SERVICES,UNRECONCILED COMPANY CARD EXP,4880,C PATRICK-CREDIT CARD STATEMENT- 09/23,09/06/2023 00:00,277197,2.5,NA0007,NATWEST CARD CENTRE,28/8/2023 00:00:00,24/9/2023 00:00:00,P06-2024
P&V,OPERATIONAL MANAGEMENT (L&E),SUPPLIES AND SERVICES,UNRECONCILED COMPANY CARD EXP,4880,D HUTLEY-CREDIT CARD STATEMENT- 09/23,09/06/2023 00:00,277197,556,NA0007,NATWEST CARD CENTRE,28/8/2023 00:00:00,24/9/2023 00:00:00,P06-2024
P&V,OPERATIONAL MANAGEMENT (L&E),SUPPLIES AND SERVICES,UNRECONCILED COMPANY CARD EXP,4880,J HETHERINGTON-CREDIT CARD STATEMENT- 09/23,09/06/2023 00:00,277197,1413.44,NA0007,NATWEST CARD CENTRE,28/8/2023 00:00:00,24/9/2023 00:00:00,P06-2024
P&V,SPORT AND LEISURE,SUPPLIES AND SERVICES,UNRECONCILED COMPANY CARD EXP,4880,A SACKETT-CREDIT CARD STATEMENT- 09/23,09/06/2023 00:00,277197,443.03,NA0007,NATWEST CARD CENTRE,28/8/2023 00:00:00,24/9/2023 00:00:00,P06-2024
P&V,EVENTS MANAGEMENT (PR),SUPPLIES AND SERVICES,UNRECONCILED COMPANY CARD EXP,4880,S STONE-CREDIT CARD STATEMENT- 09/23,09/06/2023 00:00,277197,429.88,NA0007,NATWEST CARD CENTRE,28/8/2023 00:00:00,24/9/2023 00:00:00,P06-2024
,LV LEISURE CENTRE CAMPSITE,SUPPLIES AND SERVICES,UNRECONCILED COMPANY CARD EXP,4880,L SMITH-CREDIT CARD STATEMENT- 09/23,09/06/2023 00:00,277197,1414.14,NA0007,NATWEST CARD CENTRE,28/8/2023 00:00:00,24/9/2023 00:00:00,P06-2024
CEO,COMMERCIAL ACCOMMODATION,SUPPLIES AND SERVICES,OTHER EXPENSES,4899,P123079-SERVICE-Service Charge Jan-June 2023 Bikeworks,09/06/2023 00:00,276882,642,GR0097,GREENWICH LEISURE LTD,28/8/2023 00:00:00,24/9/2023 00:00:00,P06-2024
CEO,COMMERCIAL ACCOMMODATION,SUPPLIES AND SERVICES,OTHER EXPENSES,4899,P123079-SERVICE-Service Charge Jan-June 2023 College World of,09/06/2023 00:00,276882,8388,GR0097,GREENWICH LEISURE LTD,28/8/2023 00:00:00,24/9/2023 00:00:00,P06-2024
CEO,COMMERCIAL ACCOMMODATION,SUPPLIES AND SERVICES,OTHER EXPENSES,4899,P121556-SERVICE-Land Registry Fees,09/05/2023 00:00,277064,9,HM0032,HM LAND REGISTRY,28/8/2023 00:00:00,24/9/2023 00:00:00,P06-2024
CEO,COMMERCIAL ACCOMMODATION,SUPPLIES AND SERVICES,OTHER EXPENSES,4899,P121556-SERVICE-Land Registry Fees,09/06/2023 00:00,277175,6,HM0032,HM LAND REGISTRY,28/8/2023 00:00:00,24/9/2023 00:00:00,P06-2024
CEO,COMMERCIAL ACCOMMODATION,SUPPLIES AND SERVICES,OTHER EXPENSES,4899,P121556-SERVICE-Land Registry Fees,24/9/2023 00:00:00,277940,12,HM0032,HM LAND REGISTRY,28/8/2023 00:00:00,24/9/2023 00:00:00,P06-2024
CEO,PROPERTY,SUPPLIES AND SERVICES,OTHER EXPENSES,4899,P123129-SERVICE-Catering and Room Booking at White Water Cent,19/9/2023 00:00:00,277668,145.47,GR0097,GREENWICH LEISURE LTD,28/8/2023 00:00:00,24/9/2023 00:00:00,P06-2024
R&B,FINANCE,SUPPLIES AND SERVICES,OTHER EXPENSES,4899,VAT 200423-200423,09/05/2023 00:00,277050,0,KE0104,KENNEDYS,28/8/2023 00:00:00,24/9/2023 00:00:00,P06-2024
,LEE VALLEY CAMPSITE,SUPPLIES AND SERVICES,OTHER EXPENSES,4899,P123303-SERVICE-28 SC Roof Repair,19/9/2023 00:00:00,276639,750,PE0282,PEMBERTON LEISURE HOMES,28/8/2023 00:00:00,24/9/2023 00:00:00,P06-2024
,LEE VALLEY CAMPSITE,SUPPLIES AND SERVICES,OTHER EXPENSES,4899,P123058-SERVICE-SC Coffee Machine,19/9/2023 00:00:00,277426,3250,TU0194,TUDOR TEA & COFFEE,28/8/2023 00:00:00,24/9/2023 00:00:00,P06-2024
,LEE VALLEY CARAVAN PARK,SUPPLIES AND SERVICES,OTHER EXPENSES,4899,P123059-SERVICE-SC Coffee Machine,19/9/2023 00:00:00,277428,3250,TU0194,TUDOR TEA & COFFEE,28/8/2023 00:00:00,24/9/2023 00:00:00,P06-2024
P&V,BIODIVERSITY ACTION PLAN,SUPPLIES AND SERVICES,OTHER EXPENSES,4899,P123022-SERVICE-Expenses for Bumblebees Event,13/9/2023 00:00:00,277077,120,BU0665,BUMBLEBEE CONSERVATION TRUST,28/8/2023 00:00:00,24/9/2023 00:00:00,P06-2024
P&V,COMMUNITY ACCESS FUND,SUPPLIES AND SERVICES,OTHER EXPENSES,4899,P122970-SERVICE-CAF payment Q1 Riding Centre,19/9/2023 00:00:00,277195,1736,GR0097,GREENWICH LEISURE LTD,28/8/2023 00:00:00,24/9/2023 00:00:00,P06-2024
P&V,COMMUNITY ACCESS FUND,SUPPLIES AND SERVICES,OTHER EXPENSES,4899,P123308-SERVICE-Hasville Primary to Abbey Farmhouse 16/11/23,19/9/2023 00:00:00,277541,593,LO0478,LONDON BOROUGH OF HAVERING,28/8/2023 00:00:00,24/9/2023 00:00:00,P06-2024
,LV LEISURE CENTRE CAMPSITE,SUPPLIES AND SERVICES,OTHER EXPENSES,4899,ULEZ Refund-Edmonton (552),19/9/2023 00:00:00,277539,250,PU0479,TINA PURDY,28/8/2023 00:00:00,24/9/2023 00:00:00,P06-2024
,LV LEISURE CENTRE CAMPSITE,SUPPLIES AND SERVICES,OTHER EXPENSES,4899,P123248-SERVICE-New AED Battery,19/9/2023 00:00:00,277540,279.54,WE0172,WEL MEDICAL LIMITED,28/8/2023 00:00:00,24/9/2023 00:00:00,P06-2024
,LV LEISURE CENTRE GOLF COURSE,SUPPLIES AND SERVICES,OTHER EXPENSES,4899,P122877-SERVICE-H&S Hazard Overhanging near Athletics Centre,09/05/2023 00:00,276898,975,CO0752,COMPLETE TREE CARE LTD,28/8/2023 00:00:00,24/9/2023 00:00:00,P06-2024
,LV LEISURE CENTRE GOLF COURSE,SUPPLIES AND SERVICES,OTHER EXPENSES,4899,P122877-SERVICE-Hazard 13th Fairway,09/05/2023 00:00,276898,800,CO0752,COMPLETE TREE CARE LTD,28/8/2023 00:00:00,24/9/2023 00:00:00,P06-2024
P&V,AWARDS AND ACCREDITATIONS,SUPPLIES AND SERVICES,OTHER EXPENSES,4899,P123128-SERVICE-Mystery visits LVAC & RC 10/8/23,09/05/2023 00:00,277065,610,RI0053,RIGHT DIRECTIONS (MANAGEMENT) LTD,28/8/2023 00:00:00,24/9/2023 00:00:00,P06-2024
P&V,"ASSET PROTECTION, MAINT, DEVEL",CAPITAL EXPENDITURE,CAPITAL EXPENDITURE,4990,P122198-SERVICE-Connect up New Statics at Dobbs Weir,09/05/2023 00:00,277088,1675,SO0400,SOUTHERN GREEN SERVICES LIMITED,28/8/2023 00:00:00,24/9/2023 00:00:00,P06-2024
P&V,"ASSET PROTECTION, MAINT, DEVEL",CAPITAL EXPENDITURE,CAPITAL EXPENDITURE,4990,P122422-SERVICE-4 x Legionella risk asessements,19/9/2023 00:00:00,277178,1525,JA0177,JASUN ENVIROCARE PLC,28/8/2023 00:00:00,24/9/2023 00:00:00,P06-2024
P&V,"ASSET PROTECTION, MAINT, DEVEL",CAPITAL EXPENDITURE,CAPITAL EXPENDITURE,4990,P123072-SERVICE-WWC - Torc cleaning test samples,09/07/2023 00:00,277262,490,BE0563,BELL GROUP,28/8/2023 00:00:00,24/9/2023 00:00:00,P06-2024
P&V,"ASSET PROTECTION, MAINT, DEVEL",CAPITAL EXPENDITURE,CAPITAL EXPENDITURE,4990,P122523-SERVICE-Replace 3 x faulty bollard light fittings,19/9/2023 00:00:00,277379,735,BR0018,BRADSHAW ELECTRICAL LIMITED,28/8/2023 00:00:00,24/9/2023 00:00:00,P06-2024
P&V,"ASSET PROTECTION, MAINT, DEVEL",CAPITAL EXPENDITURE,CAPITAL EXPENDITURE,4990,P122523-SERVICE-Dusk to Dawn lighting Sewardstone Campsite,19/9/2023 00:00:00,277379,3715,BR0018,BRADSHAW ELECTRICAL LIMITED,28/8/2023 00:00:00,24/9/2023 00:00:00,P06-2024
P&V,"ASSET PROTECTION, MAINT, DEVEL",CAPITAL EXPENDITURE,CAPITAL EXPENDITURE,4990,P122711-SERVICE-Delivery cost,19/9/2023 00:00:00,277419,220,RA0168,RAPID BLOCS LIMITED,28/8/2023 00:00:00,24/9/2023 00:00:00,P06-2024
P&V,"ASSET PROTECTION, MAINT, DEVEL",CAPITAL EXPENDITURE,CAPITAL EXPENDITURE,4990,P122711-SERVICE-Various rapid blocks,19/9/2023 00:00:00,277419,4859.4,RA0168,RAPID BLOCS LIMITED,28/8/2023 00:00:00,24/9/2023 00:00:00,P06-2024
P&V,"ASSET PROTECTION, MAINT, DEVEL",CAPITAL EXPENDITURE,CAPITAL EXPENDITURE,4990,P123140-SERVICE-Attend Sewardstone Campsite investigate for l,19/9/2023 00:00:00,277422,1500,MO0041,CAPSER,28/8/2023 00:00:00,24/9/2023 00:00:00,P06-2024
P&V,"ASSET PROTECTION, MAINT, DEVEL",CAPITAL EXPENDITURE,CAPITAL EXPENDITURE,4990,Sewardstone-investogate leak to front en,19/9/2023 00:00:00,277422,-1500,MO0041,CAPSER,28/8/2023 00:00:00,24/9/2023 00:00:00,P06-2024
P&V,"ASSET PROTECTION, MAINT, DEVEL",CAPITAL EXPENDITURE,CAPITAL EXPENDITURE,4990,Sewardstone-investogate leak to front en,19/9/2023 00:00:00,277422,1000,MO0041,CAPSER,28/8/2023 00:00:00,24/9/2023 00:00:00,P06-2024
P&V,"ASSET PROTECTION, MAINT, DEVEL",CAPITAL EXPENDITURE,CAPITAL EXPENDITURE,4990,Sewardstone-investogate leak to front en,19/9/2023 00:00:00,277422,500,MO0041,CAPSER,28/8/2023 00:00:00,24/9/2023 00:00:00,P06-2024
P&V,"ASSET PROTECTION, MAINT, DEVEL",CAPITAL EXPENDITURE,CAPITAL EXPENDITURE,4990,Springfield-path renewals,19/9/2023 00:00:00,277423,700,MO0041,CAPSER,28/8/2023 00:00:00,24/9/2023 00:00:00,P06-2024
P&V,"ASSET PROTECTION, MAINT, DEVEL",CAPITAL EXPENDITURE,CAPITAL EXPENDITURE,4990,Springfield-path renewals,19/9/2023 00:00:00,277423,-6200,MO0041,CAPSER,28/8/2023 00:00:00,24/9/2023 00:00:00,P06-2024
P&V,"ASSET PROTECTION, MAINT, DEVEL",CAPITAL EXPENDITURE,CAPITAL EXPENDITURE,4990,Springfield-path renewals,19/9/2023 00:00:00,277423,5500,MO0041,CAPSER,28/8/2023 00:00:00,24/9/2023 00:00:00,P06-2024
P&V,"ASSET PROTECTION, MAINT, DEVEL",CAPITAL EXPENDITURE,CAPITAL EXPENDITURE,4990,P122694-SERVICE-Springfield Marina Path Renewals,19/9/2023 00:00:00,277423,6200,MO0041,CAPSER,28/8/2023 00:00:00,24/9/2023 00:00:00,P06-2024
P&V,"ASSET PROTECTION, MAINT, DEVEL",CAPITAL EXPENDITURE,CAPITAL EXPENDITURE,4990,P122209-SERVICE-CCTV Upgrade at White Water Centre,19/9/2023 00:00:00,277444,62998.11,AR0503,ARENA EUROPE LTD,28/8/2023 00:00:00,24/9/2023 00:00:00,P06-2024
P&V,"ASSET PROTECTION, MAINT, DEVEL",CAPITAL EXPENDITURE,CAPITAL EXPENDITURE,4990,P123383-SERVICE-Replace Roller Shutter at Springfield Marina,24/9/2023 00:00:00,277963,5179.2,CO0186,CONTACT ROLLERS SHUTTERS LTD,28/8/2023 00:00:00,24/9/2023 00:00:00,P06-2024
P&V,"ASSET PROTECTION, MAINT, DEVEL",CAPITAL EXPENDITURE,CAPITAL EXPENDITURE,4990,P123383-SERVICE-Replace Roller Shutter at Springfield Marina,24/9/2023 00:00:00,277964,3452.8,CO0186,CONTACT ROLLERS SHUTTERS LTD,28/8/2023 00:00:00,24/9/2023 00:00:00,P06-2024
R&B,INFORMATION TECHNOLOGY,CAPITAL EXPENDITURE,CAPITAL EXPENDITURE,4990,P123016-SERVICE-Re-terminate fibre optic cable in bungalow at,09/05/2023 00:00,277040,358,DE0318,DESIGN AND MANAGEMENT SYSTEMS LTD,28/8/2023 00:00:00,24/9/2023 00:00:00,P06-2024
R&B,INFORMATION TECHNOLOGY,CAPITAL EXPENDITURE,CAPITAL EXPENDITURE,4990,P118194-SERVICE-Finance System Upgrade - Implementation proje,09/07/2023 00:00,277194,1578.9,CE0021,ADVANCED BUSINESS SOLUTIONS,28/8/2023 00:00:00,24/9/2023 00:00:00,P06-2024
,LEE VALLEY VELOPARK,CAPITAL EXPENDITURE,CAPITAL EXPENDITURE,4990,P123290-SERVICE-Velodrome modification,19/9/2023 00:00:00,277172,8000,FA0034,FAULKNER BROWNS LLP,28/8/2023 00:00:00,24/9/2023 00:00:00,P06-2024
,LEE VALLEY ICE CENTRE,CAPITAL EXPENDITURE,CAPITAL EXPENDITURE,4990,P123281-SERVICE-Ice Centre Redevelopment,19/9/2023 00:00:00,277526,37528,WR0199,WRENBRIDGE LAND LTD,28/8/2023 00:00:00,24/9/2023 00:00:00,P06-2024
,LEE VALLEY ICE CENTRE,CAPITAL EXPENDITURE,CAPITAL EXPENDITURE,4990,P123278-SERVICE-Ice Centre redevelopment,19/9/2023 00:00:00,277527,26039,WR0199,WRENBRIDGE LAND LTD,28/8/2023 00:00:00,24/9/2023 00:00:00,P06-2024
,LEE VALLEY ICE CENTRE,CAPITAL EXPENDITURE,CAPITAL EXPENDITURE,4990,P123277-SERVICE-Ice Centre redevelopment,19/9/2023 00:00:00,277528,24185,WR0199,WRENBRIDGE LAND LTD,28/8/2023 00:00:00,24/9/2023 00:00:00,P06-2024
,LEE VALLEY ICE CENTRE,CAPITAL EXPENDITURE,CAPITAL EXPENDITURE,4990,P123276-SERVICE-Ice Centre redevelopment,19/9/2023 00:00:00,277529,6000,WR0199,WRENBRIDGE LAND LTD,28/8/2023 00:00:00,24/9/2023 00:00:00,P06-2024
,LEE VALLEY ATHLETICS CENTRE,CAPITAL EXPENDITURE,CAPITAL EXPENDITURE,4990,P123315-SERVICE-LVAC gym investment,19/9/2023 00:00:00,276600,1000,IP0141,IPW,28/8/2023 00:00:00,24/9/2023 00:00:00,P06-2024
CEO,PR/COMMUNICATIONS,THIRD PARTY PAYMENTS,CONSULTANTS (GENERAL),5110,P121681-SERVICE-Communications Support - LVRPA Corporate,19/9/2023 00:00:00,277494,3000,LO0024,LONDON COMMUNICATIONS AGENCY LTD,28/8/2023 00:00:00,24/9/2023 00:00:00,P06-2024
CEO,PROPERTY,THIRD PARTY PAYMENTS,CONSULTANTS (GENERAL),5110,WWC-completing Stage1a & Stage 1b,19/9/2023 00:00:00,275660,13369,MO0036,MONTAGU EVANS LLP,28/8/2023 00:00:00,24/9/2023 00:00:00,P06-2024
CEO,PROPERTY,THIRD PARTY PAYMENTS,CONSULTANTS (GENERAL),5110,Refer to Comp Ref 275660,19/9/2023 00:00:00,277675,-13369,MO0036,MONTAGU EVANS LLP,28/8/2023 00:00:00,24/9/2023 00:00:00,P06-2024
CEO,PROPERTY,THIRD PARTY PAYMENTS,CONSULTANTS (GENERAL),5110,P123379-SERVICE-Area 4 - Stage 1a,24/9/2023 00:00:00,277676,5000,MO0036,MONTAGU EVANS LLP,28/8/2023 00:00:00,24/9/2023 00:00:00,P06-2024
CEO,PROPERTY,THIRD PARTY PAYMENTS,CONSULTANTS (GENERAL),5110,P123380-SERVICE-Area 4 - Stage 1b,24/9/2023 00:00:00,277677,5000,MO0036,MONTAGU EVANS LLP,28/8/2023 00:00:00,24/9/2023 00:00:00,P06-2024
P&V,"ASSET PROTECTION, MAINT, DEVEL",THIRD PARTY PAYMENTS,CONSULTANTS (GENERAL),5110,P121560-SERVICE-Three Mills Green Additional Drainage Design,13/9/2023 00:00:00,277180,5100,CH0468,CUNDALL,28/8/2023 00:00:00,24/9/2023 00:00:00,P06-2024
P&V,"ASSET PROTECTION, MAINT, DEVEL",THIRD PARTY PAYMENTS,CONSULTANTS (GENERAL),5110,P123181-SERVICE-WWC - ramp drawing update and checking Carmel,13/9/2023 00:00:00,277433,300,AN0029,ANDRIS BERZINS + ASSOCIATES,28/8/2023 00:00:00,24/9/2023 00:00:00,P06-2024
CEO,REGENERATION & PLANNING,THIRD PARTY PAYMENTS,CONSULTANTS (GENERAL),5110,P122308-SERVICE-Partner Contribution 2023-24,09/07/2023 00:00,277384,5000,LA0198,LONDON PARKS & GREEN SPACES FORUM,28/8/2023 00:00:00,24/9/2023 00:00:00,P06-2024
R&B,FINANCE & RESOURCES MANAGEMENT,THIRD PARTY PAYMENTS,CONSULTANTS (GENERAL),5110,P123051-SERVICE-Fees in relation to S80 VAT claim,09/07/2023 00:00,277293,166497.7,KP0010,KPMG TAX ADVISERS,28/8/2023 00:00:00,24/9/2023 00:00:00,P06-2024
CEO,LEGAL SERVICES,THIRD PARTY PAYMENTS,CONSULTANTS (GENERAL),5110,P123112-SERVICE-GLL Advice,09/05/2023 00:00,277055,596.2,WO0344,WOMBLE BOND DICKINSON (UK) LLP,28/8/2023 00:00:00,24/9/2023 00:00:00,P06-2024
CEO,LEGAL SERVICES,THIRD PARTY PAYMENTS,CONSULTANTS (GENERAL),5110,"P123149-SERVICE-Lease of Field Station, Sewardstone",09/06/2023 00:00,277176,849.2,WO0344,WOMBLE BOND DICKINSON (UK) LLP,28/8/2023 00:00:00,24/9/2023 00:00:00,P06-2024
CEO,LEGAL SERVICES,THIRD PARTY PAYMENTS,CONSULTANTS (GENERAL),5110,P123148-SERVICE-Moorings Lease at Rye House,09/06/2023 00:00,277177,258.4,WO0344,WOMBLE BOND DICKINSON (UK) LLP,28/8/2023 00:00:00,24/9/2023 00:00:00,P06-2024
R&B,INTERNAL AUDIT/HEALTH & SAFETY,THIRD PARTY PAYMENTS,CONSULTANTS (HEALTH & SAFETY),5123,P121430-SERVICE-Annual H&S contract April - October 2023,24/9/2023 00:00:00,277925,11458.33,RI0053,RIGHT DIRECTIONS (MANAGEMENT) LTD,28/8/2023 00:00:00,24/9/2023 00:00:00,P06-2024
R&B,BALANCE SHEET (AUTHORITY),CREDITORS,EMPLOYEES INCOME TAX,6701,Paye,13/9/2023 00:00:00,277403,59455.69,HM0368,HMRC,28/8/2023 00:00:00,24/9/2023 00:00:00,P06-2024
R&B,BALANCE SHEET (AUTHORITY),CREDITORS,EMPLOYEES NATIONAL INSURANCE,6702,Paye,13/9/2023 00:00:00,277403,26855.94,HM0368,HMRC,28/8/2023 00:00:00,24/9/2023 00:00:00,P06-2024
R&B,BALANCE SHEET (AUTHORITY),CREDITORS,EMPLOYERS NATIONAL INSURANCE,6704,Paye,13/9/2023 00:00:00,277403,42017.72,HM0368,HMRC,28/8/2023 00:00:00,24/9/2023 00:00:00,P06-2024
R&B,BALANCE SHEET (AUTHORITY),CREDITORS,EMPLOYEES PENSION LGPS,6706,EMPLOYEE CONTRIBUTIONS,13/9/2023 00:00:00,277404,27008.1,LO0334,LONDON PENSION FUND OPERATIONAL ACCOUNT,28/8/2023 00:00:00,24/9/2023 00:00:00,P06-2024
R&B,BALANCE SHEET (AUTHORITY),CREDITORS,EMPLOYEES PENSION LGPS,6706,AVC Contributions,13/9/2023 00:00:00,277405,125,LO0455,LOCAL GOVERNMENT AVC DEPARTMENT,28/8/2023 00:00:00,24/9/2023 00:00:00,P06-2024
R&B,BALANCE SHEET (AUTHORITY),CREDITORS,EMPLOYERS PENSION LGPS,6707,EMPLOYER CONTRIBUTIONS,13/9/2023 00:00:00,277404,51655.53,LO0334,LONDON PENSION FUND OPERATIONAL ACCOUNT,28/8/2023 00:00:00,24/9/2023 00:00:00,P06-2024
R&B,BALANCE SHEET (AUTHORITY),CREDITORS,EMPLOYEES STUDENT LOANS,6709,Paye,13/9/2023 00:00:00,277403,1162,HM0368,HMRC,28/8/2023 00:00:00,24/9/2023 00:00:00,P06-2024
R&B,BALANCE SHEET (AUTHORITY),CREDITORS,EMPLOYEES AEO/DEO,6710,Earning Deductions,13/9/2023 00:00:00,277402,66.2,HM0464,HMCTS- LONDON COLLECTION & COMPLIANCE,28/8/2023 00:00:00,24/9/2023 00:00:00,P06-2024
R&B,BALANCE SHEET (AUTHORITY),CREDITORS,EMPLOYEES UNION SUBSCRIPTIONS,6711,Membership fees,13/9/2023 00:00:00,277406,57,UN0002,UNISON Greater London Region,28/8/2023 00:00:00,24/9/2023 00:00:00,P06-2024
R&B,BALANCE SHEET (AUTHORITY),CREDITORS,CONSTRUCTION INDUSTRY SCHEME,6721,CAPSER,30/8/2023 00:00:00,277132,-120,MO0041,CAPSER,28/8/2023 00:00:00,24/9/2023 00:00:00,P06-2024
R&B,BALANCE SHEET (AUTHORITY),CREDITORS,CONSTRUCTION INDUSTRY SCHEME,6721,R G JOYCE,13/9/2023 00:00:00,277584,-240,JO0019,R G JOYCE,28/8/2023 00:00:00,24/9/2023 00:00:00,P06-2024
R&B,BALANCE SHEET (AUTHORITY),CREDITORS,CONSTRUCTION INDUSTRY SCHEME,6721,CAPSER,19/9/2023 00:00:00,277747,310,IN0016,INLAND REVENUE ONLY 948/L1005,28/8/2023 00:00:00,24/9/2023 00:00:00,P06-2024
R&B,BALANCE SHEET (AUTHORITY),CREDITORS,CONSTRUCTION INDUSTRY SCHEME,6721,JOYCE,19/9/2023 00:00:00,277747,120,IN0016,INLAND REVENUE ONLY 948/L1005,28/8/2023 00:00:00,24/9/2023 00:00:00,P06-2024
R&B,BALANCE SHEET (AUTHORITY),CREDITORS,CONSTRUCTION INDUSTRY SCHEME,6721,R G JOYCE,20/9/2023 00:00:00,277828,-240,JO0019,R G JOYCE,28/8/2023 00:00:00,24/9/2023 00:00:00,P06-2024
R&B,BALANCE SHEET (AUTHORITY),CREDITORS,CONSTRUCTION INDUSTRY SCHEME,6721,CAPSER,20/9/2023 00:00:00,277839,-240,MO0041,CAPSER,28/8/2023 00:00:00,24/9/2023 00:00:00,P06-2024
P&V,CAR PARK INCOME,INCOME,CAR PARKING INCOME,9730,P123313-SERVICE-PBP Chargebakcs- Jul 2023,19/9/2023 00:00:00,276830,1.83,PA0372,PARKINGEYE LIMITED,28/8/2023 00:00:00,24/9/2023 00:00:00,P06-2024
P&V,CAR PARK INCOME,INCOME,CAR PARKING INCOME,9730,P123313-SERVICE-Credit Call Recharge GPP - Aug 2023,19/9/2023 00:00:00,277179,43.32,PA0372,PARKINGEYE LIMITED,28/8/2023 00:00:00,24/9/2023 00:00:00,P06-2024
P&V,CAR PARK INCOME,INCOME,CAR PARKING INCOME,9730,P123313-SERVICE-Credit Call Recharge WAG - Aug 2023,19/9/2023 00:00:00,277179,32.4,PA0372,PARKINGEYE LIMITED,28/8/2023 00:00:00,24/9/2023 00:00:00,P06-2024
P&V,CAR PARK INCOME,INCOME,CAR PARKING INCOME,9730,P123313-SERVICE-Credit Call Recharge Pindar - Aug 2023,19/9/2023 00:00:00,277179,51.48,PA0372,PARKINGEYE LIMITED,28/8/2023 00:00:00,24/9/2023 00:00:00,P06-2024
P&V,CAR PARK INCOME,INCOME,CAR PARKING INCOME,9730,P123313-SERVICE-Credit Call Recharge CA110656 - Aug 2023,19/9/2023 00:00:00,277179,11.88,PA0372,PARKINGEYE LIMITED,28/8/2023 00:00:00,24/9/2023 00:00:00,P06-2024
P&V,CAR PARK INCOME,INCOME,CAR PARKING INCOME,9730,P123313-SERVICE-Credit Call Recharge CMM - Aug 2023,19/9/2023 00:00:00,277179,7.8,PA0372,PARKINGEYE LIMITED,28/8/2023 00:00:00,24/9/2023 00:00:00,P06-2024
P&V,CAR PARK INCOME,INCOME,CAR PARKING INCOME,9730,P123313-SERVICE-Credit Call Recharge FG - Aug 2023,19/9/2023 00:00:00,277179,33,PA0372,PARKINGEYE LIMITED,28/8/2023 00:00:00,24/9/2023 00:00:00,P06-2024
P&V,CAR PARK INCOME,INCOME,CAR PARKING INCOME,9730,P123313-SERVICE-Credit Call Recharge OM&M - Aug 2023,19/9/2023 00:00:00,277179,21.48,PA0372,PARKINGEYE LIMITED,28/8/2023 00:00:00,24/9/2023 00:00:00,P06-2024
P&V,CAR PARK INCOME,INCOME,CAR PARKING INCOME,9730,P123313-SERVICE-Paid Parking Tickets Used - FG - Aug 2023,19/9/2023 00:00:00,277234,3.47,PA0372,PARKINGEYE LIMITED,28/8/2023 00:00:00,24/9/2023 00:00:00,P06-2024
P&V,CAR PARK INCOME,INCOME,CAR PARKING INCOME,9730,P123313-SERVICE-Paid Parking Tickets Used - Pindar - Aug 2023,19/9/2023 00:00:00,277234,5.42,PA0372,PARKINGEYE LIMITED,28/8/2023 00:00:00,24/9/2023 00:00:00,P06-2024
P&V,CAR PARK INCOME,INCOME,CAR PARKING INCOME,9730,P123313-SERVICE-Paid Parking Tickets Used - OM&M - Aug 2023,19/9/2023 00:00:00,277234,6.38,PA0372,PARKINGEYE LIMITED,28/8/2023 00:00:00,24/9/2023 00:00:00,P06-2024
P&V,CAR PARK INCOME,INCOME,CAR PARKING INCOME,9730,P123313-SERVICE-Paid Parking Tickets Used - CMM - Aug 2023,19/9/2023 00:00:00,277234,0.8,PA0372,PARKINGEYE LIMITED,28/8/2023 00:00:00,24/9/2023 00:00:00,P06-2024
P&V,CAR PARK INCOME,INCOME,CAR PARKING INCOME,9730,P123313-SERVICE-Paid Parking Tickets Used - Clayton- Aug 2023,19/9/2023 00:00:00,277234,0.19,PA0372,PARKINGEYE LIMITED,28/8/2023 00:00:00,24/9/2023 00:00:00,P06-2024
P&V,CAR PARK INCOME,INCOME,CAR PARKING INCOME,9730,P123313-SERVICE-Paid Parking Tickets Used - GPP - Aug 2023,19/9/2023 00:00:00,277234,4.5,PA0372,PARKINGEYE LIMITED,28/8/2023 00:00:00,24/9/2023 00:00:00,P06-2024
P&V,CAR PARK INCOME,INCOME,CAR PARKING INCOME,9730,P123313-SERVICE-Paid Parking Tickets Used - WAG - Aug 2023,19/9/2023 00:00:00,277234,3.31,PA0372,PARKINGEYE LIMITED,28/8/2023 00:00:00,24/9/2023 00:00:00,P06-2024
P&V,CAR PARK INCOME,INCOME,CAR PARKING INCOME,9730,Pindar-parking Chg Aug 23,13/9/2023 00:00:00,277235,-77.63,PA0372,PARKINGEYE LIMITED,28/8/2023 00:00:00,24/9/2023 00:00:00,P06-2024
P&V,CAR PARK INCOME,INCOME,CAR PARKING INCOME,9730,Cornmill Mead-Parking chg -Aug23,13/9/2023 00:00:00,277236,-30.63,PA0372,PARKINGEYE LIMITED,28/8/2023 00:00:00,24/9/2023 00:00:00,P06-2024
P&V,CAR PARK INCOME,INCOME,CAR PARKING INCOME,9730,Clayton Hill-Parking chg -Aug23,13/9/2023 00:00:00,277237,-91,PA0372,PARKINGEYE LIMITED,28/8/2023 00:00:00,24/9/2023 00:00:00,P06-2024
P&V,CAR PARK INCOME,INCOME,CAR PARKING INCOME,9730,Gunpowder-Parking chg -Aug23,13/9/2023 00:00:00,277238,-65,PA0372,PARKINGEYE LIMITED,28/8/2023 00:00:00,24/9/2023 00:00:00,P06-2024
P&V,CAR PARK INCOME,INCOME,CAR PARKING INCOME,9730,Waltham Abbey--Parking chg -Aug23,13/9/2023 00:00:00,277239,-52.62,PA0372,PARKINGEYE LIMITED,28/8/2023 00:00:00,24/9/2023 00:00:00,P06-2024
P&V,CAR PARK INCOME,INCOME,CAR PARKING INCOME,9730,Fishers Green-Parking chg -Aug23,13/9/2023 00:00:00,277240,-57.56,PA0372,PARKINGEYE LIMITED,28/8/2023 00:00:00,24/9/2023 00:00:00,P06-2024
P&V,CAR PARK INCOME,INCOME,CAR PARKING INCOME,9730,Brox Old Mill-Parking chg -Aug23,13/9/2023 00:00:00,277241,-73.5,PA0372,PARKINGEYE LIMITED,28/8/2023 00:00:00,24/9/2023 00:00:00,P06-2024
P&V,CAR PARK INCOME,INCOME,CAR PARKING INCOME,9730,PBP Hook Marsh- Aug 23,13/9/2023 00:00:00,277242,-636.8,PA0372,PARKINGEYE LIMITED,28/8/2023 00:00:00,24/9/2023 00:00:00,P06-2024
P&V,CAR PARK INCOME,INCOME,CAR PARKING INCOME,9730,PBP Hook Marsh- Aug 23,13/9/2023 00:00:00,277242,38.17,PA0372,PARKINGEYE LIMITED,28/8/2023 00:00:00,24/9/2023 00:00:00,P06-2024
P&V,CAR PARK INCOME,INCOME,CAR PARKING INCOME,9730,Cornmill Mead-PBP-Aug 23,13/9/2023 00:00:00,277243,-200.63,PA0372,PARKINGEYE LIMITED,28/8/2023 00:00:00,24/9/2023 00:00:00,P06-2024
P&V,CAR PARK INCOME,INCOME,CAR PARKING INCOME,9730,Cornmill Mead-PBP-Aug 23,13/9/2023 00:00:00,277243,15.29,PA0372,PARKINGEYE LIMITED,28/8/2023 00:00:00,24/9/2023 00:00:00,P06-2024
P&V,CAR PARK INCOME,INCOME,CAR PARKING INCOME,9730,Clayton Hill-PBP-Aug 23,13/9/2023 00:00:00,277244,38.61,PA0372,PARKINGEYE LIMITED,28/8/2023 00:00:00,24/9/2023 00:00:00,P06-2024
P&V,CAR PARK INCOME,INCOME,CAR PARKING INCOME,9730,Clayton Hill-PBP-Aug 23,13/9/2023 00:00:00,277244,-469.11,PA0372,PARKINGEYE LIMITED,28/8/2023 00:00:00,24/9/2023 00:00:00,P06-2024
P&V,CAR PARK INCOME,INCOME,CAR PARKING INCOME,9730,Gunpowder-PBP-Aug 23,13/9/2023 00:00:00,277245,-563.65,PA0372,PARKINGEYE LIMITED,28/8/2023 00:00:00,24/9/2023 00:00:00,P06-2024
P&V,CAR PARK INCOME,INCOME,CAR PARKING INCOME,9730,Gunpowder-PBP-Aug 23,13/9/2023 00:00:00,277245,43.12,PA0372,PARKINGEYE LIMITED,28/8/2023 00:00:00,24/9/2023 00:00:00,P06-2024
P&V,CAR PARK INCOME,INCOME,CAR PARKING INCOME,9730,Brox Old Mill-PBP-Aug 23,13/9/2023 00:00:00,277246,-397.76,PA0372,PARKINGEYE LIMITED,28/8/2023 00:00:00,24/9/2023 00:00:00,P06-2024
P&V,CAR PARK INCOME,INCOME,CAR PARKING INCOME,9730,Brox Old Mill-PBP-Aug 23,13/9/2023 00:00:00,277246,24.31,PA0372,PARKINGEYE LIMITED,28/8/2023 00:00:00,24/9/2023 00:00:00,P06-2024
P&V,CAR PARK INCOME,INCOME,CAR PARKING INCOME,9730,Cheshunt C Walk-PBP-Aug23,13/9/2023 00:00:00,277247,61.93,PA0372,PARKINGEYE LIMITED,28/8/2023 00:00:00,24/9/2023 00:00:00,P06-2024
P&V,CAR PARK INCOME,INCOME,CAR PARKING INCOME,9730,Cheshunt C Walk-PBP-Aug23,13/9/2023 00:00:00,277247,-1506.89,PA0372,PARKINGEYE LIMITED,28/8/2023 00:00:00,24/9/2023 00:00:00,P06-2024
P&V,CAR PARK INCOME,INCOME,CAR PARKING INCOME,9730,Pindar-PBP-Aug 23,13/9/2023 00:00:00,277248,-1288.89,PA0372,PARKINGEYE LIMITED,28/8/2023 00:00:00,24/9/2023 00:00:00,P06-2024
P&V,CAR PARK INCOME,INCOME,CAR PARKING INCOME,9730,Pindar-PBP-Aug 23,13/9/2023 00:00:00,277248,63.58,PA0372,PARKINGEYE LIMITED,28/8/2023 00:00:00,24/9/2023 00:00:00,P06-2024
P&V,CAR PARK INCOME,INCOME,CAR PARKING INCOME,9730,Gunpowder-PBP Aug 23,13/9/2023 00:00:00,277249,1.54,PA0372,PARKINGEYE LIMITED,28/8/2023 00:00:00,24/9/2023 00:00:00,P06-2024
P&V,CAR PARK INCOME,INCOME,CAR PARKING INCOME,9730,Gunpowder-PBP Aug 23,13/9/2023 00:00:00,277249,-17.36,PA0372,PARKINGEYE LIMITED,28/8/2023 00:00:00,24/9/2023 00:00:00,P06-2024
P&V,CAR PARK INCOME,INCOME,CAR PARKING INCOME,9730,Waltham Abbey G - PBP Aug 23,13/9/2023 00:00:00,277250,-437.42,PA0372,PARKINGEYE LIMITED,28/8/2023 00:00:00,24/9/2023 00:00:00,P06-2024
P&V,CAR PARK INCOME,INCOME,CAR PARKING INCOME,9730,Waltham Abbey G - PBP Aug 23,13/9/2023 00:00:00,277250,30.14,PA0372,PARKINGEYE LIMITED,28/8/2023 00:00:00,24/9/2023 00:00:00,P06-2024
P&V,CAR PARK INCOME,INCOME,CAR PARKING INCOME,9730,Clayton Hill-PBP Aug 23,13/9/2023 00:00:00,277251,-61.49,PA0372,PARKINGEYE LIMITED,28/8/2023 00:00:00,24/9/2023 00:00:00,P06-2024
P&V,CAR PARK INCOME,INCOME,CAR PARKING INCOME,9730,Clayton Hill-PBP Aug 23,13/9/2023 00:00:00,277251,5.39,PA0372,PARKINGEYE LIMITED,28/8/2023 00:00:00,24/9/2023 00:00:00,P06-2024
P&V,CAR PARK INCOME,INCOME,CAR PARKING INCOME,9730,Cornmill Mead-PBP Aug 23,13/9/2023 00:00:00,277252,-23.68,PA0372,PARKINGEYE LIMITED,28/8/2023 00:00:00,24/9/2023 00:00:00,P06-2024
P&V,CAR PARK INCOME,INCOME,CAR PARKING INCOME,9730,Cornmill Mead-PBP Aug 23,13/9/2023 00:00:00,277252,1.98,PA0372,PARKINGEYE LIMITED,28/8/2023 00:00:00,24/9/2023 00:00:00,P06-2024
P&V,CAR PARK INCOME,INCOME,CAR PARKING INCOME,9730,Hooks Marsh-PBP Aug 23,13/9/2023 00:00:00,277253,0.11,PA0372,PARKINGEYE LIMITED,28/8/2023 00:00:00,24/9/2023 00:00:00,P06-2024
P&V,CAR PARK INCOME,INCOME,CAR PARKING INCOME,9730,Hooks Marsh-PBP Aug 23,13/9/2023 00:00:00,277253,-1.83,PA0372,PARKINGEYE LIMITED,28/8/2023 00:00:00,24/9/2023 00:00:00,P06-2024
P&V,CAR PARK INCOME,INCOME,CAR PARKING INCOME,9730,Fishers Green=PBP aug 23,13/9/2023 00:00:00,277254,-1061.57,PA0372,PARKINGEYE LIMITED,28/8/2023 00:00:00,24/9/2023 00:00:00,P06-2024
P&V,CAR PARK INCOME,INCOME,CAR PARKING INCOME,9730,Fishers Green=PBP aug 23,13/9/2023 00:00:00,277254,59.07,PA0372,PARKINGEYE LIMITED,28/8/2023 00:00:00,24/9/2023 00:00:00,P06-2024
P&V,CAR PARK INCOME,INCOME,CAR PARKING INCOME,9730,Various Sites-convenience fee,19/9/2023 00:00:00,277281,-237.34,PA0372,PARKINGEYE LIMITED,28/8/2023 00:00:00,24/9/2023 00:00:00,P06-2024
,STANSTEAD RECHARGEABLE WORKS,INCOME,TRADING AC - EXTERNAL SALES,9875,P122935-SERVICE-paint,09/07/2023 00:00,277257,822.55,CR0651,CRAFTMASTER PAINTS,28/8/2023 00:00:00,24/9/2023 00:00:00,P06-2024
CEO,MAJOR EVENTS,INCOME,OTHER INCOME,9950,P122922-SERVICE-Replacement for HTC Clubhouse Table damaged b,09/05/2023 00:00,277035,1108.33,GR0097,GREENWICH LEISURE LTD,28/8/2023 00:00:00,24/9/2023 00:00:00,P06-2024
